Workbook

Sheet Benutzerhinweise
C5: Arbeitshilfe zum BNB_UK Version 2017
C8: EINFÜHRUNG
C35: Änderungen:
C36: 2018-03-08 | D36: 2.2.2 | E36: Teilkriterium 4. "Technische Ausstattung": Punktzahl von 18 auf 10 Punkte korrigiert.
D37: 3.1.5 | E37: Teilkriterium 3. "Sichtverbindungen": Punktzahl von 25 auf 35 Punkte korrigiert
D38: 4.1.3 | E38: Teilkriterium 3.6 "Zugänglichkeit" nachgetragen.

Sheet Zielvereinbarung
B1: ='BNB-System'!C1 -> Projekt: | C1: Projektbezeichnung | E1: Datum: | G1: 2017-11-13
B2: ='BNB-System'!C2 -> Bewertungssystem Nachhaltiges Bauen (BNB)
B3: ='BNB-System'!C3 -> Systemvariante Unterrichtsgebäude, Modul Komplettmodernisierung (BNB_UK) - Version 2017
B4: Nachhaltigkeitskriterien | D4: maximale Punktzahl | E4: Gewichtung Gesamt-bewertung | F4: Zielwert der Ziel-vereinbarung | H4: Kommentar | I4: erforderliche Leistungen, Maßnahmen, Methoden | J4: erforderliche Dokumente/ Nachweise | K4: Termin | L4: Zuständigkeit | N4: Zielwert | O4: Gesamt-bewertung gemäß End-bewertung
F5: Soll | G5: Punkt- zahl
B7: Gesamterfüllungsgrad | G7: =IF(SUM(O13:O217)>100%,100%,SUM(O13:O217)) -> 0
M8: qwertz
B10: ='BNB-System'!F6 -> Ökologische Qualität | E10: ='BNB-System'!K6 -> 0.225 | G10: =G13*(E13/100)+G14*(E14/100)+G15*(E15/100)+G16*(E16/100)+G17*(E17/100)+G18*(E18/100)+G24*(E24/100)+G26*(E26/100)+G30*(E30/100)+G31*(E31/100) -> 0 | N10: ='BNB-System'!L6 -> 1800
N11: ='BNB-System'!L7 -> 0
C12: Wirkungen auf die globale und lokale Umwelt | N12: ='BNB-System'!L8 -> 0
B13: ='BNB-System'!F9 -> 1.1.1 | C13: ='BNB-System'!G9 -> Treibhauspotenzial (GWP) | D13: ='BNB-System'!H9 -> 100 | E13: ='BNB-System'!K9 -> 0.0375 | F13: o | N13: ='BNB-System'!L9 -> 300 | O13: =IF(ISNUMBER(E13*G13/100),E13*G13/100,0) -> 0
B14: ='BNB-System'!F10 -> 1.1.2 | C14: ='BNB-System'!G10 -> Ozonschichtabbaupotenzial (ODP) | D14: ='BNB-System'!H10 -> 100 | E14: ='BNB-System'!K10 -> 0.0125 | F14: x | N14: ='BNB-System'!L10 -> 100 | O14: =IF(ISNUMBER(E14*G14/100),E14*G14/100,0) -> 0
B15: ='BNB-System'!F11 -> 1.1.3 | C15: ='BNB-System'!G11 -> Ozonbildungspotenzial (POCP) | D15: ='BNB-System'!H11 -> 100 | E15: ='BNB-System'!K11 -> 0.0125 | N15: ='BNB-System'!L11 -> 100 | O15: 0
B16: ='BNB-System'!F12 -> 1.1.4 | C16: ='BNB-System'!G12 -> Versauerungspotenzial (AP) | D16: ='BNB-System'!H12 -> 100 | E16: ='BNB-System'!K12 -> 0.0125 | N16: ='BNB-System'!L12 -> 100 | O16: 0
B17: ='BNB-System'!F13 -> 1.1.5 | C17: ='BNB-System'!G13 -> Überdüngungspotenzial (EP) | D17: ='BNB-System'!H13 -> 100 | E17: ='BNB-System'!K13 -> 0.0125 | N17: ='BNB-System'!L13 -> 100 | O17: 0
B18: ='BNB-System'!F14 -> 1.1.6 | C18: ='BNB-System'!G14 -> Risiken für die lokale Umwelt | D18: ='BNB-System'!H14 -> 100 | E18: ='BNB-System'!K14 -> 0.0375 | G18: =IF(SUM(G19:G23)>100,100,SUM(G19:G23)) -> 0 | N18: ='BNB-System'!L14 -> 300 | O18: 0
C19: ='BNB-System'!G15 -> Altsubstanz Q4 ; Neusubstanz Q5 | D19: ='BNB-System'!H15 -> 100
C20: ='BNB-System'!G16 -> Altsubstanz Q3 ; Neusubstanz Q4 | D20: ='BNB-System'!H16 -> 75
C21: ='BNB-System'!G17 -> Altsubstanz Q2 ; Neusubstanz Q3 | D21: ='BNB-System'!H17 -> 50
C22: ='BNB-System'!G18 -> Altsubstanz Q1 ; Neusubstanz Q2 | D22: ='BNB-System'!H18 -> 25
C23: ='BNB-System'!G19 -> Altsubstanz Q1 ; Neusubstanz Q1 | D23: ='BNB-System'!H19 -> 10
B24: ='BNB-System'!F20 -> 1.1.7 | C24: ='BNB-System'!G20 -> Nachhaltige Materialgewinnung / Biodiversität | D24: ='BNB-System'!H20 -> 100 | E24: ='BNB-System'!K20 -> 0.0125 | N24: ='BNB-System'!L20 -> 100 | O24: 0
C25: ='BNB-System'!G21 -> Ressourceninanspruchnahme | N25: ='BNB-System'!L21 -> 0
B26: ='BNB-System'!F22 -> 1.2.1 | C26: ='BNB-System'!G22 -> Primärenergiebedarf | D26: ='BNB-System'!H22 -> 100 | E26: ='BNB-System'!K22 -> 0.0375 | G26: =IF(SUM(G27:G29)>100,100,SUM(G27:G29)) -> 0 | N26: ='BNB-System'!L22 -> 300 | O26: 0
C27: ='BNB-System'!G23 -> Primärenergiebedarf nicht erneuerbar (PEne) | D27: ='BNB-System'!H23 -> 60 | N27: ='BNB-System'!L23 -> 0
C28: ='BNB-System'!G24 -> Gesamtprimärenergiebedarf (PEges) | D28: ='BNB-System'!H24 -> 40
C29: ='BNB-System'!G25 -> Anteil der erneuerbaren Primärenergie (Pee) | D29: ='BNB-System'!H25 -> 20 | N29: ='BNB-System'!L25 -> 0
B30: ='BNB-System'!F26 -> 1.2.3 | C30: ='BNB-System'!G26 -> Trinkwasserbedarf und Abwasseraufkommen | D30: ='BNB-System'!H26 -> 100 | E30: ='BNB-System'!K26 -> 0.025 | N30: ='BNB-System'!L26 -> 200 | O30: =IF(ISNUMBER(E30*G30/100),E30*G30/100,0) -> 0
B31: ='BNB-System'!F27 -> 1.2.4 | C31: ='BNB-System'!G27 -> Flächeninanspruchnahme | D31: ='BNB-System'!H27 -> 100 | E31: ='BNB-System'!K27 -> 0.025 | G31: =IF(SUM(G32:G33)>100,100,SUM(G32:G33)) -> 0 | N31: ='BNB-System'!L27 -> 200 | O31: 0
C32: ='BNB-System'!G28 -> Veränderung der Flächeninanspruchnahme | D32: ='BNB-System'!H28 -> 100
C33: ='BNB-System'!G29 -> Ausgleichsmaßnahmen und Flächenrecycling | D33: ='BNB-System'!H29 -> 40
N34: ='BNB-System'!L30 -> 0
B35: ='BNB-System'!F31 -> Ökonomische Qualität | E35: ='BNB-System'!K31 -> 0.225 | G35: =G38*(E38/100)+G40*(E40/100) -> 0 | N35: ='BNB-System'!L31 -> 500
N36: ='BNB-System'!L32 -> 0
C37: ='BNB-System'!G33 -> Lebenszykluskosten | N37: ='BNB-System'!L33 -> 0
B38: ='BNB-System'!F34 -> 2.1.1 | C38: ='BNB-System'!G34 -> Gebäudebezogene Kosten im Lebenszyklus | D38: ='BNB-System'!H34 -> 100 | E38: ='BNB-System'!K34 -> 0.135 | N38: ='BNB-System'!L34 -> 300 | O38: =IF(ISNUMBER(E38*G38/100),E38*G38/100,0) -> 0
C39: ='BNB-System'!G35 -> Wirtschaftlichkeit und Wertstabilität | N39: ='BNB-System'!L35 -> 0
B40: ='BNB-System'!F36 -> 2.2.2 | C40: ='BNB-System'!G36 -> Anpassungsfähigkeit | D40: ='BNB-System'!H36 -> 100 | E40: ='BNB-System'!K36 -> 0.09 | F40: o | G40: =IF(SUM(G41:G46)>100,100,SUM(G41:G46)) -> 0 | N40: ='BNB-System'!L36 -> 200 | O40: =IF(ISNUMBER(E40*G40/100),E40*G40/100,0) -> 0
C41: ='BNB-System'!G37 -> Lichte Raumhöhe | D41: ='BNB-System'!H37 -> 15 | N41: ='BNB-System'!L37 -> 0
C42: ='BNB-System'!G38 -> Gebäudetiefe | D42: ='BNB-System'!H38 -> 15 | N42: ='BNB-System'!L38 -> 0
C43: ='BNB-System'!G39 -> Vertikale Erschließung | D43: ='BNB-System'!H39 -> 15 | N43: ='BNB-System'!L39 -> 0
C44: ='BNB-System'!G40 -> Grundrisse | D44: ='BNB-System'!H40 -> 25 | N44: ='BNB-System'!L40 -> 0
C45: ='BNB-System'!G41 -> Konstruktion | D45: ='BNB-System'!H41 -> 20 | N45: ='BNB-System'!L41 -> 0
C46: ='BNB-System'!G42 -> Technische Ausstattung | D46: ='BNB-System'!H42 -> 10 | N46: ='BNB-System'!L42 -> 0
N47: ='BNB-System'!L43 -> 0
B48: ='BNB-System'!F44 -> Soziokulturelle und funktionale Qualität | E48: ='BNB-System'!K44 -> 0.225 | G48: =G51*(E51/100)+G62*(E62/100)+G65*(E65/100)+G75*(E75/100)+G83*(E83/100)+G93*(E93/100)+G98*(E98/100)+G105*(E105/100)+G106*(E106/100)+G111*(E111/100)+G116*(E116/100)+G123*(E123/100) -> 0 | N48: ='BNB-System'!L44 -> 2700
N49: ='BNB-System'!L45 -> 0
C50: ='BNB-System'!G46 -> Gesundheit, Behaglichkeit und Nutzerzufriedenheit | N50: ='BNB-System'!L46 -> 0
B51: ='BNB-System'!F47 -> 3.1.1 | C51: ='BNB-System'!G47 -> Thermischer Komfort | D51: ='BNB-System'!H47 -> 100 | E51: ='BNB-System'!K47 -> 0.025 | G51: =IF(SUM(G53:G61)>100,100,SUM(G53:G61)) -> 0 | N51: ='BNB-System'!L47 -> 300 | O51: =IF(ISNUMBER(E51*G51/100),E51*G51/100,0) -> 0
C52: ='BNB-System'!G48 -> Winter | N52: ='BNB-System'!L49 -> 0
C53: ='BNB-System'!G49 -> Operative Temperatur | D53: ='BNB-System'!H49 -> 10
C54: ='BNB-System'!G50 -> Zugluft | D54: ='BNB-System'!H50 -> 10
C55: ='BNB-System'!G51 -> Stahlungstemperaturasymmetrie und Fußbodentemperatur | D55: ='BNB-System'!H51 -> 10
C56: ='BNB-System'!G52 -> Luftfeuchte | D56: ='BNB-System'!H52 -> 10
C57: ='BNB-System'!G53 -> Sommer
C58: ='BNB-System'!G54 -> Operative Temperatur | D58: ='BNB-System'!H54 -> 30
C59: ='BNB-System'!G55 -> Zugluft | D59: ='BNB-System'!H55 -> 10
C60: ='BNB-System'!G56 -> Stahlungstemperaturasymmetrie und Fußbodentemperatur | D60: ='BNB-System'!H56 -> 10
C61: ='BNB-System'!G57 -> Luftfeuchte | D61: ='BNB-System'!H57 -> 10 | N61: ='BNB-System'!#REF! -> 
B62: ='BNB-System'!F58 -> 3.1.3 | C62: ='BNB-System'!G58 -> Innenraumlufthygiene | D62: ='BNB-System'!H58 -> 100 | E62: ='BNB-System'!K58 -> 0.025 | G62: =IF(SUM(G63:G64)>100,100,SUM(G63:G64)) -> 0 | N62: ='BNB-System'!L58 -> 300 | O62: =IF(ISNUMBER(E62*G62/100),E62*G62/100,0) -> 0
C63: ='BNB-System'!G59 -> Flüchtige organische Stoffe (VOC) und Formaldehyd | D63: ='BNB-System'!H59 -> 50 | N63: ='BNB-System'!L59 -> 0
C64: ='BNB-System'!G60 -> Personenbezogene Lüftungsrate | D64: ='BNB-System'!H60 -> 50 | N64: ='BNB-System'!L60 -> 0
B65: ='BNB-System'!F61 -> 3.1.4 | C65: ='BNB-System'!G61 -> Akustischer Komfort | D65: ='BNB-System'!H61 -> 100 | E65: ='BNB-System'!K61 -> 0.01666666667 | G65: =IF(SUM(G66:G74)>100,100,SUM(G66:G74)) -> 0 | N65: ='BNB-System'!L61 -> 200 | O65: =IF(ISNUMBER(E65*G65/100),E65*G65/100,0) -> 0
C66: ='BNB-System'!G62 -> Räume Gruppe A | D66: ='BNB-System'!H63 -> 100 | N66: ='BNB-System'!L63 -> 0
C67: ='BNB-System'!G63 -> Musik
C68: ='BNB-System'!G64 -> Sprache/ Vortrag | D68: ='BNB-System'!H64 -> 100 | N68: ='BNB-System'!L64 -> 0
C69: ='BNB-System'!G65 -> Unterricht Kommunikation | D69: ='BNB-System'!H65 -> 100 | N69: ='BNB-System'!L65 -> 0
C70: ='BNB-System'!G66 -> Sport | D70: ='BNB-System'!H66 -> 100 | N70: ='BNB-System'!L66 -> 0
C71: ='BNB-System'!G67 -> Räume Gruppe B
C72: ='BNB-System'!G68 -> Einzel- und Mehrpersonenbüros bis 100 m3 | D72: ='BNB-System'!H68 -> 100 | N72: ='BNB-System'!L68 -> 0
C73: ='BNB-System'!G69 -> Mehrpersonenbüros über 100 m3 | D73: ='BNB-System'!H69 -> 100 | N73: ='BNB-System'!L69 -> 0
C74: ='BNB-System'!G70 -> Weitere Räume | D74: ='BNB-System'!H70 -> 100 | N74: ='BNB-System'!L70 -> 0
B75: ='BNB-System'!F71 -> 3.1.5 | C75: ='BNB-System'!G71 -> Visueller Komfort | D75: ='BNB-System'!H71 -> 100 | E75: ='BNB-System'!K71 -> 0.01666666667 | G75: =IF(SUM(G76:G82)>100,100,SUM(G76:G82)) -> 0 | N75: ='BNB-System'!L71 -> 200 | O75: =IF(ISNUMBER(E75*G75/100),E75*G75/100,0) -> 0
C76: ='BNB-System'!G72 -> Tageslichtverfügbarkeit Gesamtgebäude | D76: ='BNB-System'!H72 -> 15 | N76: ='BNB-System'!L72 -> 0
C77: ='BNB-System'!G73 -> Tageslichtverfügbarkeit ständige Arbeitsplätze | D77: ='BNB-System'!H73 -> 15 | N77: ='BNB-System'!L73 -> 0
C78: ='BNB-System'!G74 -> Nachweis de Sichtverbindung außen | D78: ='BNB-System'!H74 -> 35 | N78: ='BNB-System'!L74 -> 0
C79: ='BNB-System'!G75 -> Blendfreiheit Tageslicht | D79: ='BNB-System'!H75 -> 10 | N79: ='BNB-System'!L75 -> 0
C80: ='BNB-System'!G76 -> Blendfreiheit Kunstlicht | D80: ='BNB-System'!H76 -> 5 | N80: ='BNB-System'!L76 -> 0
C81: ='BNB-System'!G77 -> Lichtverteilung | D81: ='BNB-System'!H77 -> 20 | N81: ='BNB-System'!L77 -> 0
C82: ='BNB-System'!G78 -> Farbwiedergabe | D82: ='BNB-System'!H78 -> 10 | N82: ='BNB-System'!L78 -> 0
B83: ='BNB-System'!F79 -> 3.1.6 | C83: ='BNB-System'!G79 -> Einflussnahmemöglichkeiten durch Nutzer | D83: ='BNB-System'!H79 -> 100 | E83: ='BNB-System'!K79 -> 0.01666666667 | G83: =IF(SUM(G84:G92)>100,100,SUM(G84:G92)) -> 0 | N83: ='BNB-System'!L79 -> 200 | O83: =IF(ISNUMBER(E83*G83/100),E83*G83/100,0) -> 0
C84: ='BNB-System'!G80 -> Lüftung | D84: ='BNB-System'!H80 -> 10 | N84: ='BNB-System'!L80 -> 0
C85: ='BNB-System'!G81 -> Sonnenschutz | D85: ='BNB-System'!H81 -> 10 | N85: ='BNB-System'!L81 -> 0
C86: ='BNB-System'!G82 -> Blendschutz | D86: ='BNB-System'!H82 -> 10 | N86: ='BNB-System'!L82 -> 0
C87: ='BNB-System'!G83 -> Temperaturen während der Heizperiode | D87: ='BNB-System'!H83 -> 10 | N87: ='BNB-System'!L83 -> 0
C88: ='BNB-System'!G84 -> Temperaturen außerhalb der Heizperiode | D88: ='BNB-System'!H84 -> 15 | N88: ='BNB-System'!L84 -> 0
C89: ='BNB-System'!G85 -> Steuerung von Tageslicht | D89: ='BNB-System'!H85 -> 10 | N89: ='BNB-System'!L85 -> 0
C90: ='BNB-System'!G86 -> Steuerung von Kunstlicht | D90: ='BNB-System'!H86 -> 10 | N90: ='BNB-System'!L87 -> 0
C91: ='BNB-System'!G87 -> Bedienfreundlichkeit | D91: ='BNB-System'!H87 -> 10
C92: ='BNB-System'!G88 -> Funktionskonzept der Haustechnik | D92: ='BNB-System'!H88 -> 15 | N92: ='BNB-System'!L88 -> 0
B93: ='BNB-System'!F89 -> 3.1.7 | C93: ='BNB-System'!G89 -> Aufenthaltsmerkmale im Außenraum | D93: ='BNB-System'!H89 -> 100 | E93: ='BNB-System'!K89 -> 0.01666666667 | G93: =IF(SUM(G94:G97)>100,100,SUM(G94:G97)) -> 0 | N93: ='BNB-System'!L89 -> 200 | O93: =IF(ISNUMBER(E93*G93/100),E93*G93/100,0) -> 0
C94: ='BNB-System'!G90 -> Anzahl und Vielfalt Sitzgelegenheiten | D94: ='BNB-System'!H90 -> 30 | N94: ='BNB-System'!L90 -> 0
C95: ='BNB-System'!G91 -> Anzahlund Vielfalt der Spiel- und Sportmöglichkeiten | D95: ='BNB-System'!H91 -> 15 | N95: ='BNB-System'!L91 -> 0
C96: ='BNB-System'!G92 -> Zuordnung von Freibereichen zu Innenräumen | D96: ='BNB-System'!H92 -> 20 | N96: ='BNB-System'!L92 -> 0
C97: ='BNB-System'!G93 -> Ausstattungsmerkmale | D97: ='BNB-System'!H93 -> 39 | N97: ='BNB-System'!L93 -> 0
B98: ='BNB-System'!F94 -> 3.1.8 | C98: ='BNB-System'!G94 -> Sicherheit | D98: ='BNB-System'!H94 -> 100 | E98: ='BNB-System'!K94 -> 0.008333333333 | N98: ='BNB-System'!L94 -> 100 | O98: =IF(ISNUMBER(E98*G98/100),E98*G98/100,0) -> 0
B99: ='BNB-System'!F95 -> 3.1.9 | C99: ='BNB-System'!G95 -> Innenraumqualität | D99: ='BNB-System'!H95 -> 100 | E99: ='BNB-System'!K95 -> 0.025 | G99: =IF(SUM(G100:G103)>100,100,SUM(G100:G103)) -> 0
C100: ='BNB-System'!G96 -> Aufenthaltsqualitäten der Erschließungsflächen | D100: ='BNB-System'!H96 -> 45
C101: ='BNB-System'!G97 -> Innere Sitzbeziehung | D101: ='BNB-System'!H97 -> 15
C102: ='BNB-System'!G98 -> Flexibilität der Raumnutzung | D102: ='BNB-System'!H98 -> 30
C103: ='BNB-System'!G99 -> Aufbewahrungsmöglichkeiten | D103: ='BNB-System'!H99 -> 40
C104: ='BNB-System'!G100 -> Funktionalität | N104: ='BNB-System'!L100 -> 0
B105: ='BNB-System'!F101 -> 3.2.1 | C105: ='BNB-System'!G101 -> Barrierefreiheit | D105: ='BNB-System'!H101 -> 100 | E105: ='BNB-System'!K101 -> 0.01666666667 | N105: ='BNB-System'!L101 -> 200 | O105: =IF(ISNUMBER(E105*G105/100),E105*G105/100,0) -> 0
B106: ='BNB-System'!F102 -> 3.2.4 | C106: ='BNB-System'!G102 -> Zugänglichkeit | D106: ='BNB-System'!H102 -> 100 | E106: ='BNB-System'!K102 -> 0.01666666667 | G106: =IF(SUM(G107:G110)>100,100,SUM(G107:G110)) -> 0 | N106: ='BNB-System'!L102 -> 200 | O106: 0
C107: ='BNB-System'!G103 -> Grundsätzliche öffentliche Zugänglichkeit des Gebäudes | D107: ='BNB-System'!H103 -> 20 | N107: ='BNB-System'!L103 -> 0
C108: ='BNB-System'!G104 -> Qualitative Merkmale der öffentlichen Zugänglichkeit des Gebäudes | D108: ='BNB-System'!H104 -> 50 | N108: ='BNB-System'!L104 -> 0
C109: ='BNB-System'!G105 -> Nutzungsmerkmale der Zugänglichkeit | D109: ='BNB-System'!H105 -> 50 | N109: ='BNB-System'!L105 -> 0
C110: ='BNB-System'!G106 -> Qualitative Aspekte der öffentlichen Zugänglichkeit der Freiflächen | D110: ='BNB-System'!H106 -> 20 | N110: ='BNB-System'!L106 -> 0
B111: ='BNB-System'!F107 -> 3.2.5 | C111: ='BNB-System'!G107 -> Mobilitätsinfrastruktur | D111: ='BNB-System'!H107 -> 100 | E111: ='BNB-System'!K107 -> 0.008333333333 | G111: =IF(SUM(G112:G114)>100,100,SUM(G112:G114)) -> 0 | N111: ='BNB-System'!L107 -> 100 | O111: =IF(ISNUMBER(E111*G111/100),E111*G111/100,0) -> 0
C112: ='BNB-System'!G108 -> Anzahl der Fahrradstellplätze | D112: ='BNB-System'!H108 -> 40 | N112: ='BNB-System'!L108 -> 0
C113: ='BNB-System'!G109 -> Anzahl der Lademöglichkeiten und Carsharing-Stellplätze | D113: ='BNB-System'!H109 -> 20 | N113: ='BNB-System'!L109 -> 0
C114: ='BNB-System'!G110 -> Qualitative Anforderungen an Fahrradstellplätze | D114: ='BNB-System'!H110 -> 60 | N114: ='BNB-System'!L110 -> 0
C115: ='BNB-System'!G111 -> Sicherung der Gestaltungsqualität | N115: ='BNB-System'!L111 -> 0
B116: ='BNB-System'!F112 -> 3.3.1 | C116: ='BNB-System'!G112 -> Gestalterische und städtebauliche Qualität | D116: ='BNB-System'!H112 -> 100 | E116: ='BNB-System'!K112 -> 0.025 | G116: =IF(AND(G117>0,G121<=G122),SUM(G117:G120),IF(AND(G117>0,G122<=G121),SUM(G117:G120),IF(G121>0,G121,IF(G122>0,G122,)))) -> 0 | N116: ='BNB-System'!L112 -> 300 | O116: =IF(ISNUMBER(E116*G116/100),E116*G116/100,0) -> 0
C117: ='BNB-System'!G113 -> Fortentwicklung der gestalterischen und städtebaulichen Qualität des Bestandsgebäudes | D117: ='BNB-System'!H113 -> 40 | N117: ='BNB-System'!L113 -> 0
C118: ='BNB-System'!G114 -> Wettbewerbsverfahren | D118: ='BNB-System'!H114 -> 35 | N118: ='BNB-System'!L114 -> 0
C119: ='BNB-System'!G115 -> Ausführung des Entwurfs eines der Preisträger | D119: ='BNB-System'!H115 -> 20 | N119: ='BNB-System'!L115 -> 0
C120: ='BNB-System'!G116 -> Beauftragung des Planungsteams | D120: ='BNB-System'!H116 -> 5 | N120: ='BNB-System'!L116 -> 0
C121: ='BNB-System'!G117 -> Auszeichnung mit einem Architekturpreis | D121: ='BNB-System'!H117 -> 40 | N121: ='BNB-System'!L117 -> 0
C122: ='BNB-System'!G118 -> Unabhängiges Expertengremium | D122: ='BNB-System'!H118 -> 30 | N122: ='BNB-System'!L118 -> 0
B123: ='BNB-System'!F119 -> 3.3.2 | C123: ='BNB-System'!G119 -> Kunst am Bau | D123: ='BNB-System'!H119 -> 100 | E123: ='BNB-System'!K119 -> 0.008333333333 | G123: =IF(SUM(G124:G127)>100,100,SUM(G124:G127)) -> 0 | N123: ='BNB-System'!L119 -> 100 | O123: =IF(ISNUMBER(E123*G123/100),E123*G123/100,0) -> 0
C124: ='BNB-System'!G120 -> Mindestanforderung | D124: ='BNB-System'!H120 -> 10 | N124: ='BNB-System'!L120 -> 0
C125: ='BNB-System'!G121 -> Bereitstellung von Mitteln im Rahmen der Bauaufgabe | D125: ='BNB-System'!H121 -> 30 | N125: ='BNB-System'!L121 -> 0
C126: ='BNB-System'!G122 -> Umsetzung des Leitfadens Kunst am Bau | D126: ='BNB-System'!H122 -> 40 | N126: ='BNB-System'!L122 -> 0
C127: ='BNB-System'!G123 -> Öffentlichkeitsarbeit, Rezeption der Kunst am Bau | D127: ='BNB-System'!H123 -> 20 | N127: ='BNB-System'!L123 -> 0
N128: ='BNB-System'!L124 -> 0
B129: ='BNB-System'!F125 -> Technische Qualität | E129: ='BNB-System'!K125 -> 0.225 | G129: =G132*(E132/100)+G137*(E137/100)+G144*(E144/100)+G155*(E155/100)+G156*(E156/100)+G157*(E157/100) -> 0 | N129: ='BNB-System'!L125 -> 1000
N130: ='BNB-System'!L126 -> 0
C131: ='BNB-System'!G127 -> technische Ausführung | N131: ='BNB-System'!L127 -> 0
B132: ='BNB-System'!F128 -> 4.1.1 | C132: ='BNB-System'!G128 -> Schallschutz | D132: ='BNB-System'!H128 -> 100 | E132: ='BNB-System'!K128 -> 0.045 | G132: =IF(SUM(G133:G136)>100,100,SUM(G133:G136)) -> 0 | N132: ='BNB-System'!L128 -> 200 | O132: =IF(ISNUMBER(E132*G132/100),E132*G132/100,0) -> 0
C133: ='BNB-System'!G129 -> Luftschallschutz gegen Außenlärm | D133: ='BNB-System'!H129 -> 20 | N133: ='BNB-System'!L129 -> 0
C134: ='BNB-System'!G130 -> Luftschallschutz | D134: ='BNB-System'!H130 -> 30 | N134: ='BNB-System'!L130 -> 0
C135: ='BNB-System'!G131 -> Trittschallschutz | D135: ='BNB-System'!H131 -> 30 | N135: ='BNB-System'!L131 -> 0
C136: ='BNB-System'!G132 -> Schallschutz gegenüber haustechnischen Anlagen | D136: ='BNB-System'!H132 -> 20 | N136: ='BNB-System'!L132 -> 0
B137: ='BNB-System'!F133 -> 4.1.2 | C137: ='BNB-System'!G133 -> Wärme- und Tauwasserschutz | D137: ='BNB-System'!H133 -> 100 | E137: ='BNB-System'!K133 -> 0.045 | G137: =IF(SUM(G138:G143)>100,100,SUM(G138:G143)) -> 0 | N137: ='BNB-System'!L133 -> 200 | O137: =IF(ISNUMBER(E137*G137/100),E137*G137/100,0) -> 0
C138: ='BNB-System'!G134 -> Mittlere Wärmeduchgangskoeffizienten | D138: ='BNB-System'!H134 -> 30 | N138: ='BNB-System'!L134 -> 0
C139: ='BNB-System'!G135 -> Wärmebrückenzuschlag | D139: ='BNB-System'!H135 -> 15 | N139: ='BNB-System'!L135 -> 0
C140: ='BNB-System'!G136 -> Klassen der Luftdurchlässigkeit (Fugendurchlässigkeit) | D140: ='BNB-System'!H136 -> 15 | N140: ='BNB-System'!L136 -> 0
C141: ='BNB-System'!G137 -> Tauwasserbildung | D141: ='BNB-System'!H137 -> 10 | N141: ='BNB-System'!L137 -> 0
C142: ='BNB-System'!G138 -> Luftwechsel | D142: ='BNB-System'!H138 -> 15 | N142: ='BNB-System'!L138 -> 0
C143: ='BNB-System'!G139 -> Sonneneintragswert | D143: ='BNB-System'!H139 -> 15 | N143: ='BNB-System'!L139 -> 0
B144: ='BNB-System'!F140 -> 4.1.3 | C144: ='BNB-System'!G140 -> Reinigungs- und Instandhaltungsfreundlichkeit | D144: ='BNB-System'!H140 -> 100 | E144: ='BNB-System'!K140 -> 0.045 | G144: =IF(SUM(G145:G154)>100,100,SUM(G145:G154)) -> 0 | N144: ='BNB-System'!L140 -> 200 | O144: =IF(ISNUMBER(E144*G144/100),E144*G144/100,0) -> 0
C145: ='BNB-System'!G141 -> Tragkonstruktion | D145: ='BNB-System'!H141 -> 15 | N145: ='BNB-System'!L141 -> 0
C146: ='BNB-System'!G142 -> Zugänglichkeit der Außenglasflächen | D146: ='BNB-System'!H142 -> 12 | N146: ='BNB-System'!L142 -> 0
C147: ='BNB-System'!G143 -> Außenbauteile | D147: ='BNB-System'!H143 -> 9 | N147: ='BNB-System'!L143 -> 0
C148: ='BNB-System'!G144 -> Bodenbelag | D148: ='BNB-System'!H144 -> 9 | N148: ='BNB-System'!L144 -> 0
C149: ='BNB-System'!G145 -> Schmutzfangzone | D149: ='BNB-System'!H145 -> 9 | N149: ='BNB-System'!L145 -> 0
C150: ='BNB-System'!G146 -> Fußbodenleisten | D150: ='BNB-System'!H146 -> 9 | N150: ='BNB-System'!L146 -> 0
C151: ='BNB-System'!G147 -> Hindernisfreie Grundrissgestaltung | D151: ='BNB-System'!H147 -> 9 | N151: ='BNB-System'!L147 -> 0
C152: ='BNB-System'!G148 -> Einbauten | D152: ='BNB-System'!H148 -> 10 | N152: ='BNB-System'!L148 -> 0
C153: ='BNB-System'!G149 -> Zugänglichkeit der Innenglasflächen | D153: ='BNB-System'!H149 -> 9
C154: ='BNB-System'!G150 -> Wände | D154: ='BNB-System'!H150 -> 9 | N154: ='BNB-System'!L150 -> 0
B155: ='BNB-System'!F151 -> 4.1.4 | C155: ='BNB-System'!G151 -> Rückbau, Trennung und Verwertung | D155: ='BNB-System'!H151 -> 100 | E155: ='BNB-System'!K151 -> 0.045 | N155: ='BNB-System'!L151 -> 200 | O155: =IF(ISNUMBER(E155*G155/100),E155*G155/100,0) -> 0
B156: ='BNB-System'!F152 -> 4.1.5 | C156: ='BNB-System'!G152 -> Widerstandsfähigkeit gegen Naturgefahren | D156: ='BNB-System'!H152 -> 100 | E156: ='BNB-System'!K152 -> 0.0225 | N156: ='BNB-System'!L152 -> 100 | O156: 0
B157: ='BNB-System'!F153 -> 4.1.6 | C157: ='BNB-System'!G153 -> Bedienungs- und Instandhaltungsfreundlichkeit der TGA | D157: ='BNB-System'!H153 -> 100 | E157: ='BNB-System'!K153 -> 0.0225 | N157: ='BNB-System'!L153 -> 100 | O157: =IF(ISNUMBER(E157*G157/100),E157*G157/100,0) -> 0
N158: ='BNB-System'!L154 -> 0
B159: ='BNB-System'!F155 -> Prozessqualität | E159: ='BNB-System'!K155 -> 0.1 | G159: =G162*(E162/100)+G166*(E166/100)+G172*(E172/100)+G188*(E188/100)+G189*(E189/100)+G209*(E209/100)+G214*(E214/100)+G217*(E217/100) -> 0 | N159: ='BNB-System'!L155 -> 2500
N160: ='BNB-System'!L156 -> 0
C161: ='BNB-System'!G157 -> Planung | N161: ='BNB-System'!L157 -> 0
B162: ='BNB-System'!F158 -> 5.1.1 | C162: ='BNB-System'!G158 -> Projektvorbereitung | D162: ='BNB-System'!H158 -> 100 | E162: ='BNB-System'!K158 -> 0.012 | G162: =IF(SUM(G163:G165)>100,100,SUM(G163:G165)) -> 0 | N162: ='BNB-System'!L158 -> 300 | O162: =IF(ISNUMBER(E162*G162/100),E162*G162/100,0) -> 0
C163: ='BNB-System'!G159 -> Bedarfsplanung oder vergleichbare Planung | D163: ='BNB-System'!H159 -> 35 | N163: ='BNB-System'!L159 -> 0
C164: ='BNB-System'!G160 -> Zielvereinbarung | D164: ='BNB-System'!H160 -> 35 | N164: ='BNB-System'!L160 -> 0
C165: ='BNB-System'!G161 -> Architektenwettbewerb | D165: ='BNB-System'!H161 -> 30 | N165: ='BNB-System'!L161 -> 0
B166: ='BNB-System'!F162 -> 5.1.2 | C166: ='BNB-System'!G162 -> Integrale Planung | D166: ='BNB-System'!H162 -> 100 | E166: ='BNB-System'!K162 -> 0.012 | G166: =IF(SUM(G167:G171)>100,100,SUM(G167:G171)) -> 0 | N166: ='BNB-System'!L162 -> 300 | O166: =IF(ISNUMBER(E166*G166/100),E166*G166/100,0) -> 0
C167: ='BNB-System'!G163 -> Integrales Planungsteam | D167: ='BNB-System'!H163 -> 20 | N167: ='BNB-System'!L163 -> 0
C168: ='BNB-System'!G164 -> Qualifikation des Planungsteams | D168: ='BNB-System'!H164 -> 20 | N168: ='BNB-System'!L164 -> 0
C169: ='BNB-System'!G165 -> Integraler Planungsprozess | D169: ='BNB-System'!H165 -> 20 | N169: ='BNB-System'!L165 -> 0
C170: ='BNB-System'!G166 -> Nutzerbeteiligung | D170: ='BNB-System'!H166 -> 30 | N170: ='BNB-System'!L166 -> 0
C171: ='BNB-System'!G167 -> Öffentlichkeitsbeteiligung | D171: ='BNB-System'!H167 -> 10 | N171: ='BNB-System'!L167 -> 0
B172: ='BNB-System'!F168 -> 5.1.3 | C172: ='BNB-System'!G168 -> Komplexität und Optimierung der Planung | D172: ='BNB-System'!H168 -> 100 | E172: ='BNB-System'!K168 -> 0.012 | G172: =IF(SUM(G173:G187)>100,100,SUM(G173:G187)) -> 0 | N172: ='BNB-System'!L168 -> 300 | O172: =IF(ISNUMBER(E172*G172/100),E172*G172/100,0) -> 0
C173: ='BNB-System'!G169 -> SiGe-Plan | D173: ='BNB-System'!H169 -> 10 | N173: ='BNB-System'!L169 -> 0
C174: ='BNB-System'!G170 -> Ver- und Entsiegelungskonzept | D174: ='BNB-System'!H170 -> 10 | N174: ='BNB-System'!L170 -> 0
C175: ='BNB-System'!G171 -> Energiekonzept | D175: ='BNB-System'!H171 -> 15 | N175: ='BNB-System'!L171 -> 0
C176: ='BNB-System'!G172 -> Mess- und Monitoringkonzept | D176: ='BNB-System'!H172 -> 15 | N176: ='BNB-System'!L172 -> 0
C177: ='BNB-System'!G173 -> Wasserkonzept | D177: ='BNB-System'!H173 -> 10 | N177: ='BNB-System'!L173 -> 0
C178: ='BNB-System'!G174 -> Konzept zur Vermeidung von Umwelt- und Gesundheitsrisiken aus Bauprodukten | D178: ='BNB-System'!H174 -> 10 | N178: ='BNB-System'!L174 -> 0
C179: ='BNB-System'!G175 -> Lüftungskonzept | D179: ='BNB-System'!H175 -> 10 | N179: ='BNB-System'!L175 -> 0
C180: ='BNB-System'!G176 -> Abfallkonzept / Wertstoffkonzept | D180: ='BNB-System'!H176 -> 5 | N180: ='BNB-System'!L176 -> 0
C181: ='BNB-System'!G177 -> Tages- / Kunstlichtoptimierung | D181: ='BNB-System'!H177 -> 10 | N181: ='BNB-System'!L177 -> 0
C182: ='BNB-System'!G178 -> Konzept zur Sicherung der Reinigungs- und Instandhaltungsfreundlichkeit | D182: ='BNB-System'!H178 -> 10 | N182: ='BNB-System'!L178 -> 0
C183: ='BNB-System'!G179 -> Anpassbarkeits-, Rückbau- und Recyclingkonzept | D183: ='BNB-System'!H179 -> 10 | N183: ='BNB-System'!L179 -> 0
C184: ='BNB-System'!G180 -> Konzept zur Vermeidung und Beherrschung von Risiken | D184: ='BNB-System'!H180 -> 10 | N184: ='BNB-System'!L180 -> 0
C185: ='BNB-System'!G181 -> Sonstige Konzepte zum Nachhaltigen Bauen | D185: ='BNB-System'!H181 -> 10 | N185: ='BNB-System'!L181 -> 0
C186: ='BNB-System'!G182 -> Prüfung der Planungsunterlagen durch unabhängige Dritte | D186: ='BNB-System'!H182 -> 5 | N186: ='BNB-System'!L182 -> 0
C187: ='BNB-System'!G183 -> Durchführung von Variantenvergleichen | D187: ='BNB-System'!H183 -> 10 | N187: ='BNB-System'!L183 -> 0
B188: ='BNB-System'!F184 -> 5.1.4 | C188: ='BNB-System'!G184 -> Ausschreibung und Vergabe | D188: ='BNB-System'!H184 -> 100 | E188: ='BNB-System'!K184 -> 0.008 | N188: ='BNB-System'!L184 -> 200 | O188: =IF(ISNUMBER(E188*G188/100),E188*G188/100,0) -> 0
B189: ='BNB-System'!F185 -> 5.1.5 | C189: ='BNB-System'!G185 -> Voraussetzungen für eine optimale Bewirtschaftung | D189: ='BNB-System'!H185 -> 100 | E189: ='BNB-System'!K185 -> 0.008 | G189: =IF(SUM(G190:G193)>100,100,SUM(G190:G193)) -> 0 | N189: ='BNB-System'!L185 -> 200 | O189: 0
C190: ='BNB-System'!G186 -> Erstellung einer Gebäudeakte / Objektdokumentation | D190: ='BNB-System'!H186 -> 25 | N190: ='BNB-System'!L186 -> 0
C191: ='BNB-System'!G187 -> Erstellung von Wartungs-, Inspektions-, Betriebs-, und Pflegeanleitungen | D191: ='BNB-System'!H187 -> 25 | N191: ='BNB-System'!L187 -> 0
C192: ='BNB-System'!G188 -> Anpassung der Pläne und Berechnungen an das realisierte Gebäude | D192: ='BNB-System'!H188 -> 25 | N192: ='BNB-System'!L188 -> 0
C193: ='BNB-System'!G189 -> Erstellung eines Nutzerhandbuches | D193: ='BNB-System'!H189 -> 25 | N193: ='BNB-System'!L189 -> 0
B194: ='BNB-System'!F190 -> 5.1.6 | C194: ='BNB-System'!G190 -> Bestandsanalyse | D194: ='BNB-System'!H190 -> 100 | E194: ='BNB-System'!K190 -> 0.012 | G194: =IF(SUM(G195:G203)>100,100,SUM(G195:G203)) -> 0
C195: ='BNB-System'!G191 -> Bestandsaufnahme Geometrie | D195: ='BNB-System'!H191 -> 10
C196: ='BNB-System'!G192 -> Bestandsaufnahme Baukonstruktion und Baustoffe | D196: ='BNB-System'!H192 -> 20
C197: ='BNB-System'!G193 -> Bestandsaufnahme Haustechnik | D197: ='BNB-System'!H193 -> 10
C198: ='BNB-System'!G194 -> Bestandsaufnahme Bau- und Nutzungsgeschichte | D198: ='BNB-System'!H194 -> 5
C199: ='BNB-System'!G195 -> Bestandsaufnahme Exposition | D199: ='BNB-System'!H195 -> 5
C200: ='BNB-System'!G196 -> Baudiagnose Tragwerk | D200: ='BNB-System'!H196 -> 15
C201: ='BNB-System'!G197 -> Baudiagnose Energetische Qualität | D201: ='BNB-System'!H197 -> 15
C202: ='BNB-System'!G198 -> Baudiagnose Schadstoffe | D202: ='BNB-System'!H198 -> 10
... 57 more rows

Sheet Bewertung durch Anwender
B1: ='BNB-System'!C1 -> Projekt: | C1: =Zielvereinbarung!C1 -> Projektbezeichnung | N1: =Zielvereinbarung!$G$1 -> 2017-11-13
B2: ='BNB-System'!C2 -> Bewertungssystem Nachhaltiges Bauen (BNB)
B3: ='BNB-System'!C3 -> Systemvariante Unterrichtsgebäude, Modul Komplettmodernisierung (BNB_UK) - Version 2017
B4: Nachhaltigkeitskriterien | D4: maximale Punktzahl | E4: Gewichtung Gesamt-bewertung | F4: Zielwert aus der Ziel-vereinbarung | G4: Zielwert der Ziel-vereinbarung | H4: Zielwert der Ziel-vereinbarung | I4: 1. Korrektur Zielwert | J4: Kommentar | K4: 2. Korrektur Zielwert | L4: Kommentar | M4: Zwischen-bewertung | N4: Endbewertung | P4: Zielwert | Q4: Gesamt-bewertung gemäß End-bewertung
G5: Soll | H5: aus Registerkarte "Zielvereinbarung" | I5: =TODAY() -> 2018-03-12 | J5: Eintrag erforderlich für Zielwertkorrektur | K5: 2015-02-22 | L5: Eintrag erforderlich für Zielwertkorrektur | M5: =TODAY() -> 2018-03-12
B7: Gesamterfüllungsgrad | G7: =G10+G35+G48+G129+G159 -> 0 | H7: =Zielvereinbarung!G7 -> 0 | M7: =M10+M35+M48+M129+M159 -> 0 | N7: =N10+N35+N48+N129+N159 -> 0
M8: to_copy_zb | N8: to_insert_zb | O8: qwertz
B10: ='BNB-System'!F6 -> Ökologische Qualität | E10: 0.225 | G10: =G13*($E$13/100)+G14*($E$14/100)+G15*($E$15/100)+G16*($E$16/100)+G17*($E$17/100)+G18*($E$18/100)+G24*($E$24/100)+G26*($E$26/100)+G30*($E$30/100)+G31*($E$31/100) -> 0 | H10: =Zielvereinbarung!G10 -> 0 | M10: =M13*($E$13/100)+M14*($E$14/100)+M15*($E$15/100)+M16*($E$16/100)+M17*($E$17/100)+M18*($E$18/100)+M24*($E$24/100)+M26*($E$26/100)+M30*($E$30/100)+M31*($E$31/100) -> 0 | N10: =N13*($E$13/100)+N14*($E$14/100)+N15*($E$15/100)+N16*($E$16/100)+N17*($E$17/100)+N18*($E$18/100)+N24*($E$24/100)+N26*($E$26/100)+N30*($E$30/100)+N31*($E$31/100) -> 0 | P10: ='BNB-System'!L6 -> 1800
P11: ='BNB-System'!L7 -> 0
C12: Wirkungen auf die globale und lokale Umwelt | P12: ='BNB-System'!L8 -> 0
B13: ='BNB-System'!F9 -> 1.1.1 | C13: ='BNB-System'!G9 -> Treibhauspotenzial (GWP) | D13: ='BNB-System'!H9 -> 100 | E13: ='BNB-System'!K9 -> 0.0375 | F13: o | G13: =IF(AND(NOT(ISBLANK(K13)),NOT(ISBLANK(L13))),('Bewertung durch Anwender'!K13),IF(AND(NOT(ISBLANK(J13)),NOT(ISBLANK(I13))),('Bewertung durch Anwender'!I13),(Zielvereinbarung!G13))) -> 0 | H13: =Zielvereinbarung!G13 -> 0 | P13: ='BNB-System'!L9 -> 300 | Q13: =IF(ISNUMBER(E13*N13/100),E13*N13/100,0) -> 0
B14: ='BNB-System'!F10 -> 1.1.2 | C14: ='BNB-System'!G10 -> Ozonschichtabbaupotenzial (ODP) | D14: ='BNB-System'!H10 -> 100 | E14: ='BNB-System'!K10 -> 0.0125 | F14: x | G14: =IF(AND(NOT(ISBLANK(K14)),NOT(ISBLANK(L14))),('Bewertung durch Anwender'!K14),IF(AND(NOT(ISBLANK(J14)),NOT(ISBLANK(I14))),('Bewertung durch Anwender'!I14),(Zielvereinbarung!G14))) -> 0 | H14: =Zielvereinbarung!G14 -> 0 | P14: ='BNB-System'!L10 -> 100 | Q14: 0
B15: ='BNB-System'!F11 -> 1.1.3 | C15: ='BNB-System'!G11 -> Ozonbildungspotenzial (POCP) | D15: ='BNB-System'!H11 -> 100 | E15: ='BNB-System'!K11 -> 0.0125 | G15: =IF(AND(NOT(ISBLANK(K15)),NOT(ISBLANK(L15))),('Bewertung durch Anwender'!K15),IF(AND(NOT(ISBLANK(J15)),NOT(ISBLANK(I15))),('Bewertung durch Anwender'!I15),(Zielvereinbarung!G15))) -> 0 | H15: =Zielvereinbarung!G15 -> 0 | P15: ='BNB-System'!L11 -> 100 | Q15: 0
B16: ='BNB-System'!F12 -> 1.1.4 | C16: ='BNB-System'!G12 -> Versauerungspotenzial (AP) | D16: ='BNB-System'!H12 -> 100 | E16: ='BNB-System'!K12 -> 0.0125 | G16: =IF(AND(NOT(ISBLANK(K16)),NOT(ISBLANK(L16))),('Bewertung durch Anwender'!K16),IF(AND(NOT(ISBLANK(J16)),NOT(ISBLANK(I16))),('Bewertung durch Anwender'!I16),(Zielvereinbarung!G16))) -> 0 | H16: =Zielvereinbarung!G16 -> 0 | P16: ='BNB-System'!L12 -> 100 | Q16: 0
B17: ='BNB-System'!F13 -> 1.1.5 | C17: ='BNB-System'!G13 -> Überdüngungspotenzial (EP) | D17: ='BNB-System'!H13 -> 100 | E17: ='BNB-System'!K13 -> 0.0125 | G17: =IF(AND(NOT(ISBLANK(K17)),NOT(ISBLANK(L17))),('Bewertung durch Anwender'!K17),IF(AND(NOT(ISBLANK(J17)),NOT(ISBLANK(I17))),('Bewertung durch Anwender'!I17),(Zielvereinbarung!G17))) -> 0 | H17: =Zielvereinbarung!G17 -> 0 | P17: ='BNB-System'!L13 -> 100 | Q17: 0
B18: ='BNB-System'!F14 -> 1.1.6 | C18: ='BNB-System'!G14 -> Risiken für die lokale Umwelt | D18: ='BNB-System'!H14 -> 100 | E18: ='BNB-System'!K14 -> 0.0375 | G18: =IF(AND(NOT(ISBLANK(K18)),NOT(ISBLANK(L18))),('Bewertung durch Anwender'!K18),IF(AND(NOT(ISBLANK(J18)),NOT(ISBLANK(I18))),('Bewertung durch Anwender'!I18),(Zielvereinbarung!G18))) -> 0 | H18: =Zielvereinbarung!G18 -> 0 | M18: =IF(SUM(M19:M23)>100,100,SUM(M19:M23)) -> 0 | N18: =IF(SUM(N19:N23)>100,100,SUM(N19:N23)) -> 0 | P18: ='BNB-System'!L14 -> 300 | Q18: 0
C19: ='BNB-System'!G15 -> Altsubstanz Q4 ; Neusubstanz Q5 | D19: ='BNB-System'!H15 -> 100 | G19: =IF(AND(NOT(ISBLANK(K19)),NOT(ISBLANK(L19))),('Bewertung durch Anwender'!K19),IF(AND(NOT(ISBLANK(J19)),NOT(ISBLANK(I19))),('Bewertung durch Anwender'!I19),(Zielvereinbarung!G19))) -> 0 | H19: =Zielvereinbarung!G19 -> 0
C20: ='BNB-System'!G16 -> Altsubstanz Q3 ; Neusubstanz Q4 | D20: ='BNB-System'!H16 -> 75 | G20: =IF(AND(NOT(ISBLANK(K20)),NOT(ISBLANK(L20))),('Bewertung durch Anwender'!K20),IF(AND(NOT(ISBLANK(J20)),NOT(ISBLANK(I20))),('Bewertung durch Anwender'!I20),(Zielvereinbarung!G20))) -> 0 | H20: =Zielvereinbarung!G20 -> 0
C21: ='BNB-System'!G17 -> Altsubstanz Q2 ; Neusubstanz Q3 | D21: ='BNB-System'!H17 -> 50 | G21: =IF(AND(NOT(ISBLANK(K21)),NOT(ISBLANK(L21))),('Bewertung durch Anwender'!K21),IF(AND(NOT(ISBLANK(J21)),NOT(ISBLANK(I21))),('Bewertung durch Anwender'!I21),(Zielvereinbarung!G21))) -> 0 | H21: =Zielvereinbarung!G21 -> 0
C22: ='BNB-System'!G18 -> Altsubstanz Q1 ; Neusubstanz Q2 | D22: ='BNB-System'!H18 -> 25 | G22: =IF(AND(NOT(ISBLANK(K22)),NOT(ISBLANK(L22))),('Bewertung durch Anwender'!K22),IF(AND(NOT(ISBLANK(J22)),NOT(ISBLANK(I22))),('Bewertung durch Anwender'!I22),(Zielvereinbarung!G22))) -> 0 | H22: =Zielvereinbarung!G22 -> 0
C23: ='BNB-System'!G19 -> Altsubstanz Q1 ; Neusubstanz Q1 | D23: ='BNB-System'!H19 -> 10 | G23: =IF(AND(NOT(ISBLANK(K23)),NOT(ISBLANK(L23))),('Bewertung durch Anwender'!K23),IF(AND(NOT(ISBLANK(J23)),NOT(ISBLANK(I23))),('Bewertung durch Anwender'!I23),(Zielvereinbarung!G23))) -> 0 | H23: =Zielvereinbarung!G23 -> 0
B24: ='BNB-System'!F20 -> 1.1.7 | C24: ='BNB-System'!G20 -> Nachhaltige Materialgewinnung / Biodiversität | D24: ='BNB-System'!H20 -> 100 | E24: ='BNB-System'!K20 -> 0.0125 | G24: =IF(AND(NOT(ISBLANK(K24)),NOT(ISBLANK(L24))),('Bewertung durch Anwender'!K24),IF(AND(NOT(ISBLANK(J24)),NOT(ISBLANK(I24))),('Bewertung durch Anwender'!I24),(Zielvereinbarung!G24))) -> 0 | H24: =Zielvereinbarung!G24 -> 0 | P24: ='BNB-System'!L20 -> 100 | Q24: =IF(ISNUMBER(E24*N24/100),E24*N24/100,0) -> 0
C25: ='BNB-System'!G21 -> Ressourceninanspruchnahme | P25: ='BNB-System'!L21 -> 0
B26: ='BNB-System'!F22 -> 1.2.1 | C26: ='BNB-System'!G22 -> Primärenergiebedarf | D26: ='BNB-System'!H22 -> 100 | E26: ='BNB-System'!K22 -> 0.0375 | G26: =IF(AND(NOT(ISBLANK(K26)),NOT(ISBLANK(L26))),('Bewertung durch Anwender'!K26),IF(AND(NOT(ISBLANK(J26)),NOT(ISBLANK(I26))),('Bewertung durch Anwender'!I26),(Zielvereinbarung!G26))) -> 0 | H26: =Zielvereinbarung!G26 -> 0 | M26: =SUM(M27:M28) -> 0 | N26: =SUM(N27:N28) -> 0 | P26: ='BNB-System'!L22 -> 300 | Q26: =IF(ISNUMBER(E26*N26/100),E26*N26/100,0) -> 0
C27: ='BNB-System'!G23 -> Primärenergiebedarf nicht erneuerbar (PEne) | D27: ='BNB-System'!H23 -> 60 | G27: =IF(AND(NOT(ISBLANK(K27)),NOT(ISBLANK(L27))),('Bewertung durch Anwender'!K27),IF(AND(NOT(ISBLANK(J27)),NOT(ISBLANK(I27))),('Bewertung durch Anwender'!I27),(Zielvereinbarung!G27))) -> 0 | H27: =Zielvereinbarung!G27 -> 0 | P27: ='BNB-System'!L23 -> 0
C28: ='BNB-System'!G24 -> Gesamtprimärenergiebedarf (PEges) | D28: ='BNB-System'!H24 -> 40 | G28: =IF(AND(NOT(ISBLANK(K28)),NOT(ISBLANK(L28))),('Bewertung durch Anwender'!K28),IF(AND(NOT(ISBLANK(J28)),NOT(ISBLANK(I28))),('Bewertung durch Anwender'!I28),(Zielvereinbarung!G28))) -> 0 | H28: =Zielvereinbarung!G28 -> 0
C29: ='BNB-System'!G25 -> Anteil der erneuerbaren Primärenergie (Pee) | D29: ='BNB-System'!H25 -> 20 | G29: =IF(AND(NOT(ISBLANK(K29)),NOT(ISBLANK(L29))),('Bewertung durch Anwender'!K29),IF(AND(NOT(ISBLANK(J29)),NOT(ISBLANK(I29))),('Bewertung durch Anwender'!I29),(Zielvereinbarung!G29))) -> 0 | H29: =Zielvereinbarung!G29 -> 0 | P29: ='BNB-System'!L25 -> 0
B30: ='BNB-System'!F26 -> 1.2.3 | C30: ='BNB-System'!G26 -> Trinkwasserbedarf und Abwasseraufkommen | D30: ='BNB-System'!H26 -> 100 | E30: ='BNB-System'!K26 -> 0.025 | G30: =IF(AND(NOT(ISBLANK(K30)),NOT(ISBLANK(L30))),('Bewertung durch Anwender'!K30),IF(AND(NOT(ISBLANK(J30)),NOT(ISBLANK(I30))),('Bewertung durch Anwender'!I30),(Zielvereinbarung!G30))) -> 0 | H30: =Zielvereinbarung!G30 -> 0 | P30: ='BNB-System'!L26 -> 200 | Q30: =IF(ISNUMBER(E30*N30/100),E30*N30/100,0) -> 0
B31: ='BNB-System'!F27 -> 1.2.4 | C31: ='BNB-System'!G27 -> Flächeninanspruchnahme | D31: ='BNB-System'!H27 -> 100 | E31: ='BNB-System'!K27 -> 0.025 | G31: =IF(AND(NOT(ISBLANK(K31)),NOT(ISBLANK(L31))),('Bewertung durch Anwender'!K31),IF(AND(NOT(ISBLANK(J31)),NOT(ISBLANK(I31))),('Bewertung durch Anwender'!I31),(Zielvereinbarung!G31))) -> 0 | H31: =Zielvereinbarung!G31 -> 0 | M31: =SUM(M32:M33) -> 0 | N31: =SUM(N32:N33) -> 0 | P31: ='BNB-System'!L27 -> 200 | Q31: =IF(ISNUMBER(E31*N31/100),E31*N31/100,0) -> 0
C32: ='BNB-System'!G28 -> Veränderung der Flächeninanspruchnahme | D32: ='BNB-System'!H28 -> 100 | G32: =IF(AND(NOT(ISBLANK(K32)),NOT(ISBLANK(L32))),('Bewertung durch Anwender'!K32),IF(AND(NOT(ISBLANK(J32)),NOT(ISBLANK(I32))),('Bewertung durch Anwender'!I32),(Zielvereinbarung!G32))) -> 0 | H32: =Zielvereinbarung!G32 -> 0
C33: ='BNB-System'!G29 -> Ausgleichsmaßnahmen und Flächenrecycling | D33: ='BNB-System'!H29 -> 40 | G33: =IF(AND(NOT(ISBLANK(K33)),NOT(ISBLANK(L33))),('Bewertung durch Anwender'!K33),IF(AND(NOT(ISBLANK(J33)),NOT(ISBLANK(I33))),('Bewertung durch Anwender'!I33),(Zielvereinbarung!G33))) -> 0 | H33: =Zielvereinbarung!G33 -> 0
P34: ='BNB-System'!L30 -> 0
B35: ='BNB-System'!F31 -> Ökonomische Qualität | E35: ='BNB-System'!K31 -> 0.225 | G35: =IF(AND(NOT(ISBLANK(K35)),NOT(ISBLANK(L35))),('Bewertung durch Anwender'!K35),IF(AND(NOT(ISBLANK(J35)),NOT(ISBLANK(I35))),('Bewertung durch Anwender'!I35),(Zielvereinbarung!G35))) -> 0 | H35: =Zielvereinbarung!G35 -> 0 | M35: =M38*($E$38/100)+M40*($E$40/100) -> 0 | N35: =N38*($E$38/100)+N40*($E$40/100) -> 0 | P35: ='BNB-System'!L31 -> 500
P36: ='BNB-System'!L32 -> 0
C37: ='BNB-System'!G33 -> Lebenszykluskosten | P37: ='BNB-System'!L33 -> 0
B38: ='BNB-System'!F34 -> 2.1.1 | C38: ='BNB-System'!G34 -> Gebäudebezogene Kosten im Lebenszyklus | D38: ='BNB-System'!H34 -> 100 | E38: ='BNB-System'!K34 -> 0.135 | G38: =IF(AND(NOT(ISBLANK(K38)),NOT(ISBLANK(L38))),('Bewertung durch Anwender'!K38),IF(AND(NOT(ISBLANK(J38)),NOT(ISBLANK(I38))),('Bewertung durch Anwender'!I38),(Zielvereinbarung!G38))) -> 0 | H38: =Zielvereinbarung!G38 -> 0 | P38: ='BNB-System'!L34 -> 300 | Q38: =IF(ISNUMBER(E38*N38/100),E38*N38/100,0) -> 0
C39: ='BNB-System'!G35 -> Wirtschaftlichkeit und Wertstabilität | P39: ='BNB-System'!L35 -> 0
B40: ='BNB-System'!F36 -> 2.2.2 | C40: ='BNB-System'!G36 -> Anpassungsfähigkeit | D40: ='BNB-System'!H36 -> 100 | E40: ='BNB-System'!K36 -> 0.09 | F40: o | G40: =IF(AND(NOT(ISBLANK(K40)),NOT(ISBLANK(L40))),('Bewertung durch Anwender'!K40),IF(AND(NOT(ISBLANK(J40)),NOT(ISBLANK(I40))),('Bewertung durch Anwender'!I40),(Zielvereinbarung!G40))) -> 0 | H40: =Zielvereinbarung!G40 -> 0 | M40: =SUM(M41:M46) -> 0 | N40: =SUM(N41:N46) -> 0 | P40: ='BNB-System'!L36 -> 200 | Q40: =IF(ISNUMBER(E40*N40/100),E40*N40/100,0) -> 0
C41: ='BNB-System'!G37 -> Lichte Raumhöhe | D41: ='BNB-System'!H37 -> 15 | G41: =IF(AND(NOT(ISBLANK(K41)),NOT(ISBLANK(L41))),('Bewertung durch Anwender'!K41),IF(AND(NOT(ISBLANK(J41)),NOT(ISBLANK(I41))),('Bewertung durch Anwender'!I41),(Zielvereinbarung!G41))) -> 0 | H41: =Zielvereinbarung!G41 -> 0 | P41: ='BNB-System'!L37 -> 0
C42: ='BNB-System'!G38 -> Gebäudetiefe | D42: ='BNB-System'!H38 -> 15 | G42: =IF(AND(NOT(ISBLANK(K42)),NOT(ISBLANK(L42))),('Bewertung durch Anwender'!K42),IF(AND(NOT(ISBLANK(J42)),NOT(ISBLANK(I42))),('Bewertung durch Anwender'!I42),(Zielvereinbarung!G42))) -> 0 | H42: =Zielvereinbarung!G42 -> 0 | P42: ='BNB-System'!L38 -> 0
C43: ='BNB-System'!G39 -> Vertikale Erschließung | D43: ='BNB-System'!H39 -> 15 | G43: =IF(AND(NOT(ISBLANK(K43)),NOT(ISBLANK(L43))),('Bewertung durch Anwender'!K43),IF(AND(NOT(ISBLANK(J43)),NOT(ISBLANK(I43))),('Bewertung durch Anwender'!I43),(Zielvereinbarung!G43))) -> 0 | H43: =Zielvereinbarung!G43 -> 0 | P43: ='BNB-System'!L39 -> 0
C44: ='BNB-System'!G40 -> Grundrisse | D44: ='BNB-System'!H40 -> 25 | G44: =IF(AND(NOT(ISBLANK(K44)),NOT(ISBLANK(L44))),('Bewertung durch Anwender'!K44),IF(AND(NOT(ISBLANK(J44)),NOT(ISBLANK(I44))),('Bewertung durch Anwender'!I44),(Zielvereinbarung!G44))) -> 0 | H44: =Zielvereinbarung!G44 -> 0 | P44: ='BNB-System'!L40 -> 0
C45: ='BNB-System'!G41 -> Konstruktion | D45: ='BNB-System'!H41 -> 20 | G45: =IF(AND(NOT(ISBLANK(K45)),NOT(ISBLANK(L45))),('Bewertung durch Anwender'!K45),IF(AND(NOT(ISBLANK(J45)),NOT(ISBLANK(I45))),('Bewertung durch Anwender'!I45),(Zielvereinbarung!G45))) -> 0 | H45: =Zielvereinbarung!G45 -> 0 | P45: ='BNB-System'!L41 -> 0
C46: ='BNB-System'!G42 -> Technische Ausstattung | D46: ='BNB-System'!H42 -> 10 | G46: =IF(AND(NOT(ISBLANK(K46)),NOT(ISBLANK(L46))),('Bewertung durch Anwender'!K46),IF(AND(NOT(ISBLANK(J46)),NOT(ISBLANK(I46))),('Bewertung durch Anwender'!I46),(Zielvereinbarung!G46))) -> 0 | H46: =Zielvereinbarung!G46 -> 0 | P46: ='BNB-System'!L42 -> 0
P47: ='BNB-System'!L43 -> 0
B48: ='BNB-System'!F44 -> Soziokulturelle und funktionale Qualität | E48: ='BNB-System'!K44 -> 0.225 | G48: =IF(AND(NOT(ISBLANK(K48)),NOT(ISBLANK(L48))),('Bewertung durch Anwender'!K48),IF(AND(NOT(ISBLANK(J48)),NOT(ISBLANK(I48))),('Bewertung durch Anwender'!I48),(Zielvereinbarung!G48))) -> 0 | H48: =Zielvereinbarung!G48 -> 0 | M48: =M51*($E$51/100)+M62*($E$62/100)+M65*($E$65/100)+M75*($E$75/100)+M83*($E$83/100)+M93*($E$93/100)+M98*($E$98/100)+M105*($E$105/100)+M106*($E$106/100)+M111*($E$111/100)+M116*($E$116/100)+M123*($E$123/100) -> 0 | N48: =N51*($E$51/100)+N62*($E$62/100)+N65*($E$65/100)+N75*($E$75/100)+N83*($E$83/100)+N93*($E$93/100)+N98*($E$98/100)+N105*($E$105/100)+N106*($E$106/100)+N111*($E$111/100)+N116*($E$116/100)+N123*($E$123/100) -> 0 | P48: ='BNB-System'!L44 -> 2700
P49: ='BNB-System'!L45 -> 0
C50: ='BNB-System'!G46 -> Gesundheit, Behaglichkeit und Nutzerzufriedenheit | P50: ='BNB-System'!L46 -> 0
B51: ='BNB-System'!F47 -> 3.1.1 | C51: ='BNB-System'!G47 -> Thermischer Komfort | D51: ='BNB-System'!H47 -> 100 | E51: ='BNB-System'!K47 -> 0.025 | G51: =IF(AND(NOT(ISBLANK(K51)),NOT(ISBLANK(L51))),('Bewertung durch Anwender'!K51),IF(AND(NOT(ISBLANK(J51)),NOT(ISBLANK(I51))),('Bewertung durch Anwender'!I51),(Zielvereinbarung!G51))) -> 0 | H51: =Zielvereinbarung!G51 -> 0 | M51: =SUM(M53:M56,M58:M61) -> 0 | N51: =SUM(N53:N56,N58:N61) -> 0 | P51: ='BNB-System'!L47 -> 300 | Q51: =IF(ISNUMBER(E51*N51/100),E51*N51/100,0) -> 0
C52: ='BNB-System'!G48 -> Winter | G52: =IF(Zielvereinbarung!E52=0,"",Zielvereinbarung!E52) ->  | P52: ='BNB-System'!L49 -> 0
C53: ='BNB-System'!G49 -> Operative Temperatur | D53: ='BNB-System'!H49 -> 10 | G53: =IF(AND(NOT(ISBLANK(K53)),NOT(ISBLANK(L53))),('Bewertung durch Anwender'!K53),IF(AND(NOT(ISBLANK(J53)),NOT(ISBLANK(I53))),('Bewertung durch Anwender'!I53),(Zielvereinbarung!G53))) -> 0 | H53: =Zielvereinbarung!G53 -> 0 | P53: ='BNB-System'!#REF! -> 
C54: ='BNB-System'!G50 -> Zugluft | D54: ='BNB-System'!H50 -> 10 | G54: =IF(AND(NOT(ISBLANK(K54)),NOT(ISBLANK(L54))),('Bewertung durch Anwender'!K54),IF(AND(NOT(ISBLANK(J54)),NOT(ISBLANK(I54))),('Bewertung durch Anwender'!I54),(Zielvereinbarung!G54))) -> 0 | H54: =Zielvereinbarung!G54 -> 0
C55: ='BNB-System'!G51 -> Stahlungstemperaturasymmetrie und Fußbodentemperatur | D55: ='BNB-System'!H51 -> 10 | G55: =IF(AND(NOT(ISBLANK(K55)),NOT(ISBLANK(L55))),('Bewertung durch Anwender'!K55),IF(AND(NOT(ISBLANK(J55)),NOT(ISBLANK(I55))),('Bewertung durch Anwender'!I55),(Zielvereinbarung!G55))) -> 0 | H55: =Zielvereinbarung!G55 -> 0
C56: ='BNB-System'!G52 -> Luftfeuchte | D56: ='BNB-System'!H52 -> 10 | G56: =IF(AND(NOT(ISBLANK(K56)),NOT(ISBLANK(L56))),('Bewertung durch Anwender'!K56),IF(AND(NOT(ISBLANK(J56)),NOT(ISBLANK(I56))),('Bewertung durch Anwender'!I56),(Zielvereinbarung!G56))) -> 0 | H56: =Zielvereinbarung!G56 -> 0
C57: ='BNB-System'!G53 -> Sommer | G57: =IF(Zielvereinbarung!E57=0,"",Zielvereinbarung!E57) -> 
C58: ='BNB-System'!G54 -> Operative Temperatur | D58: ='BNB-System'!H54 -> 30 | G58: =IF(AND(NOT(ISBLANK(K58)),NOT(ISBLANK(L58))),('Bewertung durch Anwender'!K58),IF(AND(NOT(ISBLANK(J58)),NOT(ISBLANK(I58))),('Bewertung durch Anwender'!I58),(Zielvereinbarung!G58))) -> 0 | H58: =Zielvereinbarung!G58 -> 0
C59: ='BNB-System'!G55 -> Zugluft | D59: ='BNB-System'!H55 -> 10 | G59: =IF(AND(NOT(ISBLANK(K59)),NOT(ISBLANK(L59))),('Bewertung durch Anwender'!K59),IF(AND(NOT(ISBLANK(J59)),NOT(ISBLANK(I59))),('Bewertung durch Anwender'!I59),(Zielvereinbarung!G59))) -> 0 | H59: =Zielvereinbarung!G59 -> 0
C60: ='BNB-System'!G56 -> Stahlungstemperaturasymmetrie und Fußbodentemperatur | D60: ='BNB-System'!H56 -> 10 | G60: =IF(AND(NOT(ISBLANK(K60)),NOT(ISBLANK(L60))),('Bewertung durch Anwender'!K60),IF(AND(NOT(ISBLANK(J60)),NOT(ISBLANK(I60))),('Bewertung durch Anwender'!I60),(Zielvereinbarung!G60))) -> 0 | H60: =Zielvereinbarung!G60 -> 0
C61: ='BNB-System'!G57 -> Luftfeuchte | D61: ='BNB-System'!H57 -> 10 | G61: =IF(AND(NOT(ISBLANK(K61)),NOT(ISBLANK(L61))),('Bewertung durch Anwender'!K61),IF(AND(NOT(ISBLANK(J61)),NOT(ISBLANK(I61))),('Bewertung durch Anwender'!I61),(Zielvereinbarung!G61))) -> 0 | H61: =Zielvereinbarung!G61 -> 0
B62: ='BNB-System'!F58 -> 3.1.3 | C62: ='BNB-System'!G58 -> Innenraumlufthygiene | D62: ='BNB-System'!H58 -> 100 | E62: ='BNB-System'!K58 -> 0.025 | G62: =IF(AND(NOT(ISBLANK(K62)),NOT(ISBLANK(L62))),('Bewertung durch Anwender'!K62),IF(AND(NOT(ISBLANK(J62)),NOT(ISBLANK(I62))),('Bewertung durch Anwender'!I62),(Zielvereinbarung!G62))) -> 0 | H62: =Zielvereinbarung!G62 -> 0 | M62: =SUM(M63:M64) -> 0 | N62: =SUM(N63:N64) -> 0 | P62: ='BNB-System'!L58 -> 300 | Q62: =IF(ISNUMBER(E62*N62/100),E62*N62/100,0) -> 0
C63: ='BNB-System'!G59 -> Flüchtige organische Stoffe (VOC) und Formaldehyd | D63: ='BNB-System'!H59 -> 50 | G63: =IF(AND(NOT(ISBLANK(K63)),NOT(ISBLANK(L63))),('Bewertung durch Anwender'!K63),IF(AND(NOT(ISBLANK(J63)),NOT(ISBLANK(I63))),('Bewertung durch Anwender'!I63),(Zielvereinbarung!G63))) -> 0 | H63: =Zielvereinbarung!G63 -> 0 | P63: ='BNB-System'!L59 -> 0
C64: ='BNB-System'!G60 -> Personenbezogene Lüftungsrate | D64: ='BNB-System'!H60 -> 50 | G64: =IF(AND(NOT(ISBLANK(K64)),NOT(ISBLANK(L64))),('Bewertung durch Anwender'!K64),IF(AND(NOT(ISBLANK(J64)),NOT(ISBLANK(I64))),('Bewertung durch Anwender'!I64),(Zielvereinbarung!G64))) -> 0 | H64: =Zielvereinbarung!G64 -> 0 | P64: ='BNB-System'!L60 -> 0
B65: ='BNB-System'!F61 -> 3.1.4 | C65: ='BNB-System'!G61 -> Akustischer Komfort | D65: ='BNB-System'!H61 -> 100 | E65: ='BNB-System'!K61 -> 0.01666666667 | G65: =IF(AND(NOT(ISBLANK(K65)),NOT(ISBLANK(L65))),('Bewertung durch Anwender'!K65),IF(AND(NOT(ISBLANK(J65)),NOT(ISBLANK(I65))),('Bewertung durch Anwender'!I65),(Zielvereinbarung!G65))) -> 0 | H65: =Zielvereinbarung!G65 -> 0 | M65: =SUM(M66:M74) -> 0 | N65: =SUM(N66:N74) -> 0 | P65: ='BNB-System'!L61 -> 200 | Q65: =IF(ISNUMBER(E65*N65/100),E65*N65/100,0) -> 0
C66: ='BNB-System'!G62 -> Räume Gruppe A | D66: ='BNB-System'!H63 -> 100 | H66: =Zielvereinbarung!G66 -> 0 | P66: ='BNB-System'!L63 -> 0
C67: ='BNB-System'!G63 -> Musik | D67: ='BNB-System'!H64 -> 100 | G67: =IF(AND(NOT(ISBLANK(K67)),NOT(ISBLANK(L67))),('Bewertung durch Anwender'!K67),IF(AND(NOT(ISBLANK(J67)),NOT(ISBLANK(I67))),('Bewertung durch Anwender'!I67),(Zielvereinbarung!G68))) -> 0 | H67: =Zielvereinbarung!G68 -> 0 | P67: ='BNB-System'!L64 -> 0
C68: ='BNB-System'!G64 -> Sprache/ Vortrag | G68: =IF(AND(NOT(ISBLANK(K68)),NOT(ISBLANK(L68))),('Bewertung durch Anwender'!K68),IF(AND(NOT(ISBLANK(J68)),NOT(ISBLANK(I68))),('Bewertung durch Anwender'!I68),(Zielvereinbarung!G68))) -> 0
C69: ='BNB-System'!G65 -> Unterricht Kommunikation | D69: ='BNB-System'!H65 -> 100 | G69: =IF(AND(NOT(ISBLANK(K69)),NOT(ISBLANK(L69))),('Bewertung durch Anwender'!K69),IF(AND(NOT(ISBLANK(J69)),NOT(ISBLANK(I69))),('Bewertung durch Anwender'!I69),(Zielvereinbarung!G69))) -> 0 | H69: =Zielvereinbarung!G69 -> 0 | P69: ='BNB-System'!L65 -> 0
C70: ='BNB-System'!G66 -> Sport | D70: ='BNB-System'!H66 -> 100 | G70: =IF(AND(NOT(ISBLANK(K70)),NOT(ISBLANK(L70))),('Bewertung durch Anwender'!K70),IF(AND(NOT(ISBLANK(J70)),NOT(ISBLANK(I70))),('Bewertung durch Anwender'!I70),(Zielvereinbarung!G70))) -> 0 | H70: =Zielvereinbarung!G70 -> 0 | P70: ='BNB-System'!L66 -> 0
C71: ='BNB-System'!G67 -> Räume Gruppe B
C72: ='BNB-System'!G68 -> Einzel- und Mehrpersonenbüros bis 100 m3 | D72: ='BNB-System'!H68 -> 100 | G72: =IF(AND(NOT(ISBLANK(K72)),NOT(ISBLANK(L72))),('Bewertung durch Anwender'!K72),IF(AND(NOT(ISBLANK(J72)),NOT(ISBLANK(I72))),('Bewertung durch Anwender'!I72),(Zielvereinbarung!G72))) -> 0 | H72: =Zielvereinbarung!G72 -> 0 | P72: ='BNB-System'!L68 -> 0
C73: ='BNB-System'!G69 -> Mehrpersonenbüros über 100 m3 | D73: ='BNB-System'!H69 -> 100 | G73: =IF(AND(NOT(ISBLANK(K73)),NOT(ISBLANK(L73))),('Bewertung durch Anwender'!K73),IF(AND(NOT(ISBLANK(J73)),NOT(ISBLANK(I73))),('Bewertung durch Anwender'!I73),(Zielvereinbarung!G73))) -> 0 | H73: =Zielvereinbarung!G73 -> 0 | P73: ='BNB-System'!L69 -> 0
C74: ='BNB-System'!G70 -> Weitere Räume | D74: ='BNB-System'!H70 -> 100 | G74: =IF(AND(NOT(ISBLANK(K74)),NOT(ISBLANK(L74))),('Bewertung durch Anwender'!K74),IF(AND(NOT(ISBLANK(J74)),NOT(ISBLANK(I74))),('Bewertung durch Anwender'!I74),(Zielvereinbarung!G74))) -> 0 | H74: =Zielvereinbarung!G74 -> 0 | P74: ='BNB-System'!L70 -> 0
B75: ='BNB-System'!F71 -> 3.1.5 | C75: ='BNB-System'!G71 -> Visueller Komfort | D75: ='BNB-System'!H71 -> 100 | E75: ='BNB-System'!K71 -> 0.01666666667 | G75: =IF(AND(NOT(ISBLANK(K75)),NOT(ISBLANK(L75))),('Bewertung durch Anwender'!K75),IF(AND(NOT(ISBLANK(J75)),NOT(ISBLANK(I75))),('Bewertung durch Anwender'!I75),(Zielvereinbarung!G75))) -> 0 | H75: =Zielvereinbarung!G75 -> 0 | M75: =SUM(M76:M82) -> 0 | N75: =SUM(N76:N82) -> 0 | P75: ='BNB-System'!L71 -> 200 | Q75: =IF(ISNUMBER(E75*N75/100),E75*N75/100,0) -> 0
C76: ='BNB-System'!G72 -> Tageslichtverfügbarkeit Gesamtgebäude | D76: ='BNB-System'!H72 -> 15 | G76: =IF(AND(NOT(ISBLANK(K76)),NOT(ISBLANK(L76))),('Bewertung durch Anwender'!K76),IF(AND(NOT(ISBLANK(J76)),NOT(ISBLANK(I76))),('Bewertung durch Anwender'!I76),(Zielvereinbarung!G76))) -> 0 | H76: =Zielvereinbarung!G76 -> 0 | P76: ='BNB-System'!L72 -> 0
C77: ='BNB-System'!G73 -> Tageslichtverfügbarkeit ständige Arbeitsplätze | D77: ='BNB-System'!H73 -> 15 | G77: =IF(AND(NOT(ISBLANK(K77)),NOT(ISBLANK(L77))),('Bewertung durch Anwender'!K77),IF(AND(NOT(ISBLANK(J77)),NOT(ISBLANK(I77))),('Bewertung durch Anwender'!I77),(Zielvereinbarung!G77))) -> 0 | H77: =Zielvereinbarung!G77 -> 0 | P77: ='BNB-System'!L73 -> 0
C78: ='BNB-System'!G74 -> Nachweis de Sichtverbindung außen | D78: ='BNB-System'!H74 -> 35 | G78: =IF(AND(NOT(ISBLANK(K78)),NOT(ISBLANK(L78))),('Bewertung durch Anwender'!K78),IF(AND(NOT(ISBLANK(J78)),NOT(ISBLANK(I78))),('Bewertung durch Anwender'!I78),(Zielvereinbarung!G78))) -> 0 | H78: =Zielvereinbarung!G78 -> 0 | P78: ='BNB-System'!L74 -> 0
C79: ='BNB-System'!G75 -> Blendfreiheit Tageslicht | D79: ='BNB-System'!H75 -> 10 | G79: =IF(AND(NOT(ISBLANK(K79)),NOT(ISBLANK(L79))),('Bewertung durch Anwender'!K79),IF(AND(NOT(ISBLANK(J79)),NOT(ISBLANK(I79))),('Bewertung durch Anwender'!I79),(Zielvereinbarung!G79))) -> 0 | H79: =Zielvereinbarung!G79 -> 0 | P79: ='BNB-System'!L75 -> 0
C80: ='BNB-System'!G76 -> Blendfreiheit Kunstlicht | D80: ='BNB-System'!H76 -> 5 | G80: =IF(AND(NOT(ISBLANK(K80)),NOT(ISBLANK(L80))),('Bewertung durch Anwender'!K80),IF(AND(NOT(ISBLANK(J80)),NOT(ISBLANK(I80))),('Bewertung durch Anwender'!I80),(Zielvereinbarung!G80))) -> 0 | H80: =Zielvereinbarung!G80 -> 0 | P80: ='BNB-System'!L76 -> 0
C81: ='BNB-System'!G77 -> Lichtverteilung | D81: ='BNB-System'!H77 -> 20 | G81: =IF(AND(NOT(ISBLANK(K81)),NOT(ISBLANK(L81))),('Bewertung durch Anwender'!K81),IF(AND(NOT(ISBLANK(J81)),NOT(ISBLANK(I81))),('Bewertung durch Anwender'!I81),(Zielvereinbarung!G81))) -> 0 | H81: =Zielvereinbarung!G81 -> 0 | P81: ='BNB-System'!L77 -> 0
C82: ='BNB-System'!G78 -> Farbwiedergabe | D82: ='BNB-System'!H78 -> 10 | G82: =IF(AND(NOT(ISBLANK(K82)),NOT(ISBLANK(L82))),('Bewertung durch Anwender'!K82),IF(AND(NOT(ISBLANK(J82)),NOT(ISBLANK(I82))),('Bewertung durch Anwender'!I82),(Zielvereinbarung!G82))) -> 0 | H82: =Zielvereinbarung!G82 -> 0 | P82: ='BNB-System'!L78 -> 0
B83: ='BNB-System'!F79 -> 3.1.6 | C83: ='BNB-System'!G79 -> Einflussnahmemöglichkeiten durch Nutzer | D83: ='BNB-System'!H79 -> 100 | E83: ='BNB-System'!K79 -> 0.01666666667 | G83: =IF(AND(NOT(ISBLANK(K83)),NOT(ISBLANK(L83))),('Bewertung durch Anwender'!K83),IF(AND(NOT(ISBLANK(J83)),NOT(ISBLANK(I83))),('Bewertung durch Anwender'!I83),(Zielvereinbarung!G83))) -> 0 | H83: =Zielvereinbarung!G83 -> 0 | M83: =SUM(M84:M92) -> 0 | N83: =SUM(N84:N92) -> 0 | P83: ='BNB-System'!L79 -> 200 | Q83: =IF(ISNUMBER(E83*N83/100),E83*N83/100,0) -> 0
C84: ='BNB-System'!G80 -> Lüftung | D84: ='BNB-System'!H80 -> 10 | G84: =IF(AND(NOT(ISBLANK(K84)),NOT(ISBLANK(L84))),('Bewertung durch Anwender'!K84),IF(AND(NOT(ISBLANK(J84)),NOT(ISBLANK(I84))),('Bewertung durch Anwender'!I84),(Zielvereinbarung!G84))) -> 0 | H84: =Zielvereinbarung!G84 -> 0 | P84: ='BNB-System'!L80 -> 0
C85: ='BNB-System'!G81 -> Sonnenschutz | D85: ='BNB-System'!H81 -> 10 | G85: =IF(AND(NOT(ISBLANK(K85)),NOT(ISBLANK(L85))),('Bewertung durch Anwender'!K85),IF(AND(NOT(ISBLANK(J85)),NOT(ISBLANK(I85))),('Bewertung durch Anwender'!I85),(Zielvereinbarung!G85))) -> 0 | H85: =Zielvereinbarung!G85 -> 0 | P85: ='BNB-System'!L81 -> 0
C86: ='BNB-System'!G82 -> Blendschutz | D86: ='BNB-System'!H82 -> 10 | G86: =IF(AND(NOT(ISBLANK(K86)),NOT(ISBLANK(L86))),('Bewertung durch Anwender'!K86),IF(AND(NOT(ISBLANK(J86)),NOT(ISBLANK(I86))),('Bewertung durch Anwender'!I86),(Zielvereinbarung!G86))) -> 0 | H86: =Zielvereinbarung!G86 -> 0 | P86: ='BNB-System'!L82 -> 0
C87: ='BNB-System'!G83 -> Temperaturen während der Heizperiode | D87: ='BNB-System'!H83 -> 10 | G87: =IF(AND(NOT(ISBLANK(K87)),NOT(ISBLANK(L87))),('Bewertung durch Anwender'!K87),IF(AND(NOT(ISBLANK(J87)),NOT(ISBLANK(I87))),('Bewertung durch Anwender'!I87),(Zielvereinbarung!G87))) -> 0 | H87: =Zielvereinbarung!G87 -> 0 | P87: ='BNB-System'!L83 -> 0
C88: ='BNB-System'!G84 -> Temperaturen außerhalb der Heizperiode | D88: ='BNB-System'!H84 -> 15 | G88: =IF(AND(NOT(ISBLANK(K88)),NOT(ISBLANK(L88))),('Bewertung durch Anwender'!K88),IF(AND(NOT(ISBLANK(J88)),NOT(ISBLANK(I88))),('Bewertung durch Anwender'!I88),(Zielvereinbarung!G88))) -> 0 | H88: =Zielvereinbarung!G88 -> 0 | P88: ='BNB-System'!L84 -> 0
C89: ='BNB-System'!G85 -> Steuerung von Tageslicht | D89: ='BNB-System'!H85 -> 10 | G89: =IF(AND(NOT(ISBLANK(K89)),NOT(ISBLANK(L89))),('Bewertung durch Anwender'!K89),IF(AND(NOT(ISBLANK(J89)),NOT(ISBLANK(I89))),('Bewertung durch Anwender'!I89),(Zielvereinbarung!G89))) -> 0 | H89: =Zielvereinbarung!G89 -> 0 | P89: ='BNB-System'!L85 -> 0
C90: ='BNB-System'!G86 -> Steuerung von Kunstlicht | D90: ='BNB-System'!H86 -> 10 | G90: =IF(AND(NOT(ISBLANK(K90)),NOT(ISBLANK(L90))),('Bewertung durch Anwender'!K90),IF(AND(NOT(ISBLANK(J90)),NOT(ISBLANK(I90))),('Bewertung durch Anwender'!I90),(Zielvereinbarung!G90))) -> 0 | H90: =Zielvereinbarung!G90 -> 0
C91: ='BNB-System'!G87 -> Bedienfreundlichkeit | D91: ='BNB-System'!H87 -> 10 | G91: =IF(AND(NOT(ISBLANK(K91)),NOT(ISBLANK(L91))),('Bewertung durch Anwender'!K91),IF(AND(NOT(ISBLANK(J91)),NOT(ISBLANK(I91))),('Bewertung durch Anwender'!I91),(Zielvereinbarung!G91))) -> 0 | H91: =Zielvereinbarung!G91 -> 0 | P91: ='BNB-System'!L87 -> 0
C92: ='BNB-System'!G88 -> Funktionskonzept der Haustechnik | D92: ='BNB-System'!H88 -> 15 | G92: =IF(AND(NOT(ISBLANK(K92)),NOT(ISBLANK(L92))),('Bewertung durch Anwender'!K92),IF(AND(NOT(ISBLANK(J92)),NOT(ISBLANK(I92))),('Bewertung durch Anwender'!I92),(Zielvereinbarung!G92))) -> 0 | H92: =Zielvereinbarung!G92 -> 0 | P92: ='BNB-System'!L88 -> 0
B93: ='BNB-System'!F89 -> 3.1.7 | C93: ='BNB-System'!G89 -> Aufenthaltsmerkmale im Außenraum | D93: ='BNB-System'!H89 -> 100 | E93: ='BNB-System'!K89 -> 0.01666666667 | G93: =IF(AND(NOT(ISBLANK(K93)),NOT(ISBLANK(L93))),('Bewertung durch Anwender'!K93),IF(AND(NOT(ISBLANK(J93)),NOT(ISBLANK(I93))),('Bewertung durch Anwender'!I93),(Zielvereinbarung!G93))) -> 0 | H93: =Zielvereinbarung!G93 -> 0 | M93: =SUM(M94:M97) -> 0 | N93: =SUM(N94:N97) -> 0 | P93: ='BNB-System'!L89 -> 200 | Q93: =IF(ISNUMBER(E93*N93/100),E93*N93/100,0) -> 0
C94: ='BNB-System'!G90 -> Anzahl und Vielfalt Sitzgelegenheiten | D94: ='BNB-System'!H90 -> 30 | G94: =IF(AND(NOT(ISBLANK(K94)),NOT(ISBLANK(L94))),('Bewertung durch Anwender'!K94),IF(AND(NOT(ISBLANK(J94)),NOT(ISBLANK(I94))),('Bewertung durch Anwender'!I94),(Zielvereinbarung!G94))) -> 0 | H94: =Zielvereinbarung!G94 -> 0 | P94: ='BNB-System'!L90 -> 0
C95: ='BNB-System'!G91 -> Anzahlund Vielfalt der Spiel- und Sportmöglichkeiten | D95: ='BNB-System'!H91 -> 15 | G95: =IF(AND(NOT(ISBLANK(K95)),NOT(ISBLANK(L95))),('Bewertung durch Anwender'!K95),IF(AND(NOT(ISBLANK(J95)),NOT(ISBLANK(I95))),('Bewertung durch Anwender'!I95),(Zielvereinbarung!G95))) -> 0 | H95: =Zielvereinbarung!G95 -> 0 | P95: ='BNB-System'!L91 -> 0
C96: ='BNB-System'!G92 -> Zuordnung von Freibereichen zu Innenräumen | D96: ='BNB-System'!H92 -> 20 | G96: =IF(AND(NOT(ISBLANK(K96)),NOT(ISBLANK(L96))),('Bewertung durch Anwender'!K96),IF(AND(NOT(ISBLANK(J96)),NOT(ISBLANK(I96))),('Bewertung durch Anwender'!I96),(Zielvereinbarung!G96))) -> 0 | H96: =Zielvereinbarung!G96 -> 0 | P96: ='BNB-System'!L92 -> 0
C97: ='BNB-System'!G93 -> Ausstattungsmerkmale | D97: ='BNB-System'!H93 -> 39 | G97: =IF(AND(NOT(ISBLANK(K97)),NOT(ISBLANK(L97))),('Bewertung durch Anwender'!K97),IF(AND(NOT(ISBLANK(J97)),NOT(ISBLANK(I97))),('Bewertung durch Anwender'!I97),(Zielvereinbarung!G97))) -> 0 | H97: =Zielvereinbarung!G97 -> 0 | P97: ='BNB-System'!L93 -> 0
B98: ='BNB-System'!F94 -> 3.1.8 | C98: ='BNB-System'!G94 -> Sicherheit | D98: ='BNB-System'!H94 -> 100 | E98: ='BNB-System'!K94 -> 0.008333333333 | G98: =IF(AND(NOT(ISBLANK(K98)),NOT(ISBLANK(L98))),('Bewertung durch Anwender'!K98),IF(AND(NOT(ISBLANK(J98)),NOT(ISBLANK(I98))),('Bewertung durch Anwender'!I98),(Zielvereinbarung!G98))) -> 0 | H98: =Zielvereinbarung!G98 -> 0 | P98: ='BNB-System'!L94 -> 100 | Q98: =IF(ISNUMBER(E98*N98/100),E98*N98/100,0) -> 0
B99: ='BNB-System'!F95 -> 3.1.9 | C99: ='BNB-System'!G95 -> Innenraumqualität | D99: ='BNB-System'!H95 -> 100 | E99: ='BNB-System'!K95 -> 0.025 | G99: =IF(AND(NOT(ISBLANK(K99)),NOT(ISBLANK(L99))),('Bewertung durch Anwender'!K99),IF(AND(NOT(ISBLANK(J99)),NOT(ISBLANK(I99))),('Bewertung durch Anwender'!I99),(Zielvereinbarung!G99))) -> 0 | H99: =Zielvereinbarung!G99 -> 0 | M99: =SUM(M100:M103) -> 0 | N99: =SUM(N100:N103) -> 0
C100: ='BNB-System'!G96 -> Aufenthaltsqualitäten der Erschließungsflächen | D100: ='BNB-System'!H96 -> 45 | G100: =IF(AND(NOT(ISBLANK(K100)),NOT(ISBLANK(L100))),('Bewertung durch Anwender'!K100),IF(AND(NOT(ISBLANK(J100)),NOT(ISBLANK(I100))),('Bewertung durch Anwender'!I100),(Zielvereinbarung!G100))) -> 0 | H100: =Zielvereinbarung!G100 -> 0
C101: ='BNB-System'!G97 -> Innere Sitzbeziehung | D101: ='BNB-System'!H97 -> 15 | G101: =IF(AND(NOT(ISBLANK(K101)),NOT(ISBLANK(L101))),('Bewertung durch Anwender'!K101),IF(AND(NOT(ISBLANK(J101)),NOT(ISBLANK(I101))),('Bewertung durch Anwender'!I101),(Zielvereinbarung!G101))) -> 0 | H101: =Zielvereinbarung!G101 -> 0
C102: ='BNB-System'!G98 -> Flexibilität der Raumnutzung | D102: ='BNB-System'!H98 -> 30 | G102: =IF(AND(NOT(ISBLANK(K102)),NOT(ISBLANK(L102))),('Bewertung durch Anwender'!K102),IF(AND(NOT(ISBLANK(J102)),NOT(ISBLANK(I102))),('Bewertung durch Anwender'!I102),(Zielvereinbarung!G102))) -> 0 | H102: =Zielvereinbarung!G102 -> 0
C103: ='BNB-System'!G99 -> Aufbewahrungsmöglichkeiten | D103: ='BNB-System'!H99 -> 40 | G103: =IF(AND(NOT(ISBLANK(K103)),NOT(ISBLANK(L103))),('Bewertung durch Anwender'!K103),IF(AND(NOT(ISBLANK(J103)),NOT(ISBLANK(I103))),('Bewertung durch Anwender'!I103),(Zielvereinbarung!G103))) -> 0 | H103: =Zielvereinbarung!G103 -> 0
C104: ='BNB-System'!G100 -> Funktionalität | P104: ='BNB-System'!L100 -> 0
B105: ='BNB-System'!F101 -> 3.2.1 | C105: ='BNB-System'!G101 -> Barrierefreiheit | D105: ='BNB-System'!H101 -> 100 | E105: ='BNB-System'!K101 -> 0.01666666667 | G105: =IF(AND(NOT(ISBLANK(K105)),NOT(ISBLANK(L105))),('Bewertung durch Anwender'!K105),IF(AND(NOT(ISBLANK(J105)),NOT(ISBLANK(I105))),('Bewertung durch Anwender'!I105),(Zielvereinbarung!G105))) -> 0 | H105: =Zielvereinbarung!G105 -> 0 | P105: ='BNB-System'!L101 -> 200 | Q105: =IF(ISNUMBER(E105*N105/100),E105*N105/100,0) -> 0
B106: ='BNB-System'!F102 -> 3.2.4 | C106: ='BNB-System'!G102 -> Zugänglichkeit | D106: ='BNB-System'!H102 -> 100 | E106: ='BNB-System'!K102 -> 0.01666666667 | G106: =IF(AND(NOT(ISBLANK(K106)),NOT(ISBLANK(L106))),('Bewertung durch Anwender'!K106),IF(AND(NOT(ISBLANK(J106)),NOT(ISBLANK(I106))),('Bewertung durch Anwender'!I106),(Zielvereinbarung!G106))) -> 0 | H106: =Zielvereinbarung!G106 -> 0 | M106: =SUM(M107:M110) -> 0 | N106: =SUM(N107:N110) -> 0 | P106: ='BNB-System'!L102 -> 200 | Q106: =IF(ISNUMBER(E106*N106/100),E106*N106/100,0) -> 0
C107: ='BNB-System'!G103 -> Grundsätzliche öffentliche Zugänglichkeit des Gebäudes | D107: ='BNB-System'!H103 -> 20 | G107: =IF(AND(NOT(ISBLANK(K107)),NOT(ISBLANK(L107))),('Bewertung durch Anwender'!K107),IF(AND(NOT(ISBLANK(J107)),NOT(ISBLANK(I107))),('Bewertung durch Anwender'!I107),(Zielvereinbarung!G107))) -> 0 | H107: =Zielvereinbarung!G107 -> 0 | P107: ='BNB-System'!L103 -> 0
C108: ='BNB-System'!G104 -> Qualitative Merkmale der öffentlichen Zugänglichkeit des Gebäudes | D108: ='BNB-System'!H104 -> 50 | G108: =IF(AND(NOT(ISBLANK(K108)),NOT(ISBLANK(L108))),('Bewertung durch Anwender'!K108),IF(AND(NOT(ISBLANK(J108)),NOT(ISBLANK(I108))),('Bewertung durch Anwender'!I108),(Zielvereinbarung!G108))) -> 0 | H108: =Zielvereinbarung!G108 -> 0 | P108: ='BNB-System'!L104 -> 0
C109: ='BNB-System'!G105 -> Nutzungsmerkmale der Zugänglichkeit | D109: ='BNB-System'!H105 -> 50 | G109: =IF(AND(NOT(ISBLANK(K109)),NOT(ISBLANK(L109))),('Bewertung durch Anwender'!K109),IF(AND(NOT(ISBLANK(J109)),NOT(ISBLANK(I109))),('Bewertung durch Anwender'!I109),(Zielvereinbarung!G109))) -> 0 | H109: =Zielvereinbarung!G109 -> 0 | P109: ='BNB-System'!L105 -> 0
C110: ='BNB-System'!G106 -> Qualitative Aspekte der öffentlichen Zugänglichkeit der Freiflächen | D110: ='BNB-System'!H106 -> 20 | G110: =IF(AND(NOT(ISBLANK(K110)),NOT(ISBLANK(L110))),('Bewertung durch Anwender'!K110),IF(AND(NOT(ISBLANK(J110)),NOT(ISBLANK(I110))),('Bewertung durch Anwender'!I110),(Zielvereinbarung!G110))) -> 0 | H110: =Zielvereinbarung!G110 -> 0 | P110: ='BNB-System'!L106 -> 0
B111: ='BNB-System'!F107 -> 3.2.5 | C111: ='BNB-System'!G107 -> Mobilitätsinfrastruktur | D111: ='BNB-System'!H107 -> 100 | E111: ='BNB-System'!K107 -> 0.008333333333 | G111: =IF(AND(NOT(ISBLANK(K111)),NOT(ISBLANK(L111))),('Bewertung durch Anwender'!K111),IF(AND(NOT(ISBLANK(J111)),NOT(ISBLANK(I111))),('Bewertung durch Anwender'!I111),(Zielvereinbarung!G111))) -> 0 | H111: =Zielvereinbarung!G111 -> 0 | M111: =IF(SUM(M112:M114)>100,100,SUM(M112:M114)) -> 0 | N111: =IF(SUM(N112:N114)>100,100,SUM(N112:N114)) -> 0 | P111: ='BNB-System'!L107 -> 100 | Q111: =IF(ISNUMBER(E111*N111/100),E111*N111/100,0) -> 0
C112: ='BNB-System'!G108 -> Anzahl der Fahrradstellplätze | G112: =IF(AND(NOT(ISBLANK(K112)),NOT(ISBLANK(L112))),('Bewertung durch Anwender'!K112),IF(AND(NOT(ISBLANK(J112)),NOT(ISBLANK(I112))),('Bewertung durch Anwender'!I112),(Zielvereinbarung!G112))) -> 0 | P112: ='BNB-System'!L108 -> 0
C113: ='BNB-System'!G109 -> Anzahl der Lademöglichkeiten und Carsharing-Stellplätze | G113: =IF(AND(NOT(ISBLANK(K113)),NOT(ISBLANK(L113))),('Bewertung durch Anwender'!K113),IF(AND(NOT(ISBLANK(J113)),NOT(ISBLANK(I113))),('Bewertung durch Anwender'!I113),(Zielvereinbarung!G113))) -> 0 | P113: ='BNB-System'!L109 -> 0
C114: ='BNB-System'!G110 -> Qualitative Anforderungen an Fahrradstellplätze | G114: =IF(AND(NOT(ISBLANK(K114)),NOT(ISBLANK(L114))),('Bewertung durch Anwender'!K114),IF(AND(NOT(ISBLANK(J114)),NOT(ISBLANK(I114))),('Bewertung durch Anwender'!I114),(Zielvereinbarung!G114))) -> 0 | P114: ='BNB-System'!L110 -> 0
C115: ='BNB-System'!G111 -> Sicherung der Gestaltungsqualität | P115: ='BNB-System'!L111 -> 0
B116: ='BNB-System'!F112 -> 3.3.1 | C116: ='BNB-System'!G112 -> Gestalterische und städtebauliche Qualität | D116: ='BNB-System'!H112 -> 100 | E116: ='BNB-System'!K112 -> 0.025 | G116: =IF(AND(NOT(ISBLANK(K116)),NOT(ISBLANK(L116))),('Bewertung durch Anwender'!K116),IF(AND(NOT(ISBLANK(J116)),NOT(ISBLANK(I116))),('Bewertung durch Anwender'!I116),(Zielvereinbarung!G116))) -> 0 | H116: =Zielvereinbarung!G116 -> 0 | M116: =IF(AND(M117>0,M121<=M122),SUM(M117:M120),IF(AND(M117>0,M122<=M121),SUM(M117:M120),IF(M121>0,M121,IF(M122>0,M122,)))) -> 0 | N116: =IF(AND(N117>0,N121<=N122),SUM(N117:N120),IF(AND(N117>0,N122<=N121),SUM(N117:N120),IF(N121>0,N121,IF(N122>0,N122,)))) -> 0 | P116: ='BNB-System'!L112 -> 300 | Q116: =IF(ISNUMBER(E116*N116/100),E116*N116/100,0) -> 0
C117: ='BNB-System'!G113 -> Fortentwicklung der gestalterischen und städtebaulichen Qualität des Bestandsgebäudes | D117: ='BNB-System'!H113 -> 40 | G117: =IF(AND(NOT(ISBLANK(K117)),NOT(ISBLANK(L117))),('Bewertung durch Anwender'!K117),IF(AND(NOT(ISBLANK(J117)),NOT(ISBLANK(I117))),('Bewertung durch Anwender'!I117),(Zielvereinbarung!G117))) -> 0 | H117: =Zielvereinbarung!G117 -> 0 | P117: ='BNB-System'!L113 -> 0
C118: ='BNB-System'!G114 -> Wettbewerbsverfahren | D118: ='BNB-System'!H114 -> 35 | G118: =IF(AND(NOT(ISBLANK(K118)),NOT(ISBLANK(L118))),('Bewertung durch Anwender'!K118),IF(AND(NOT(ISBLANK(J118)),NOT(ISBLANK(I118))),('Bewertung durch Anwender'!I118),(Zielvereinbarung!G118))) -> 0 | H118: =Zielvereinbarung!G118 -> 0 | P118: ='BNB-System'!L114 -> 0
C119: ='BNB-System'!G115 -> Ausführung des Entwurfs eines der Preisträger | D119: ='BNB-System'!H115 -> 20 | G119: =IF(AND(NOT(ISBLANK(K119)),NOT(ISBLANK(L119))),('Bewertung durch Anwender'!K119),IF(AND(NOT(ISBLANK(J119)),NOT(ISBLANK(I119))),('Bewertung durch Anwender'!I119),(Zielvereinbarung!G119))) -> 0 | H119: =Zielvereinbarung!G119 -> 0 | P119: ='BNB-System'!L115 -> 0
C120: ='BNB-System'!G116 -> Beauftragung des Planungsteams | D120: ='BNB-System'!H116 -> 5 | G120: =IF(AND(NOT(ISBLANK(K120)),NOT(ISBLANK(L120))),('Bewertung durch Anwender'!K120),IF(AND(NOT(ISBLANK(J120)),NOT(ISBLANK(I120))),('Bewertung durch Anwender'!I120),(Zielvereinbarung!G120))) -> 0 | H120: =Zielvereinbarung!G120 -> 0 | P120: ='BNB-System'!L116 -> 0
C121: ='BNB-System'!G117 -> Auszeichnung mit einem Architekturpreis | D121: ='BNB-System'!H117 -> 40 | G121: =IF(AND(NOT(ISBLANK(K121)),NOT(ISBLANK(L121))),('Bewertung durch Anwender'!K121),IF(AND(NOT(ISBLANK(J121)),NOT(ISBLANK(I121))),('Bewertung durch Anwender'!I121),(Zielvereinbarung!G121))) -> 0 | H121: =Zielvereinbarung!G121 -> 0 | P121: ='BNB-System'!L117 -> 0
C122: ='BNB-System'!G118 -> Unabhängiges Expertengremium | D122: ='BNB-System'!H118 -> 30 | G122: =IF(AND(NOT(ISBLANK(K122)),NOT(ISBLANK(L122))),('Bewertung durch Anwender'!K122),IF(AND(NOT(ISBLANK(J122)),NOT(ISBLANK(I122))),('Bewertung durch Anwender'!I122),(Zielvereinbarung!G122))) -> 0 | H122: =Zielvereinbarung!G122 -> 0 | P122: ='BNB-System'!L118 -> 0
B123: ='BNB-System'!F119 -> 3.3.2 | C123: ='BNB-System'!G119 -> Kunst am Bau | D123: ='BNB-System'!H119 -> 100 | E123: ='BNB-System'!K119 -> 0.008333333333 | G123: =IF(AND(NOT(ISBLANK(K123)),NOT(ISBLANK(L123))),('Bewertung durch Anwender'!K123),IF(AND(NOT(ISBLANK(J123)),NOT(ISBLANK(I123))),('Bewertung durch Anwender'!I123),(Zielvereinbarung!G123))) -> 0 | H123: =Zielvereinbarung!G123 -> 0 | M123: =SUM(M124:M127) -> 0 | N123: =SUM(N124:N127) -> 0 | P123: ='BNB-System'!L119 -> 100 | Q123: =IF(ISNUMBER(E123*N123/100),E123*N123/100,0) -> 0
C124: ='BNB-System'!G120 -> Mindestanforderung | D124: ='BNB-System'!H120 -> 10 | G124: =IF(AND(NOT(ISBLANK(K124)),NOT(ISBLANK(L124))),('Bewertung durch Anwender'!K124),IF(AND(NOT(ISBLANK(J124)),NOT(ISBLANK(I124))),('Bewertung durch Anwender'!I124),(Zielvereinbarung!G124))) -> 0 | H124: =Zielvereinbarung!G124 -> 0 | P124: ='BNB-System'!L120 -> 0
C125: ='BNB-System'!G121 -> Bereitstellung von Mitteln im Rahmen der Bauaufgabe | D125: ='BNB-System'!H121 -> 30 | G125: =IF(AND(NOT(ISBLANK(K125)),NOT(ISBLANK(L125))),('Bewertung durch Anwender'!K125),IF(AND(NOT(ISBLANK(J125)),NOT(ISBLANK(I125))),('Bewertung durch Anwender'!I125),(Zielvereinbarung!G125))) -> 0 | H125: =Zielvereinbarung!G125 -> 0 | P125: ='BNB-System'!L121 -> 0
C126: ='BNB-System'!G122 -> Umsetzung des Leitfadens Kunst am Bau | D126: ='BNB-System'!H122 -> 40 | G126: =IF(AND(NOT(ISBLANK(K126)),NOT(ISBLANK(L126))),('Bewertung durch Anwender'!K126),IF(AND(NOT(ISBLANK(J126)),NOT(ISBLANK(I126))),('Bewertung durch Anwender'!I126),(Zielvereinbarung!G126))) -> 0 | H126: =Zielvereinbarung!G126 -> 0 | P126: ='BNB-System'!L122 -> 0
C127: ='BNB-System'!G123 -> Öffentlichkeitsarbeit, Rezeption der Kunst am Bau | D127: ='BNB-System'!H123 -> 20 | G127: =IF(AND(NOT(ISBLANK(K127)),NOT(ISBLANK(L127))),('Bewertung durch Anwender'!K127),IF(AND(NOT(ISBLANK(J127)),NOT(ISBLANK(I127))),('Bewertung durch Anwender'!I127),(Zielvereinbarung!G127))) -> 0 | H127: =Zielvereinbarung!G127 -> 0 | P127: ='BNB-System'!L123 -> 0
P128: ='BNB-System'!L124 -> 0
B129: ='BNB-System'!F125 -> Technische Qualität | E129: ='BNB-System'!K125 -> 0.225 | G129: =IF(AND(NOT(ISBLANK(K129)),NOT(ISBLANK(L129))),('Bewertung durch Anwender'!K129),IF(AND(NOT(ISBLANK(J129)),NOT(ISBLANK(I129))),('Bewertung durch Anwender'!I129),(Zielvereinbarung!G129))) -> 0 | H129: =Zielvereinbarung!G129 -> 0 | M129: =M132*($E$132/100)+M137*($E$137/100)+M144*($E$144/100)+M155*($E$155/100)+M156*($E$156/100)+M157*($E$157/100) -> 0 | N129: =N132*($E$132/100)+N137*($E$137/100)+N144*($E$144/100)+N155*($E$155/100)+N156*($E$156/100)+N157*($E$157/100) -> 0 | P129: ='BNB-System'!L125 -> 1000
P130: ='BNB-System'!L126 -> 0
C131: ='BNB-System'!G127 -> technische Ausführung | P131: ='BNB-System'!L127 -> 0
B132: ='BNB-System'!F128 -> 4.1.1 | C132: ='BNB-System'!G128 -> Schallschutz | D132: ='BNB-System'!H128 -> 100 | E132: ='BNB-System'!K128 -> 0.045 | G132: =IF(AND(NOT(ISBLANK(K132)),NOT(ISBLANK(L132))),('Bewertung durch Anwender'!K132),IF(AND(NOT(ISBLANK(J132)),NOT(ISBLANK(I132))),('Bewertung durch Anwender'!I132),(Zielvereinbarung!G132))) -> 0 | H132: =Zielvereinbarung!G132 -> 0 | M132: =SUM(M133:M136) -> 0 | N132: =SUM(N133:N136) -> 0 | P132: ='BNB-System'!L128 -> 200 | Q132: =IF(ISNUMBER(E132*N132/100),E132*N132/100,0) -> 0
C133: ='BNB-System'!G129 -> Luftschallschutz gegen Außenlärm | D133: ='BNB-System'!H129 -> 20 | G133: =IF(AND(NOT(ISBLANK(K133)),NOT(ISBLANK(L133))),('Bewertung durch Anwender'!K133),IF(AND(NOT(ISBLANK(J133)),NOT(ISBLANK(I133))),('Bewertung durch Anwender'!I133),(Zielvereinbarung!G133))) -> 0 | H133: =Zielvereinbarung!G133 -> 0 | P133: ='BNB-System'!L129 -> 0
C134: ='BNB-System'!G130 -> Luftschallschutz | D134: ='BNB-System'!H130 -> 30 | G134: =IF(AND(NOT(ISBLANK(K134)),NOT(ISBLANK(L134))),('Bewertung durch Anwender'!K134),IF(AND(NOT(ISBLANK(J134)),NOT(ISBLANK(I134))),('Bewertung durch Anwender'!I134),(Zielvereinbarung!G134))) -> 0 | H134: =Zielvereinbarung!G134 -> 0 | P134: ='BNB-System'!L130 -> 0
C135: ='BNB-System'!G131 -> Trittschallschutz | D135: ='BNB-System'!H131 -> 30 | G135: =IF(AND(NOT(ISBLANK(K135)),NOT(ISBLANK(L135))),('Bewertung durch Anwender'!K135),IF(AND(NOT(ISBLANK(J135)),NOT(ISBLANK(I135))),('Bewertung durch Anwender'!I135),(Zielvereinbarung!G135))) -> 0 | H135: =Zielvereinbarung!G135 -> 0 | P135: ='BNB-System'!L131 -> 0
C136: ='BNB-System'!G132 -> Schallschutz gegenüber haustechnischen Anlagen | D136: ='BNB-System'!H132 -> 20 | G136: =IF(AND(NOT(ISBLANK(K136)),NOT(ISBLANK(L136))),('Bewertung durch Anwender'!K136),IF(AND(NOT(ISBLANK(J136)),NOT(ISBLANK(I136))),('Bewertung durch Anwender'!I136),(Zielvereinbarung!G136))) -> 0 | H136: =Zielvereinbarung!G136 -> 0 | P136: ='BNB-System'!L132 -> 0
B137: ='BNB-System'!F133 -> 4.1.2 | C137: ='BNB-System'!G133 -> Wärme- und Tauwasserschutz | D137: ='BNB-System'!H133 -> 100 | E137: ='BNB-System'!K133 -> 0.045 | G137: =IF(AND(NOT(ISBLANK(K137)),NOT(ISBLANK(L137))),('Bewertung durch Anwender'!K137),IF(AND(NOT(ISBLANK(J137)),NOT(ISBLANK(I137))),('Bewertung durch Anwender'!I137),(Zielvereinbarung!G137))) -> 0 | H137: =Zielvereinbarung!G137 -> 0 | M137: =SUM(M138:M143) -> 0 | N137: =SUM(N138:N143) -> 0 | P137: ='BNB-System'!L133 -> 200 | Q137: =IF(ISNUMBER(E137*N137/100),E137*N137/100,0) -> 0
C138: ='BNB-System'!G134 -> Mittlere Wärmeduchgangskoeffizienten | D138: ='BNB-System'!H134 -> 30 | G138: =IF(AND(NOT(ISBLANK(K138)),NOT(ISBLANK(L138))),('Bewertung durch Anwender'!K138),IF(AND(NOT(ISBLANK(J138)),NOT(ISBLANK(I138))),('Bewertung durch Anwender'!I138),(Zielvereinbarung!G138))) -> 0 | H138: =Zielvereinbarung!G138 -> 0 | P138: ='BNB-System'!L134 -> 0
C139: ='BNB-System'!G135 -> Wärmebrückenzuschlag | D139: ='BNB-System'!H135 -> 15 | G139: =IF(AND(NOT(ISBLANK(K139)),NOT(ISBLANK(L139))),('Bewertung durch Anwender'!K139),IF(AND(NOT(ISBLANK(J139)),NOT(ISBLANK(I139))),('Bewertung durch Anwender'!I139),(Zielvereinbarung!G139))) -> 0 | H139: =Zielvereinbarung!G139 -> 0 | P139: ='BNB-System'!L135 -> 0
C140: ='BNB-System'!G136 -> Klassen der Luftdurchlässigkeit (Fugendurchlässigkeit) | D140: ='BNB-System'!H136 -> 15 | G140: =IF(AND(NOT(ISBLANK(K140)),NOT(ISBLANK(L140))),('Bewertung durch Anwender'!K140),IF(AND(NOT(ISBLANK(J140)),NOT(ISBLANK(I140))),('Bewertung durch Anwender'!I140),(Zielvereinbarung!G140))) -> 0 | H140: =Zielvereinbarung!G140 -> 0 | P140: ='BNB-System'!L136 -> 0
C141: ='BNB-System'!G137 -> Tauwasserbildung | D141: ='BNB-System'!H137 -> 10 | G141: =IF(AND(NOT(ISBLANK(K141)),NOT(ISBLANK(L141))),('Bewertung durch Anwender'!K141),IF(AND(NOT(ISBLANK(J141)),NOT(ISBLANK(I141))),('Bewertung durch Anwender'!I141),(Zielvereinbarung!G141))) -> 0 | H141: =Zielvereinbarung!G141 -> 0 | P141: ='BNB-System'!L137 -> 0
C142: ='BNB-System'!G138 -> Luftwechsel | D142: ='BNB-System'!H138 -> 15 | G142: =IF(AND(NOT(ISBLANK(K142)),NOT(ISBLANK(L142))),('Bewertung durch Anwender'!K142),IF(AND(NOT(ISBLANK(J142)),NOT(ISBLANK(I142))),('Bewertung durch Anwender'!I142),(Zielvereinbarung!G142))) -> 0 | H142: =Zielvereinbarung!G142 -> 0 | P142: ='BNB-System'!L138 -> 0
C143: ='BNB-System'!G139 -> Sonneneintragswert | D143: ='BNB-System'!H139 -> 15 | G143: =IF(AND(NOT(ISBLANK(K143)),NOT(ISBLANK(L143))),('Bewertung durch Anwender'!K143),IF(AND(NOT(ISBLANK(J143)),NOT(ISBLANK(I143))),('Bewertung durch Anwender'!I143),(Zielvereinbarung!G143))) -> 0 | H143: =Zielvereinbarung!G143 -> 0 | P143: ='BNB-System'!L139 -> 0
B144: ='BNB-System'!F140 -> 4.1.3 | C144: ='BNB-System'!G140 -> Reinigungs- und Instandhaltungsfreundlichkeit | D144: ='BNB-System'!H140 -> 100 | E144: ='BNB-System'!K140 -> 0.045 | G144: =IF(AND(NOT(ISBLANK(K144)),NOT(ISBLANK(L144))),('Bewertung durch Anwender'!K144),IF(AND(NOT(ISBLANK(J144)),NOT(ISBLANK(I144))),('Bewertung durch Anwender'!I144),(Zielvereinbarung!G144))) -> 0 | H144: =Zielvereinbarung!G144 -> 0 | M144: =SUM(M145:M154) -> 0 | N144: =SUM(N145:N154) -> 0 | P144: ='BNB-System'!L140 -> 200 | Q144: =IF(ISNUMBER(E144*N144/100),E144*N144/100,0) -> 0
C145: ='BNB-System'!G141 -> Tragkonstruktion | D145: ='BNB-System'!H141 -> 15 | G145: =IF(AND(NOT(ISBLANK(K145)),NOT(ISBLANK(L145))),('Bewertung durch Anwender'!K145),IF(AND(NOT(ISBLANK(J145)),NOT(ISBLANK(I145))),('Bewertung durch Anwender'!I145),(Zielvereinbarung!G145))) -> 0 | H145: =Zielvereinbarung!G145 -> 0 | P145: ='BNB-System'!L141 -> 0
C146: ='BNB-System'!G142 -> Zugänglichkeit der Außenglasflächen | D146: ='BNB-System'!H142 -> 12 | G146: =IF(AND(NOT(ISBLANK(K146)),NOT(ISBLANK(L146))),('Bewertung durch Anwender'!K146),IF(AND(NOT(ISBLANK(J146)),NOT(ISBLANK(I146))),('Bewertung durch Anwender'!I146),(Zielvereinbarung!G146))) -> 0 | H146: =Zielvereinbarung!G146 -> 0 | P146: ='BNB-System'!L142 -> 0
C147: ='BNB-System'!G143 -> Außenbauteile | D147: ='BNB-System'!H143 -> 9 | G147: =IF(AND(NOT(ISBLANK(K147)),NOT(ISBLANK(L147))),('Bewertung durch Anwender'!K147),IF(AND(NOT(ISBLANK(J147)),NOT(ISBLANK(I147))),('Bewertung durch Anwender'!I147),(Zielvereinbarung!G147))) -> 0 | H147: =Zielvereinbarung!G147 -> 0 | P147: ='BNB-System'!L143 -> 0
C148: ='BNB-System'!G144 -> Bodenbelag | D148: ='BNB-System'!H144 -> 9 | G148: =IF(AND(NOT(ISBLANK(K148)),NOT(ISBLANK(L148))),('Bewertung durch Anwender'!K148),IF(AND(NOT(ISBLANK(J148)),NOT(ISBLANK(I148))),('Bewertung durch Anwender'!I148),(Zielvereinbarung!G148))) -> 0 | H148: =Zielvereinbarung!G148 -> 0 | P148: ='BNB-System'!L144 -> 0
C149: ='BNB-System'!G145 -> Schmutzfangzone | D149: ='BNB-System'!H145 -> 9 | G149: =IF(AND(NOT(ISBLANK(K149)),NOT(ISBLANK(L149))),('Bewertung durch Anwender'!K149),IF(AND(NOT(ISBLANK(J149)),NOT(ISBLANK(I149))),('Bewertung durch Anwender'!I149),(Zielvereinbarung!G149))) -> 0 | H149: =Zielvereinbarung!G149 -> 0 | P149: ='BNB-System'!L145 -> 0
C150: ='BNB-System'!G146 -> Fußbodenleisten | D150: ='BNB-System'!H146 -> 9 | G150: =IF(AND(NOT(ISBLANK(K150)),NOT(ISBLANK(L150))),('Bewertung durch Anwender'!K150),IF(AND(NOT(ISBLANK(J150)),NOT(ISBLANK(I150))),('Bewertung durch Anwender'!I150),(Zielvereinbarung!G150))) -> 0 | H150: =Zielvereinbarung!G150 -> 0 | P150: ='BNB-System'!L146 -> 0
C151: ='BNB-System'!G147 -> Hindernisfreie Grundrissgestaltung | D151: ='BNB-System'!H147 -> 9 | G151: =IF(AND(NOT(ISBLANK(K151)),NOT(ISBLANK(L151))),('Bewertung durch Anwender'!K151),IF(AND(NOT(ISBLANK(J151)),NOT(ISBLANK(I151))),('Bewertung durch Anwender'!I151),(Zielvereinbarung!G151))) -> 0 | H151: =Zielvereinbarung!G151 -> 0 | P151: ='BNB-System'!L147 -> 0
C152: ='BNB-System'!G148 -> Einbauten | D152: ='BNB-System'!H148 -> 10 | G152: =IF(AND(NOT(ISBLANK(K152)),NOT(ISBLANK(L152))),('Bewertung durch Anwender'!K152),IF(AND(NOT(ISBLANK(J152)),NOT(ISBLANK(I152))),('Bewertung durch Anwender'!I152),(Zielvereinbarung!G152))) -> 0 | H152: =Zielvereinbarung!G152 -> 0 | P152: ='BNB-System'!L148 -> 0
C153: ='BNB-System'!G149 -> Zugänglichkeit der Innenglasflächen | D153: ='BNB-System'!H149 -> 9 | G153: =IF(AND(NOT(ISBLANK(K153)),NOT(ISBLANK(L153))),('Bewertung durch Anwender'!K153),IF(AND(NOT(ISBLANK(J153)),NOT(ISBLANK(I153))),('Bewertung durch Anwender'!I153),(Zielvereinbarung!G154))) -> 0 | H153: =Zielvereinbarung!G154 -> 0
C154: ='BNB-System'!G150 -> Wände | D154: ='BNB-System'!H150 -> 9 | G154: =IF(AND(NOT(ISBLANK(K154)),NOT(ISBLANK(L154))),('Bewertung durch Anwender'!K154),IF(AND(NOT(ISBLANK(J154)),NOT(ISBLANK(I154))),('Bewertung durch Anwender'!I154),(Zielvereinbarung!G154))) -> 0 | H154: =Zielvereinbarung!G154 -> 0 | P154: ='BNB-System'!L150 -> 0
B155: ='BNB-System'!F151 -> 4.1.4 | C155: ='BNB-System'!G151 -> Rückbau, Trennung und Verwertung | D155: ='BNB-System'!H151 -> 100 | E155: ='BNB-System'!K151 -> 0.045 | G155: =IF(AND(NOT(ISBLANK(K155)),NOT(ISBLANK(L155))),('Bewertung durch Anwender'!K155),IF(AND(NOT(ISBLANK(J155)),NOT(ISBLANK(I155))),('Bewertung durch Anwender'!I155),(Zielvereinbarung!G155))) -> 0 | H155: =Zielvereinbarung!G155 -> 0 | P155: ='BNB-System'!L151 -> 200 | Q155: =IF(ISNUMBER(E155*N155/100),E155*N155/100,0) -> 0
B156: ='BNB-System'!F152 -> 4.1.5 | C156: ='BNB-System'!G152 -> Widerstandsfähigkeit gegen Naturgefahren | D156: ='BNB-System'!H152 -> 100 | E156: ='BNB-System'!K152 -> 0.0225 | G156: =IF(AND(NOT(ISBLANK(K156)),NOT(ISBLANK(L156))),('Bewertung durch Anwender'!K156),IF(AND(NOT(ISBLANK(J156)),NOT(ISBLANK(I156))),('Bewertung durch Anwender'!I156),(Zielvereinbarung!G156))) -> 0 | H156: =Zielvereinbarung!G156 -> 0 | P156: ='BNB-System'!L152 -> 100 | Q156: =IF(ISNUMBER(E156*N156/100),E156*N156/100,0) -> 0
B157: ='BNB-System'!F153 -> 4.1.6 | C157: ='BNB-System'!G153 -> Bedienungs- und Instandhaltungsfreundlichkeit der TGA | D157: ='BNB-System'!H153 -> 100 | E157: ='BNB-System'!K153 -> 0.0225 | G157: =IF(AND(NOT(ISBLANK(K157)),NOT(ISBLANK(L157))),('Bewertung durch Anwender'!K157),IF(AND(NOT(ISBLANK(J157)),NOT(ISBLANK(I157))),('Bewertung durch Anwender'!I157),(Zielvereinbarung!G157))) -> 0 | H157: =Zielvereinbarung!G157 -> 0 | P157: ='BNB-System'!L153 -> 100 | Q157: =IF(ISNUMBER(E157*N157/100),E157*N157/100,0) -> 0
P158: ='BNB-System'!L154 -> 0
B159: ='BNB-System'!F155 -> Prozessqualität | E159: ='BNB-System'!K155 -> 0.1 | G159: =IF(AND(NOT(ISBLANK(K159)),NOT(ISBLANK(L159))),('Bewertung durch Anwender'!K159),IF(AND(NOT(ISBLANK(J159)),NOT(ISBLANK(I159))),('Bewertung durch Anwender'!I159),(Zielvereinbarung!G159))) -> 0 | H159: =Zielvereinbarung!G159 -> 0 | M159: =M162*($E$162/100)+M166*($E$166/100)+M172*($E$172/100)+M188*($E$188/100)+M189*($E$189/100)+M209*($E$209/100)+M214*($E$214/100)+M217*($E$217/100) -> 0 | N159: =N162*($E$162/100)+N166*($E$166/100)+N172*($E$172/100)+N188*($E$188/100)+N189*($E$189/100)+N209*($E$209/100)+N214*($E$214/100)+N217*($E$217/100) -> 0 | P159: ='BNB-System'!L155 -> 2500
P160: ='BNB-System'!L156 -> 0
C161: ='BNB-System'!G157 -> Planung | P161: ='BNB-System'!L157 -> 0
B162: ='BNB-System'!F158 -> 5.1.1 | C162: ='BNB-System'!G158 -> Projektvorbereitung | D162: ='BNB-System'!H158 -> 100 | E162: ='BNB-System'!K158 -> 0.012 | G162: =IF(AND(NOT(ISBLANK(K162)),NOT(ISBLANK(L162))),('Bewertung durch Anwender'!K162),IF(AND(NOT(ISBLANK(J162)),NOT(ISBLANK(I162))),('Bewertung durch Anwender'!I162),(Zielvereinbarung!G162))) -> 0 | H162: =Zielvereinbarung!G162 -> 0 | P162: ='BNB-System'!L158 -> 300 | Q162: =IF(ISNUMBER(E162*N162/100),E162*N162/100,0) -> 0
C163: ='BNB-System'!G159 -> Bedarfsplanung oder vergleichbare Planung | D163: ='BNB-System'!H159 -> 35 | E163: ='BNB-System'!K159 -> 0 | G163: =IF(AND(NOT(ISBLANK(K163)),NOT(ISBLANK(L163))),('Bewertung durch Anwender'!K163),IF(AND(NOT(ISBLANK(J163)),NOT(ISBLANK(I163))),('Bewertung durch Anwender'!I163),(Zielvereinbarung!G163))) -> 0 | H163: =Zielvereinbarung!G163 -> 0 | P163: ='BNB-System'!L159 -> 0
C164: ='BNB-System'!G160 -> Zielvereinbarung | D164: ='BNB-System'!H160 -> 35 | E164: ='BNB-System'!K160 -> 0 | G164: =IF(AND(NOT(ISBLANK(K164)),NOT(ISBLANK(L164))),('Bewertung durch Anwender'!K164),IF(AND(NOT(ISBLANK(J164)),NOT(ISBLANK(I164))),('Bewertung durch Anwender'!I164),(Zielvereinbarung!G164))) -> 0 | H164: =Zielvereinbarung!G164 -> 0 | P164: ='BNB-System'!L160 -> 0
C165: ='BNB-System'!G161 -> Architektenwettbewerb | D165: ='BNB-System'!H161 -> 30 | E165: ='BNB-System'!K161 -> 0 | G165: =IF(AND(NOT(ISBLANK(K165)),NOT(ISBLANK(L165))),('Bewertung durch Anwender'!K165),IF(AND(NOT(ISBLANK(J165)),NOT(ISBLANK(I165))),('Bewertung durch Anwender'!I165),(Zielvereinbarung!G165))) -> 0 | H165: =Zielvereinbarung!G165 -> 0 | P165: ='BNB-System'!L161 -> 0
B166: ='BNB-System'!F162 -> 5.1.2 | C166: ='BNB-System'!G162 -> Integrale Planung | D166: ='BNB-System'!H162 -> 100 | E166: ='BNB-System'!K162 -> 0.012 | G166: =IF(AND(NOT(ISBLANK(K166)),NOT(ISBLANK(L166))),('Bewertung durch Anwender'!K166),IF(AND(NOT(ISBLANK(J166)),NOT(ISBLANK(I166))),('Bewertung durch Anwender'!I166),(Zielvereinbarung!G166))) -> 0 | H166: =Zielvereinbarung!G166 -> 0 | M166: =SUM(M167:M171) -> 0 | N166: =SUM(N167:N171) -> 0 | P166: ='BNB-System'!L162 -> 300 | Q166: =IF(ISNUMBER(E166*N166/100),E166*N166/100,0) -> 0
C167: ='BNB-System'!G163 -> Integrales Planungsteam | D167: ='BNB-System'!H163 -> 20 | G167: =IF(AND(NOT(ISBLANK(K167)),NOT(ISBLANK(L167))),('Bewertung durch Anwender'!K167),IF(AND(NOT(ISBLANK(J167)),NOT(ISBLANK(I167))),('Bewertung durch Anwender'!I167),(Zielvereinbarung!G167))) -> 0 | H167: =Zielvereinbarung!G167 -> 0 | P167: ='BNB-System'!L163 -> 0
C168: ='BNB-System'!G164 -> Qualifikation des Planungsteams | D168: ='BNB-System'!H164 -> 20 | G168: =IF(AND(NOT(ISBLANK(K168)),NOT(ISBLANK(L168))),('Bewertung durch Anwender'!K168),IF(AND(NOT(ISBLANK(J168)),NOT(ISBLANK(I168))),('Bewertung durch Anwender'!I168),(Zielvereinbarung!G168))) -> 0 | H168: =Zielvereinbarung!G168 -> 0 | P168: ='BNB-System'!L164 -> 0
C169: ='BNB-System'!G165 -> Integraler Planungsprozess | D169: ='BNB-System'!H165 -> 20 | G169: =IF(AND(NOT(ISBLANK(K169)),NOT(ISBLANK(L169))),('Bewertung durch Anwender'!K169),IF(AND(NOT(ISBLANK(J169)),NOT(ISBLANK(I169))),('Bewertung durch Anwender'!I169),(Zielvereinbarung!G169))) -> 0 | H169: =Zielvereinbarung!G169 -> 0 | P169: ='BNB-System'!L165 -> 0
C170: ='BNB-System'!G166 -> Nutzerbeteiligung | D170: ='BNB-System'!H166 -> 30 | G170: =IF(AND(NOT(ISBLANK(K170)),NOT(ISBLANK(L170))),('Bewertung durch Anwender'!K170),IF(AND(NOT(ISBLANK(J170)),NOT(ISBLANK(I170))),('Bewertung durch Anwender'!I170),(Zielvereinbarung!G170))) -> 0 | H170: =Zielvereinbarung!G170 -> 0 | P170: ='BNB-System'!L166 -> 0
C171: ='BNB-System'!G167 -> Öffentlichkeitsbeteiligung | D171: ='BNB-System'!H167 -> 10 | G171: =IF(AND(NOT(ISBLANK(K171)),NOT(ISBLANK(L171))),('Bewertung durch Anwender'!K171),IF(AND(NOT(ISBLANK(J171)),NOT(ISBLANK(I171))),('Bewertung durch Anwender'!I171),(Zielvereinbarung!G171))) -> 0 | H171: =Zielvereinbarung!G171 -> 0 | P171: ='BNB-System'!L167 -> 0
B172: ='BNB-System'!F168 -> 5.1.3 | C172: ='BNB-System'!G168 -> Komplexität und Optimierung der Planung | D172: ='BNB-System'!H168 -> 100 | E172: ='BNB-System'!K168 -> 0.012 | G172: =IF(AND(NOT(ISBLANK(K172)),NOT(ISBLANK(L172))),('Bewertung durch Anwender'!K172),IF(AND(NOT(ISBLANK(J172)),NOT(ISBLANK(I172))),('Bewertung durch Anwender'!I172),(Zielvereinbarung!G172))) -> 0 | H172: =Zielvereinbarung!G172 -> 0 | M172: =IF(SUM(M173:M187)>100,100,SUM(M173:M187)) -> 0 | N172: =IF(SUM(N173:N187)>100,100,SUM(N173:N187)) -> 0 | P172: ='BNB-System'!L168 -> 300 | Q172: =IF(ISNUMBER(E172*N172/100),E172*N172/100,0) -> 0
C173: ='BNB-System'!G169 -> SiGe-Plan | D173: ='BNB-System'!H169 -> 10 | G173: =IF(AND(NOT(ISBLANK(K173)),NOT(ISBLANK(L173))),('Bewertung durch Anwender'!K173),IF(AND(NOT(ISBLANK(J173)),NOT(ISBLANK(I173))),('Bewertung durch Anwender'!I173),(Zielvereinbarung!G173))) -> 0 | H173: =Zielvereinbarung!G173 -> 0 | P173: ='BNB-System'!L169 -> 0
C174: ='BNB-System'!G170 -> Ver- und Entsiegelungskonzept | D174: ='BNB-System'!H170 -> 10 | G174: =IF(AND(NOT(ISBLANK(K174)),NOT(ISBLANK(L174))),('Bewertung durch Anwender'!K174),IF(AND(NOT(ISBLANK(J174)),NOT(ISBLANK(I174))),('Bewertung durch Anwender'!I174),(Zielvereinbarung!G174))) -> 0 | H174: =Zielvereinbarung!G174 -> 0 | P174: ='BNB-System'!L170 -> 0
C175: ='BNB-System'!G171 -> Energiekonzept | D175: ='BNB-System'!H171 -> 15 | G175: =IF(AND(NOT(ISBLANK(K175)),NOT(ISBLANK(L175))),('Bewertung durch Anwender'!K175),IF(AND(NOT(ISBLANK(J175)),NOT(ISBLANK(I175))),('Bewertung durch Anwender'!I175),(Zielvereinbarung!G175))) -> 0 | H175: =Zielvereinbarung!G175 -> 0 | P175: ='BNB-System'!L171 -> 0
C176: ='BNB-System'!G172 -> Mess- und Monitoringkonzept | D176: ='BNB-System'!H172 -> 15 | G176: =IF(AND(NOT(ISBLANK(K176)),NOT(ISBLANK(L176))),('Bewertung durch Anwender'!K176),IF(AND(NOT(ISBLANK(J176)),NOT(ISBLANK(I176))),('Bewertung durch Anwender'!I176),(Zielvereinbarung!G176))) -> 0 | H176: =Zielvereinbarung!G176 -> 0 | P176: ='BNB-System'!L172 -> 0
C177: ='BNB-System'!G173 -> Wasserkonzept | D177: ='BNB-System'!H173 -> 10 | G177: =IF(AND(NOT(ISBLANK(K177)),NOT(ISBLANK(L177))),('Bewertung durch Anwender'!K177),IF(AND(NOT(ISBLANK(J177)),NOT(ISBLANK(I177))),('Bewertung durch Anwender'!I177),(Zielvereinbarung!G177))) -> 0 | H177: =Zielvereinbarung!G177 -> 0 | P177: ='BNB-System'!L173 -> 0
C178: ='BNB-System'!G174 -> Konzept zur Vermeidung von Umwelt- und Gesundheitsrisiken aus Bauprodukten | D178: ='BNB-System'!H174 -> 10 | G178: =IF(AND(NOT(ISBLANK(K178)),NOT(ISBLANK(L178))),('Bewertung durch Anwender'!K178),IF(AND(NOT(ISBLANK(J178)),NOT(ISBLANK(I178))),('Bewertung durch Anwender'!I178),(Zielvereinbarung!G178))) -> 0 | H178: =Zielvereinbarung!G178 -> 0 | P178: ='BNB-System'!L174 -> 0
C179: ='BNB-System'!G175 -> Lüftungskonzept | D179: ='BNB-System'!H175 -> 10 | G179: =IF(AND(NOT(ISBLANK(K179)),NOT(ISBLANK(L179))),('Bewertung durch Anwender'!K179),IF(AND(NOT(ISBLANK(J179)),NOT(ISBLANK(I179))),('Bewertung durch Anwender'!I179),(Zielvereinbarung!G179))) -> 0 | H179: =Zielvereinbarung!G179 -> 0 | P179: ='BNB-System'!L175 -> 0
C180: ='BNB-System'!G176 -> Abfallkonzept / Wertstoffkonzept | D180: ='BNB-System'!H176 -> 5 | G180: =IF(AND(NOT(ISBLANK(K180)),NOT(ISBLANK(L180))),('Bewertung durch Anwender'!K180),IF(AND(NOT(ISBLANK(J180)),NOT(ISBLANK(I180))),('Bewertung durch Anwender'!I180),(Zielvereinbarung!G180))) -> 0 | H180: =Zielvereinbarung!G180 -> 0 | P180: ='BNB-System'!L176 -> 0
C181: ='BNB-System'!G177 -> Tages- / Kunstlichtoptimierung | D181: ='BNB-System'!H177 -> 10 | G181: =IF(AND(NOT(ISBLANK(K181)),NOT(ISBLANK(L181))),('Bewertung durch Anwender'!K181),IF(AND(NOT(ISBLANK(J181)),NOT(ISBLANK(I181))),('Bewertung durch Anwender'!I181),(Zielvereinbarung!G181))) -> 0 | H181: =Zielvereinbarung!G181 -> 0 | P181: ='BNB-System'!L177 -> 0
C182: ='BNB-System'!G178 -> Konzept zur Sicherung der Reinigungs- und Instandhaltungsfreundlichkeit | D182: ='BNB-System'!H178 -> 10 | G182: =IF(AND(NOT(ISBLANK(K182)),NOT(ISBLANK(L182))),('Bewertung durch Anwender'!K182),IF(AND(NOT(ISBLANK(J182)),NOT(ISBLANK(I182))),('Bewertung durch Anwender'!I182),(Zielvereinbarung!G182))) -> 0 | H182: =Zielvereinbarung!G182 -> 0 | P182: ='BNB-System'!L178 -> 0
C183: ='BNB-System'!G179 -> Anpassbarkeits-, Rückbau- und Recyclingkonzept | D183: ='BNB-System'!H179 -> 10 | G183: =IF(AND(NOT(ISBLANK(K183)),NOT(ISBLANK(L183))),('Bewertung durch Anwender'!K183),IF(AND(NOT(ISBLANK(J183)),NOT(ISBLANK(I183))),('Bewertung durch Anwender'!I183),(Zielvereinbarung!G183))) -> 0 | H183: =Zielvereinbarung!G183 -> 0 | P183: ='BNB-System'!L179 -> 0
C184: ='BNB-System'!G180 -> Konzept zur Vermeidung und Beherrschung von Risiken | D184: ='BNB-System'!H180 -> 10 | G184: =IF(AND(NOT(ISBLANK(K184)),NOT(ISBLANK(L184))),('Bewertung durch Anwender'!K184),IF(AND(NOT(ISBLANK(J184)),NOT(ISBLANK(I184))),('Bewertung durch Anwender'!I184),(Zielvereinbarung!G184))) -> 0 | H184: =Zielvereinbarung!G184 -> 0 | P184: ='BNB-System'!L180 -> 0
C185: ='BNB-System'!G181 -> Sonstige Konzepte zum Nachhaltigen Bauen | D185: ='BNB-System'!H181 -> 10 | G185: =IF(AND(NOT(ISBLANK(K185)),NOT(ISBLANK(L185))),('Bewertung durch Anwender'!K185),IF(AND(NOT(ISBLANK(J185)),NOT(ISBLANK(I185))),('Bewertung durch Anwender'!I185),(Zielvereinbarung!G185))) -> 0 | H185: =Zielvereinbarung!G185 -> 0 | P185: ='BNB-System'!L181 -> 0
C186: ='BNB-System'!G182 -> Prüfung der Planungsunterlagen durch unabhängige Dritte | D186: ='BNB-System'!H182 -> 5 | G186: =IF(AND(NOT(ISBLANK(K186)),NOT(ISBLANK(L186))),('Bewertung durch Anwender'!K186),IF(AND(NOT(ISBLANK(J186)),NOT(ISBLANK(I186))),('Bewertung durch Anwender'!I186),(Zielvereinbarung!G186))) -> 0 | H186: =Zielvereinbarung!G186 -> 0 | P186: ='BNB-System'!L182 -> 0
C187: ='BNB-System'!G183 -> Durchführung von Variantenvergleichen | D187: ='BNB-System'!H183 -> 10 | G187: =IF(AND(NOT(ISBLANK(K187)),NOT(ISBLANK(L187))),('Bewertung durch Anwender'!K187),IF(AND(NOT(ISBLANK(J187)),NOT(ISBLANK(I187))),('Bewertung durch Anwender'!I187),(Zielvereinbarung!G187))) -> 0 | H187: =Zielvereinbarung!G187 -> 0 | P187: ='BNB-System'!L183 -> 0
B188: ='BNB-System'!F184 -> 5.1.4 | C188: ='BNB-System'!G184 -> Ausschreibung und Vergabe | D188: ='BNB-System'!H184 -> 100 | E188: ='BNB-System'!K184 -> 0.008 | G188: =IF(AND(NOT(ISBLANK(K188)),NOT(ISBLANK(L188))),('Bewertung durch Anwender'!K188),IF(AND(NOT(ISBLANK(J188)),NOT(ISBLANK(I188))),('Bewertung durch Anwender'!I188),(Zielvereinbarung!G188))) -> 0 | H188: =Zielvereinbarung!G188 -> 0 | P188: ='BNB-System'!L184 -> 200 | Q188: =IF(ISNUMBER(E188*N188/100),E188*N188/100,0) -> 0
B189: ='BNB-System'!F185 -> 5.1.5 | C189: ='BNB-System'!G185 -> Voraussetzungen für eine optimale Bewirtschaftung | D189: ='BNB-System'!H185 -> 100 | E189: ='BNB-System'!K185 -> 0.008 | G189: =IF(AND(NOT(ISBLANK(K189)),NOT(ISBLANK(L189))),('Bewertung durch Anwender'!K189),IF(AND(NOT(ISBLANK(J189)),NOT(ISBLANK(I189))),('Bewertung durch Anwender'!I189),(Zielvereinbarung!G189))) -> 0 | H189: =Zielvereinbarung!G189 -> 0 | M189: =SUM(M190:M193) -> 0 | N189: =SUM(N190:N193) -> 0 | P189: ='BNB-System'!L185 -> 200 | Q189: =IF(ISNUMBER(E189*N189/100),E189*N189/100,0) -> 0
C190: ='BNB-System'!G186 -> Erstellung einer Gebäudeakte / Objektdokumentation | D190: ='BNB-System'!H186 -> 25 | G190: =IF(AND(NOT(ISBLANK(K190)),NOT(ISBLANK(L190))),('Bewertung durch Anwender'!K190),IF(AND(NOT(ISBLANK(J190)),NOT(ISBLANK(I190))),('Bewertung durch Anwender'!I190),(Zielvereinbarung!G190))) -> 0 | H190: =Zielvereinbarung!G190 -> 0 | P190: ='BNB-System'!L186 -> 0
C191: ='BNB-System'!G187 -> Erstellung von Wartungs-, Inspektions-, Betriebs-, und Pflegeanleitungen | D191: ='BNB-System'!H187 -> 25 | G191: =IF(AND(NOT(ISBLANK(K191)),NOT(ISBLANK(L191))),('Bewertung durch Anwender'!K191),IF(AND(NOT(ISBLANK(J191)),NOT(ISBLANK(I191))),('Bewertung durch Anwender'!I191),(Zielvereinbarung!G191))) -> 0 | H191: =Zielvereinbarung!G191 -> 0 | P191: ='BNB-System'!L187 -> 0
C192: ='BNB-System'!G188 -> Anpassung der Pläne und Berechnungen an das realisierte Gebäude | D192: ='BNB-System'!H188 -> 25 | G192: =IF(AND(NOT(ISBLANK(K192)),NOT(ISBLANK(L192))),('Bewertung durch Anwender'!K192),IF(AND(NOT(ISBLANK(J192)),NOT(ISBLANK(I192))),('Bewertung durch Anwender'!I192),(Zielvereinbarung!G192))) -> 0 | H192: =Zielvereinbarung!G192 -> 0 | P192: ='BNB-System'!L188 -> 0
C193: ='BNB-System'!G189 -> Erstellung eines Nutzerhandbuches | D193: ='BNB-System'!H189 -> 25 | G193: =IF(AND(NOT(ISBLANK(K193)),NOT(ISBLANK(L193))),('Bewertung durch Anwender'!K193),IF(AND(NOT(ISBLANK(J193)),NOT(ISBLANK(I193))),('Bewertung durch Anwender'!I193),(Zielvereinbarung!G193))) -> 0 | H193: =Zielvereinbarung!G193 -> 0 | P193: ='BNB-System'!L189 -> 0
B194: ='BNB-System'!F190 -> 5.1.6 | C194: ='BNB-System'!G190 -> Bestandsanalyse | D194: ='BNB-System'!H190 -> 100 | E194: ='BNB-System'!K190 -> 0.012 | G194: =IF(AND(NOT(ISBLANK(K194)),NOT(ISBLANK(L194))),('Bewertung durch Anwender'!K194),IF(AND(NOT(ISBLANK(J194)),NOT(ISBLANK(I194))),('Bewertung durch Anwender'!I194),(Zielvereinbarung!G194))) -> 0 | H194: =Zielvereinbarung!G194 -> 0 | M194: =SUM(M195:M203) -> 0 | N194: =SUM(N195:N203) -> 0
C195: ='BNB-System'!G191 -> Bestandsaufnahme Geometrie | D195: ='BNB-System'!H191 -> 10 | G195: =IF(AND(NOT(ISBLANK(K195)),NOT(ISBLANK(L195))),('Bewertung durch Anwender'!K195),IF(AND(NOT(ISBLANK(J195)),NOT(ISBLANK(I195))),('Bewertung durch Anwender'!I195),(Zielvereinbarung!G195))) -> 0 | H195: =Zielvereinbarung!G195 -> 0
C196: ='BNB-System'!G192 -> Bestandsaufnahme Baukonstruktion und Baustoffe | D196: ='BNB-System'!H192 -> 20 | G196: =IF(AND(NOT(ISBLANK(K196)),NOT(ISBLANK(L196))),('Bewertung durch Anwender'!K196),IF(AND(NOT(ISBLANK(J196)),NOT(ISBLANK(I196))),('Bewertung durch Anwender'!I196),(Zielvereinbarung!G196))) -> 0 | H196: =Zielvereinbarung!G196 -> 0
C197: ='BNB-System'!G193 -> Bestandsaufnahme Haustechnik | D197: ='BNB-System'!H193 -> 10 | G197: =IF(AND(NOT(ISBLANK(K197)),NOT(ISBLANK(L197))),('Bewertung durch Anwender'!K197),IF(AND(NOT(ISBLANK(J197)),NOT(ISBLANK(I197))),('Bewertung durch Anwender'!I197),(Zielvereinbarung!G197))) -> 0 | H197: =Zielvereinbarung!G197 -> 0
C198: ='BNB-System'!G194 -> Bestandsaufnahme Bau- und Nutzungsgeschichte | D198: ='BNB-System'!H194 -> 5 | G198: =IF(AND(NOT(ISBLANK(K198)),NOT(ISBLANK(L198))),('Bewertung durch Anwender'!K198),IF(AND(NOT(ISBLANK(J198)),NOT(ISBLANK(I198))),('Bewertung durch Anwender'!I198),(Zielvereinbarung!G198))) -> 0 | H198: =Zielvereinbarung!G198 -> 0
C199: ='BNB-System'!G195 -> Bestandsaufnahme Exposition | D199: ='BNB-System'!H195 -> 5 | G199: =IF(AND(NOT(ISBLANK(K199)),NOT(ISBLANK(L199))),('Bewertung durch Anwender'!K199),IF(AND(NOT(ISBLANK(J199)),NOT(ISBLANK(I199))),('Bewertung durch Anwender'!I199),(Zielvereinbarung!G199))) -> 0 | H199: =Zielvereinbarung!G199 -> 0
C200: ='BNB-System'!G196 -> Baudiagnose Tragwerk | D200: ='BNB-System'!H196 -> 15 | G200: =IF(AND(NOT(ISBLANK(K200)),NOT(ISBLANK(L200))),('Bewertung durch Anwender'!K200),IF(AND(NOT(ISBLANK(J200)),NOT(ISBLANK(I200))),('Bewertung durch Anwender'!I200),(Zielvereinbarung!G200))) -> 0 | H200: =Zielvereinbarung!G200 -> 0
C201: ='BNB-System'!G197 -> Baudiagnose Energetische Qualität | D201: ='BNB-System'!H197 -> 15 | G201: =IF(AND(NOT(ISBLANK(K201)),NOT(ISBLANK(L201))),('Bewertung durch Anwender'!K201),IF(AND(NOT(ISBLANK(J201)),NOT(ISBLANK(I201))),('Bewertung durch Anwender'!I201),(Zielvereinbarung!G201))) -> 0 | H201: =Zielvereinbarung!G201 -> 0
C202: ='BNB-System'!G198 -> Baudiagnose Schadstoffe | D202: ='BNB-System'!H198 -> 10 | G202: =IF(AND(NOT(ISBLANK(K202)),NOT(ISBLANK(L202))),('Bewertung durch Anwender'!K202),IF(AND(NOT(ISBLANK(J202)),NOT(ISBLANK(I202))),('Bewertung durch Anwender'!I202),(Zielvereinbarung!G202))) -> 0 | H202: =Zielvereinbarung!G202 -> 0
... 58 more rows

Sheet Konformitätsprüfung
B1: ='BNB-System'!C1 -> Projekt: | C1: =Zielvereinbarung!C1 -> Projektbezeichnung
B2: ='BNB-System'!C2 -> Bewertungssystem Nachhaltiges Bauen (BNB)
B3: ='BNB-System'!C3 -> Systemvariante Unterrichtsgebäude, Modul Komplettmodernisierung (BNB_UK) - Version 2017
B4: Nachhaltigkeitskriterien | D4: maximale Punktzahl | E4: Gewichtung Gesamt- bewertung | F4: Punkt- zahl | G4: Eingereichte Endbewertung | I4: Bemerkung Konformitätsprüfung Prüfung vom: | J4: Bearbeiter | L4: Zielwert | M4: Gesamt-bewertung Anwender | N4: Gesamt-bewertung Konformitäts- prüfung
F5: Ziel- vereinbarung | G5: Anwender | H5: Konformitätsprüfung | I5: =TODAY() -> 2018-03-12
B7: Gesamterfüllungsgrad | F7: =Zielvereinbarung!$G$7 -> 0 | G7: ='Bewertung durch Anwender'!N7 -> 0 | H7: =H10+H35+H48+H129+H159 -> 0
H8: ende | K8: qwertz
B10: ='BNB-System'!F6 -> Ökologische Qualität | E10: ='BNB-System'!K6 -> 0.225 | F10: ='Bewertung durch Anwender'!G10 -> 0 | G10: ='Bewertung durch Anwender'!N10 -> 0 | H10: =H13*(E13/100)+H14*(E14/100)+H15*(E15/100)+H16*(E16/100)+H17*(E17/100)+H18*(E18/100)+H24*(E24/100)+H26*(E26/100)+H30*(E30/100)+H31*(E31/100) -> 0 | L10: ='BNB-System'!L6 -> 1800
L11: ='BNB-System'!L7 -> 0
C12: Wirkungen auf die globale und lokale Umwelt | L12: ='BNB-System'!L8 -> 0
B13: ='BNB-System'!F9 -> 1.1.1 | C13: ='BNB-System'!G9 -> Treibhauspotenzial (GWP) | D13: ='BNB-System'!H9 -> 100 | E13: ='BNB-System'!K9 -> 0.0375 | F13: ='Bewertung durch Anwender'!G13 -> 0 | G13: ='Bewertung durch Anwender'!N13 -> 0 | L13: ='BNB-System'!L9 -> 300 | M13: =IF(ISNUMBER(G13*E13/100),G13*E13/100,0) -> 0 | N13: =IF(ISNUMBER(H13*E13/100),H13*E13/100,0) -> 0
B14: ='BNB-System'!F10 -> 1.1.2 | C14: ='BNB-System'!G10 -> Ozonschichtabbaupotenzial (ODP) | D14: ='BNB-System'!H10 -> 100 | E14: ='BNB-System'!K10 -> 0.0125 | F14: ='Bewertung durch Anwender'!G14 -> 0 | G14: ='Bewertung durch Anwender'!N14 -> 0 | L14: ='BNB-System'!L10 -> 100 | M14: =IF(ISNUMBER(G14*E14/100),G14*E14/100,0) -> 0 | N14: 0
B15: ='BNB-System'!F11 -> 1.1.3 | C15: ='BNB-System'!G11 -> Ozonbildungspotenzial (POCP) | D15: ='BNB-System'!H11 -> 100 | E15: ='BNB-System'!K11 -> 0.0125 | F15: ='Bewertung durch Anwender'!G15 -> 0 | G15: ='Bewertung durch Anwender'!N15 -> 0 | L15: ='BNB-System'!L11 -> 100 | M15: 0 | N15: 0
B16: ='BNB-System'!F12 -> 1.1.4 | C16: ='BNB-System'!G12 -> Versauerungspotenzial (AP) | D16: ='BNB-System'!H12 -> 100 | E16: ='BNB-System'!K12 -> 0.0125 | F16: ='Bewertung durch Anwender'!G16 -> 0 | G16: ='Bewertung durch Anwender'!N16 -> 0 | L16: ='BNB-System'!L12 -> 100 | M16: 0 | N16: 0
B17: ='BNB-System'!F13 -> 1.1.5 | C17: ='BNB-System'!G13 -> Überdüngungspotenzial (EP) | D17: ='BNB-System'!H13 -> 100 | E17: ='BNB-System'!K13 -> 0.0125 | F17: ='Bewertung durch Anwender'!G17 -> 0 | G17: ='Bewertung durch Anwender'!N17 -> 0 | L17: ='BNB-System'!L13 -> 100 | M17: 0 | N17: 0
B18: ='BNB-System'!F14 -> 1.1.6 | C18: ='BNB-System'!G14 -> Risiken für die lokale Umwelt | D18: ='BNB-System'!H14 -> 100 | E18: ='BNB-System'!K14 -> 0.0375 | F18: ='Bewertung durch Anwender'!G18 -> 0 | G18: ='Bewertung durch Anwender'!N18 -> 0 | H18: =IF(SUM(H19:H23)>100,100,SUM(H19:H23)) -> 0 | L18: ='BNB-System'!L14 -> 300 | M18: 0 | N18: 0
C19: ='BNB-System'!G15 -> Altsubstanz Q4 ; Neusubstanz Q5 | D19: ='BNB-System'!H15 -> 100 | F19: ='Bewertung durch Anwender'!G19 -> 0 | G19: ='Bewertung durch Anwender'!N19 -> 0
C20: ='BNB-System'!G16 -> Altsubstanz Q3 ; Neusubstanz Q4 | D20: ='BNB-System'!H16 -> 75 | F20: ='Bewertung durch Anwender'!G20 -> 0 | G20: ='Bewertung durch Anwender'!N20 -> 0
C21: ='BNB-System'!G17 -> Altsubstanz Q2 ; Neusubstanz Q3 | D21: ='BNB-System'!H17 -> 50 | F21: ='Bewertung durch Anwender'!G21 -> 0 | G21: ='Bewertung durch Anwender'!N21 -> 0
C22: ='BNB-System'!G18 -> Altsubstanz Q1 ; Neusubstanz Q2 | D22: ='BNB-System'!H18 -> 25 | F22: ='Bewertung durch Anwender'!G22 -> 0 | G22: ='Bewertung durch Anwender'!N22 -> 0
C23: ='BNB-System'!G19 -> Altsubstanz Q1 ; Neusubstanz Q1 | D23: ='BNB-System'!H19 -> 10 | F23: ='Bewertung durch Anwender'!G23 -> 0 | G23: ='Bewertung durch Anwender'!N23 -> 0
B24: ='BNB-System'!F20 -> 1.1.7 | C24: ='BNB-System'!G20 -> Nachhaltige Materialgewinnung / Biodiversität | D24: ='BNB-System'!H20 -> 100 | E24: ='BNB-System'!K20 -> 0.0125 | F24: ='Bewertung durch Anwender'!G24 -> 0 | G24: ='Bewertung durch Anwender'!N24 -> 0 | L24: ='BNB-System'!L20 -> 100 | M24: 0 | N24: 0
C25: ='BNB-System'!G21 -> Ressourceninanspruchnahme | L25: ='BNB-System'!L21 -> 0
B26: ='BNB-System'!F22 -> 1.2.1 | C26: ='BNB-System'!G22 -> Primärenergiebedarf | D26: ='BNB-System'!H22 -> 100 | E26: ='BNB-System'!K22 -> 0.0375 | F26: ='Bewertung durch Anwender'!G26 -> 0 | G26: ='Bewertung durch Anwender'!N26 -> 0 | H26: =IF(SUM(H27:H29)>100,100,SUM(H27:H29)) -> 0 | L26: ='BNB-System'!L22 -> 300 | M26: =IF(ISNUMBER(G26*E26/100),G26*E26/100,0) -> 0 | N26: =IF(ISNUMBER(H26*E26/100),H26*E26/100,0) -> 0
C27: ='BNB-System'!G23 -> Primärenergiebedarf nicht erneuerbar (PEne) | D27: ='BNB-System'!H23 -> 60 | F27: ='Bewertung durch Anwender'!G27 -> 0 | G27: ='Bewertung durch Anwender'!N27 -> 0 | L27: ='BNB-System'!L23 -> 0
C28: ='BNB-System'!G24 -> Gesamtprimärenergiebedarf (PEges) | D28: ='BNB-System'!H24 -> 40 | F28: ='Bewertung durch Anwender'!G29 -> 0 | G28: ='Bewertung durch Anwender'!N29 -> 0
C29: ='BNB-System'!G25 -> Anteil der erneuerbaren Primärenergie (Pee) | D29: ='BNB-System'!H25 -> 20 | F29: ='Bewertung durch Anwender'!G30 -> 0 | G29: ='Bewertung durch Anwender'!N30 -> 0 | L29: ='BNB-System'!L25 -> 0
B30: ='BNB-System'!F26 -> 1.2.3 | C30: ='BNB-System'!G26 -> Trinkwasserbedarf und Abwasseraufkommen | D30: ='BNB-System'!H26 -> 100 | E30: ='BNB-System'!K26 -> 0.025 | F30: ='Bewertung durch Anwender'!G30 -> 0 | G30: ='Bewertung durch Anwender'!N30 -> 0 | L30: ='BNB-System'!L26 -> 200 | M30: =IF(ISNUMBER(G30*E30/100),G30*E30/100,0) -> 0 | N30: =IF(ISNUMBER(H30*E30/100),H30*E30/100,0) -> 0
B31: ='BNB-System'!F27 -> 1.2.4 | C31: ='BNB-System'!G27 -> Flächeninanspruchnahme | D31: ='BNB-System'!H27 -> 100 | E31: ='BNB-System'!K27 -> 0.025 | F31: ='Bewertung durch Anwender'!G31 -> 0 | G31: ='Bewertung durch Anwender'!N31 -> 0 | H31: =SUM(H32:H33) -> 0 | L31: ='BNB-System'!L27 -> 200 | M31: =IF(ISNUMBER(G31*E31/100),G31*E31/100,0) -> 0 | N31: =IF(ISNUMBER(H31*E31/100),H31*E31/100,0) -> 0
C32: ='BNB-System'!G28 -> Veränderung der Flächeninanspruchnahme | D32: ='BNB-System'!H28 -> 100 | F32: ='Bewertung durch Anwender'!G32 -> 0 | G32: ='Bewertung durch Anwender'!N32 -> 0
C33: ='BNB-System'!G29 -> Ausgleichsmaßnahmen und Flächenrecycling | D33: ='BNB-System'!H29 -> 40 | F33: ='Bewertung durch Anwender'!G33 -> 0 | G33: ='Bewertung durch Anwender'!N33 -> 0
L34: ='BNB-System'!L30 -> 0
B35: ='BNB-System'!F31 -> Ökonomische Qualität | E35: ='BNB-System'!K31 -> 0.225 | F35: ='Bewertung durch Anwender'!G35 -> 0 | G35: ='Bewertung durch Anwender'!N35 -> 0 | H35: =H38*($E$38/100)+H40*($E$40/100) -> 0 | L35: ='BNB-System'!L31 -> 500
L36: ='BNB-System'!L32 -> 0
C37: ='BNB-System'!G33 -> Lebenszykluskosten | L37: ='BNB-System'!L33 -> 0
B38: ='BNB-System'!F34 -> 2.1.1 | C38: ='BNB-System'!G34 -> Gebäudebezogene Kosten im Lebenszyklus | D38: ='BNB-System'!H34 -> 100 | E38: ='BNB-System'!K34 -> 0.135 | F38: ='Bewertung durch Anwender'!G38 -> 0 | G38: ='Bewertung durch Anwender'!N38 -> 0 | L38: ='BNB-System'!L34 -> 300 | M38: =IF(ISNUMBER(G38*E38/100),G38*E38/100,0) -> 0 | N38: =IF(ISNUMBER(H38*E38/100),H38*E38/100,0) -> 0
C39: ='BNB-System'!G35 -> Wirtschaftlichkeit und Wertstabilität | L39: ='BNB-System'!L35 -> 0
B40: ='BNB-System'!F36 -> 2.2.2 | C40: ='BNB-System'!G36 -> Anpassungsfähigkeit | D40: ='BNB-System'!H36 -> 100 | E40: ='BNB-System'!K36 -> 0.09 | F40: ='Bewertung durch Anwender'!G40 -> 0 | G40: ='Bewertung durch Anwender'!N40 -> 0 | H40: =SUM(H41:H46) -> 0 | L40: ='BNB-System'!L36 -> 200 | M40: =IF(ISNUMBER(G40*E40/100),G40*E40/100,0) -> 0 | N40: =IF(ISNUMBER(H40*E40/100),H40*E40/100,0) -> 0
C41: ='BNB-System'!G37 -> Lichte Raumhöhe | D41: ='BNB-System'!H37 -> 15 | F41: ='Bewertung durch Anwender'!G41 -> 0 | G41: ='Bewertung durch Anwender'!N41 -> 0 | L41: ='BNB-System'!L37 -> 0
C42: ='BNB-System'!G38 -> Gebäudetiefe | D42: ='BNB-System'!H38 -> 15 | F42: ='Bewertung durch Anwender'!G42 -> 0 | G42: ='Bewertung durch Anwender'!N42 -> 0 | L42: ='BNB-System'!L38 -> 0
C43: ='BNB-System'!G39 -> Vertikale Erschließung | D43: ='BNB-System'!H39 -> 15 | F43: ='Bewertung durch Anwender'!G43 -> 0 | G43: ='Bewertung durch Anwender'!N43 -> 0 | L43: ='BNB-System'!L39 -> 0
C44: ='BNB-System'!G40 -> Grundrisse | D44: ='BNB-System'!H40 -> 25 | F44: ='Bewertung durch Anwender'!G44 -> 0 | G44: ='Bewertung durch Anwender'!N44 -> 0 | L44: ='BNB-System'!L40 -> 0
C45: ='BNB-System'!G41 -> Konstruktion | D45: ='BNB-System'!H41 -> 20 | F45: ='Bewertung durch Anwender'!G45 -> 0 | G45: ='Bewertung durch Anwender'!N45 -> 0 | L45: ='BNB-System'!L41 -> 0
C46: ='BNB-System'!G42 -> Technische Ausstattung | D46: ='BNB-System'!H42 -> 10 | F46: ='Bewertung durch Anwender'!G46 -> 0 | G46: ='Bewertung durch Anwender'!N46 -> 0 | L46: ='BNB-System'!L42 -> 0
L47: ='BNB-System'!L43 -> 0
B48: ='BNB-System'!F44 -> Soziokulturelle und funktionale Qualität | E48: ='BNB-System'!K44 -> 0.225 | F48: ='Bewertung durch Anwender'!G48 -> 0 | G48: ='Bewertung durch Anwender'!N48 -> 0 | H48: =H51*($E$51/100)+H62*($E$62/100)+H65*($E$65/100)+H75*($E$75/100)+H83*($E$83/100)+H93*($E$93/100)+H98*($E$98/100)+H105*($E$105/100)+H106*($E$106/100)+H111*($E$111/100)+H116*($E$116/100)+H123*($E$123/100) -> 0 | L48: ='BNB-System'!L44 -> 2700
L49: ='BNB-System'!L45 -> 0
C50: ='BNB-System'!G46 -> Gesundheit, Behaglichkeit und Nutzerzufriedenheit | L50: ='BNB-System'!L46 -> 0
B51: ='BNB-System'!F47 -> 3.1.1 | C51: ='BNB-System'!G47 -> Thermischer Komfort | D51: ='BNB-System'!H47 -> 100 | E51: ='BNB-System'!K47 -> 0.025 | F51: ='Bewertung durch Anwender'!G51 -> 0 | G51: ='Bewertung durch Anwender'!N51 -> 0 | H51: =SUM(H53:H56,H58:H61) -> 0 | L51: ='BNB-System'!L47 -> 300 | M51: =IF(ISNUMBER(G51*E51/100),G51*E51/100,0) -> 0 | N51: =IF(ISNUMBER(H51*E51/100),H51*E51/100,0) -> 0
C52: ='BNB-System'!G48 -> Winter
C53: ='BNB-System'!G49 -> Operative Temperatur | D53: ='BNB-System'!H49 -> 10 | F53: ='Bewertung durch Anwender'!G53 -> 0 | G53: ='Bewertung durch Anwender'!N53 -> 0
C54: ='BNB-System'!G50 -> Zugluft | D54: ='BNB-System'!H50 -> 10 | F54: ='Bewertung durch Anwender'!G54 -> 0 | G54: ='Bewertung durch Anwender'!N54 -> 0
C55: ='BNB-System'!G51 -> Stahlungstemperaturasymmetrie und Fußbodentemperatur | D55: ='BNB-System'!H51 -> 10 | F55: ='Bewertung durch Anwender'!G55 -> 0 | G55: ='Bewertung durch Anwender'!N55 -> 0
C56: ='BNB-System'!G52 -> Luftfeuchte | D56: ='BNB-System'!H52 -> 10 | F56: ='Bewertung durch Anwender'!G56 -> 0 | G56: ='Bewertung durch Anwender'!N56 -> 0
C57: ='BNB-System'!G53 -> Sommer | F57: ='Bewertung durch Anwender'!G57 -> 
C58: ='BNB-System'!G54 -> Operative Temperatur | D58: ='BNB-System'!H54 -> 30 | F58: ='Bewertung durch Anwender'!G58 -> 0 | G58: ='Bewertung durch Anwender'!N58 -> 0
C59: ='BNB-System'!G55 -> Zugluft | D59: ='BNB-System'!H55 -> 10 | F59: ='Bewertung durch Anwender'!G59 -> 0 | G59: ='Bewertung durch Anwender'!N59 -> 0
C60: ='BNB-System'!G56 -> Stahlungstemperaturasymmetrie und Fußbodentemperatur | D60: ='BNB-System'!H56 -> 10 | F60: ='Bewertung durch Anwender'!G60 -> 0 | G60: ='Bewertung durch Anwender'!N60 -> 0 | L60: ='BNB-System'!L49 -> 0
C61: ='BNB-System'!G57 -> Luftfeuchte | D61: ='BNB-System'!H57 -> 10 | F61: ='Bewertung durch Anwender'!G61 -> 0 | G61: ='Bewertung durch Anwender'!N61 -> 0 | L61: ='BNB-System'!#REF! -> 
B62: ='BNB-System'!F58 -> 3.1.3 | C62: ='BNB-System'!G58 -> Innenraumlufthygiene | D62: ='BNB-System'!H58 -> 100 | E62: ='BNB-System'!K58 -> 0.025 | F62: ='Bewertung durch Anwender'!G62 -> 0 | G62: ='Bewertung durch Anwender'!N62 -> 0 | H62: =SUM(H63:H64) -> 0 | L62: ='BNB-System'!L58 -> 300 | M62: =IF(ISNUMBER(G62*E62/100),G62*E62/100,0) -> 0 | N62: =IF(ISNUMBER(H62*E62/100),H62*E62/100,0) -> 0
C63: ='BNB-System'!G59 -> Flüchtige organische Stoffe (VOC) und Formaldehyd | D63: ='BNB-System'!H59 -> 50 | F63: ='Bewertung durch Anwender'!G63 -> 0 | G63: ='Bewertung durch Anwender'!N63 -> 0 | L63: ='BNB-System'!L59 -> 0
C64: ='BNB-System'!G60 -> Personenbezogene Lüftungsrate | D64: ='BNB-System'!H60 -> 50 | F64: ='Bewertung durch Anwender'!G64 -> 0 | G64: ='Bewertung durch Anwender'!N64 -> 0 | L64: ='BNB-System'!L60 -> 0
B65: ='BNB-System'!F61 -> 3.1.4 | C65: ='BNB-System'!G61 -> Akustischer Komfort | D65: ='BNB-System'!H61 -> 100 | E65: ='BNB-System'!K61 -> 0.01666666667 | F65: ='Bewertung durch Anwender'!G65 -> 0 | G65: ='Bewertung durch Anwender'!N65 -> 0 | H65: =(IF(IF((ISNUMBER(ROUND(H69/(H69+H71+H73)*H66+H71/(H69+H71+H73)*H70+H73/(H69+H71+H73)*H72,1))),ROUND(H69/(H69+H71+H73)*H66+H71/(H69+H71+H73)*H70+H73/(H69+H71+H73)*H72,1),0)>100,100,IF(ISNUMBER(ROUND(H69/(H69+H71+H73)*H66+H71/(H69+H71+H73)*H70+H73/(H69+H71+H73)*H72,1)),ROUND(H69/(H69+H71+H73)*H66+H71/(H69+H71+H73)*H70+H73/(H69+H71+H73)*H72,1),0)))-H74 -> 0 | L65: ='BNB-System'!L61 -> 200 | M65: =IF(ISNUMBER(G65*E65/100),G65*E65/100,0) -> 0 | N65: =IF(ISNUMBER(H65*E65/100),H65*E65/100,0) -> 0
C66: ='BNB-System'!G62 -> Räume Gruppe A | L66: ='BNB-System'!L63 -> 0
C67: ='BNB-System'!G63 -> Musik | D67: ='BNB-System'!H63 -> 100 | F67: ='Bewertung durch Anwender'!G67 -> 0 | G67: ='Bewertung durch Anwender'!N67 -> 0
C68: ='BNB-System'!G64 -> Sprache/ Vortrag | D68: ='BNB-System'!H64 -> 100 | F68: ='Bewertung durch Anwender'!G68 -> 0 | G68: ='Bewertung durch Anwender'!N68 -> 0
C69: ='BNB-System'!G65 -> Unterricht Kommunikation | D69: ='BNB-System'!H65 -> 100 | F69: ='Bewertung durch Anwender'!G69 -> 0 | G69: ='Bewertung durch Anwender'!N69 -> 0 | L69: ='BNB-System'!L64 -> 0
C70: ='BNB-System'!G66 -> Sport | D70: ='BNB-System'!H66 -> 100 | F70: ='Bewertung durch Anwender'!G70 -> 0 | G70: ='Bewertung durch Anwender'!N70 -> 0 | L70: ='BNB-System'!L65 -> 0
C71: ='BNB-System'!G67 -> Räume Gruppe B | L71: ='BNB-System'!L66 -> 0
C72: ='BNB-System'!G68 -> Einzel- und Mehrpersonenbüros bis 100 m3 | D72: ='BNB-System'!H68 -> 100 | F72: ='Bewertung durch Anwender'!G72 -> 0 | G72: ='Bewertung durch Anwender'!N72 -> 0 | L72: ='BNB-System'!L68 -> 0
C73: ='BNB-System'!G69 -> Mehrpersonenbüros über 100 m3 | D73: ='BNB-System'!H69 -> 100 | F73: ='Bewertung durch Anwender'!G73 -> 0 | G73: ='Bewertung durch Anwender'!N73 -> 0 | L73: ='BNB-System'!L69 -> 0
C74: ='BNB-System'!G70 -> Weitere Räume | D74: ='BNB-System'!H70 -> 100 | F74: ='Bewertung durch Anwender'!G74 -> 0 | G74: ='Bewertung durch Anwender'!N74 -> 0 | L74: ='BNB-System'!L70 -> 0
B75: ='BNB-System'!F71 -> 3.1.5 | C75: ='BNB-System'!G71 -> Visueller Komfort | D75: ='BNB-System'!H71 -> 100 | E75: ='BNB-System'!K71 -> 0.01666666667 | F75: ='Bewertung durch Anwender'!G75 -> 0 | G75: ='Bewertung durch Anwender'!N75 -> 0 | H75: =SUM(H76:H82) -> 0 | L75: ='BNB-System'!L71 -> 200 | M75: =IF(ISNUMBER(G75*E75/100),G75*E75/100,0) -> 0 | N75: =IF(ISNUMBER(#REF!*E75/100),#REF!*E75/100,0) -> 0
C76: ='BNB-System'!G72 -> Tageslichtverfügbarkeit Gesamtgebäude | D76: ='BNB-System'!H72 -> 15 | F76: ='Bewertung durch Anwender'!G76 -> 0 | G76: ='Bewertung durch Anwender'!N76 -> 0 | L76: ='BNB-System'!L72 -> 0
C77: ='BNB-System'!G73 -> Tageslichtverfügbarkeit ständige Arbeitsplätze | D77: ='BNB-System'!H73 -> 15 | F77: ='Bewertung durch Anwender'!G77 -> 0 | G77: ='Bewertung durch Anwender'!N77 -> 0 | L77: ='BNB-System'!L73 -> 0
C78: ='BNB-System'!G74 -> Nachweis de Sichtverbindung außen | D78: ='BNB-System'!H74 -> 35 | F78: ='Bewertung durch Anwender'!G78 -> 0 | G78: ='Bewertung durch Anwender'!N78 -> 0 | L78: ='BNB-System'!L74 -> 0
C79: ='BNB-System'!G75 -> Blendfreiheit Tageslicht | D79: ='BNB-System'!H75 -> 10 | F79: ='Bewertung durch Anwender'!G79 -> 0 | G79: ='Bewertung durch Anwender'!N79 -> 0 | L79: ='BNB-System'!L75 -> 0
C80: ='BNB-System'!G76 -> Blendfreiheit Kunstlicht | D80: ='BNB-System'!H76 -> 5 | F80: ='Bewertung durch Anwender'!G80 -> 0 | G80: ='Bewertung durch Anwender'!N80 -> 0 | L80: ='BNB-System'!L76 -> 0
C81: ='BNB-System'!G77 -> Lichtverteilung | D81: ='BNB-System'!H77 -> 20 | F81: ='Bewertung durch Anwender'!G81 -> 0 | G81: ='Bewertung durch Anwender'!N81 -> 0 | L81: ='BNB-System'!L77 -> 0
C82: ='BNB-System'!G78 -> Farbwiedergabe | D82: ='BNB-System'!H78 -> 10 | F82: ='Bewertung durch Anwender'!G82 -> 0 | G82: ='Bewertung durch Anwender'!N82 -> 0 | L82: ='BNB-System'!L78 -> 0
B83: ='BNB-System'!F79 -> 3.1.6 | C83: ='BNB-System'!G79 -> Einflussnahmemöglichkeiten durch Nutzer | D83: ='BNB-System'!H79 -> 100 | E83: ='BNB-System'!K79 -> 0.01666666667 | F83: ='Bewertung durch Anwender'!G83 -> 0 | G83: ='Bewertung durch Anwender'!N83 -> 0 | H83: =SUM(H84:H92) -> 0 | L83: ='BNB-System'!L79 -> 200 | M83: =IF(ISNUMBER(G83*E83/100),G83*E83/100,0) -> 0 | N83: =IF(ISNUMBER(H83*E83/100),H83*E83/100,0) -> 0
C84: ='BNB-System'!G80 -> Lüftung | D84: ='BNB-System'!H80 -> 10 | F84: ='Bewertung durch Anwender'!G84 -> 0 | G84: ='Bewertung durch Anwender'!N84 -> 0 | L84: ='BNB-System'!L80 -> 0
C85: ='BNB-System'!G81 -> Sonnenschutz | D85: ='BNB-System'!H81 -> 10 | F85: ='Bewertung durch Anwender'!G85 -> 0 | G85: ='Bewertung durch Anwender'!N85 -> 0 | L85: ='BNB-System'!L81 -> 0
C86: ='BNB-System'!G82 -> Blendschutz | D86: ='BNB-System'!H82 -> 10 | F86: ='Bewertung durch Anwender'!G86 -> 0 | G86: ='Bewertung durch Anwender'!N86 -> 0 | L86: ='BNB-System'!L82 -> 0
C87: ='BNB-System'!G83 -> Temperaturen während der Heizperiode | D87: ='BNB-System'!H83 -> 10 | F87: ='Bewertung durch Anwender'!G87 -> 0 | G87: ='Bewertung durch Anwender'!N87 -> 0 | L87: ='BNB-System'!L83 -> 0
C88: ='BNB-System'!G84 -> Temperaturen außerhalb der Heizperiode | D88: ='BNB-System'!H84 -> 15 | F88: ='Bewertung durch Anwender'!G88 -> 0 | G88: ='Bewertung durch Anwender'!N88 -> 0
C89: ='BNB-System'!G85 -> Steuerung von Tageslicht | D89: ='BNB-System'!H85 -> 10 | F89: ='Bewertung durch Anwender'!G89 -> 0 | G89: ='Bewertung durch Anwender'!N89 -> 0 | L89: ='BNB-System'!L84 -> 0
C90: ='BNB-System'!G86 -> Steuerung von Kunstlicht | D90: ='BNB-System'!H86 -> 10 | F90: ='Bewertung durch Anwender'!G90 -> 0 | G90: ='Bewertung durch Anwender'!N90 -> 0 | L90: ='BNB-System'!L85 -> 0
C91: ='BNB-System'!G87 -> Bedienfreundlichkeit | D91: ='BNB-System'!H87 -> 10 | F91: ='Bewertung durch Anwender'!G91 -> 0 | G91: ='Bewertung durch Anwender'!N91 -> 0 | L91: ='BNB-System'!L87 -> 0
C92: ='BNB-System'!G88 -> Funktionskonzept der Haustechnik | D92: ='BNB-System'!H88 -> 15 | F92: ='Bewertung durch Anwender'!G92 -> 0 | G92: ='Bewertung durch Anwender'!N92 -> 0 | L92: ='BNB-System'!L88 -> 0
B93: ='BNB-System'!F89 -> 3.1.7 | C93: ='BNB-System'!G89 -> Aufenthaltsmerkmale im Außenraum | D93: ='BNB-System'!H89 -> 100 | E93: ='BNB-System'!K89 -> 0.01666666667 | F93: ='Bewertung durch Anwender'!G93 -> 0 | G93: ='Bewertung durch Anwender'!N93 -> 0 | H93: =SUM(H94:H97) -> 0 | L93: ='BNB-System'!L89 -> 200 | M93: =IF(ISNUMBER(G93*E93/100),G93*E93/100,0) -> 0 | N93: =IF(ISNUMBER(H93*E93/100),H93*E93/100,0) -> 0
C94: ='BNB-System'!G90 -> Anzahl und Vielfalt Sitzgelegenheiten | D94: ='BNB-System'!H90 -> 30 | F94: ='Bewertung durch Anwender'!G94 -> 0 | G94: ='Bewertung durch Anwender'!N94 -> 0 | L94: ='BNB-System'!L90 -> 0
C95: ='BNB-System'!G91 -> Anzahlund Vielfalt der Spiel- und Sportmöglichkeiten | D95: ='BNB-System'!H91 -> 15 | F95: ='Bewertung durch Anwender'!G95 -> 0 | G95: ='Bewertung durch Anwender'!N95 -> 0 | L95: ='BNB-System'!L91 -> 0
C96: ='BNB-System'!G92 -> Zuordnung von Freibereichen zu Innenräumen | D96: ='BNB-System'!H92 -> 20 | F96: ='Bewertung durch Anwender'!G96 -> 0 | G96: ='Bewertung durch Anwender'!N96 -> 0 | L96: ='BNB-System'!L92 -> 0
C97: ='BNB-System'!G93 -> Ausstattungsmerkmale | D97: ='BNB-System'!H93 -> 39 | F97: ='Bewertung durch Anwender'!G97 -> 0 | G97: ='Bewertung durch Anwender'!N97 -> 0 | L97: ='BNB-System'!L93 -> 0
B98: ='BNB-System'!F94 -> 3.1.8 | C98: ='BNB-System'!G94 -> Sicherheit | D98: ='BNB-System'!H94 -> 100 | E98: ='BNB-System'!K94 -> 0.008333333333 | F98: ='Bewertung durch Anwender'!G98 -> 0 | G98: ='Bewertung durch Anwender'!N98 -> 0 | L98: ='BNB-System'!L94 -> 100 | M98: =IF(ISNUMBER(G98*E98/100),G98*E98/100,0) -> 0 | N98: =IF(ISNUMBER(H98*E98/100),H98*E98/100,0) -> 0
B99: ='BNB-System'!F95 -> 3.1.9 | C99: ='BNB-System'!G95 -> Innenraumqualität | D99: ='BNB-System'!H95 -> 100 | F99: ='Bewertung durch Anwender'!G99 -> 0 | G99: ='Bewertung durch Anwender'!N99 -> 0 | H99: =SUM(H100:H103) -> 0
C100: ='BNB-System'!G96 -> Aufenthaltsqualitäten der Erschließungsflächen | D100: ='BNB-System'!H96 -> 45 | F100: ='Bewertung durch Anwender'!G100 -> 0 | G100: ='Bewertung durch Anwender'!N100 -> 0
C101: ='BNB-System'!G97 -> Innere Sitzbeziehung | D101: ='BNB-System'!H97 -> 15 | F101: ='Bewertung durch Anwender'!G101 -> 0 | G101: ='Bewertung durch Anwender'!N101 -> 0
C102: ='BNB-System'!G98 -> Flexibilität der Raumnutzung | D102: ='BNB-System'!H98 -> 30 | F102: ='Bewertung durch Anwender'!G102 -> 0 | G102: ='Bewertung durch Anwender'!N102 -> 0
C103: ='BNB-System'!G99 -> Aufbewahrungsmöglichkeiten | D103: ='BNB-System'!H99 -> 40 | F103: ='Bewertung durch Anwender'!G103 -> 0 | G103: ='Bewertung durch Anwender'!N103 -> 0
C104: ='BNB-System'!G100 -> Funktionalität | L104: ='BNB-System'!L100 -> 0
B105: ='BNB-System'!F101 -> 3.2.1 | C105: ='BNB-System'!G101 -> Barrierefreiheit | D105: ='BNB-System'!H101 -> 100 | E105: ='BNB-System'!K101 -> 0.01666666667 | F105: ='Bewertung durch Anwender'!G105 -> 0 | G105: ='Bewertung durch Anwender'!N105 -> 0 | L105: ='BNB-System'!L101 -> 200 | M105: =IF(ISNUMBER(G105*E105/100),G105*E105/100,0) -> 0 | N105: 0
B106: ='BNB-System'!F102 -> 3.2.4 | C106: ='BNB-System'!G102 -> Zugänglichkeit | D106: ='BNB-System'!H102 -> 100 | E106: ='BNB-System'!K102 -> 0.01666666667 | F106: ='Bewertung durch Anwender'!G106 -> 0 | G106: ='Bewertung durch Anwender'!N106 -> 0 | H106: =SUM(H107:H110) -> 0 | L106: ='BNB-System'!L102 -> 200 | M106: =IF(ISNUMBER(G106*E106/100),G106*E106/100,0) -> 0 | N106: =IF(ISNUMBER(H106*E106/100),H106*E106/100,0) -> 0
C107: ='BNB-System'!G103 -> Grundsätzliche öffentliche Zugänglichkeit des Gebäudes | D107: ='BNB-System'!H103 -> 20 | F107: ='Bewertung durch Anwender'!G107 -> 0 | G107: ='Bewertung durch Anwender'!N107 -> 0 | L107: ='BNB-System'!L103 -> 0
C108: ='BNB-System'!G104 -> Qualitative Merkmale der öffentlichen Zugänglichkeit des Gebäudes | D108: ='BNB-System'!H104 -> 50 | F108: ='Bewertung durch Anwender'!G108 -> 0 | G108: ='Bewertung durch Anwender'!N108 -> 0 | L108: ='BNB-System'!L104 -> 0
C109: ='BNB-System'!G105 -> Nutzungsmerkmale der Zugänglichkeit | D109: ='BNB-System'!H105 -> 50 | F109: ='Bewertung durch Anwender'!G109 -> 0 | G109: ='Bewertung durch Anwender'!N109 -> 0 | L109: ='BNB-System'!L105 -> 0
C110: ='BNB-System'!G106 -> Qualitative Aspekte der öffentlichen Zugänglichkeit der Freiflächen | D110: ='BNB-System'!H106 -> 20 | F110: ='Bewertung durch Anwender'!G110 -> 0 | G110: ='Bewertung durch Anwender'!N110 -> 0 | L110: ='BNB-System'!L106 -> 0
B111: ='BNB-System'!F107 -> 3.2.5 | C111: ='BNB-System'!G107 -> Mobilitätsinfrastruktur | D111: ='BNB-System'!H107 -> 100 | E111: ='BNB-System'!K107 -> 0.008333333333 | F111: ='Bewertung durch Anwender'!G111 -> 0 | G111: ='Bewertung durch Anwender'!N111 -> 0 | H111: =IF(SUM(H112:H114)>100,100,SUM(H112:H114)) -> 0 | L111: ='BNB-System'!L107 -> 100 | M111: =IF(ISNUMBER(G111*E111/100),G111*E111/100,0) -> 0 | N111: =IF(ISNUMBER(H111*E111/100),H111*E111/100,0) -> 0
C112: ='BNB-System'!G108 -> Anzahl der Fahrradstellplätze | D112: ='BNB-System'!H108 -> 40 | F112: ='Bewertung durch Anwender'!G112 -> 0 | G112: ='Bewertung durch Anwender'!N112 -> 0 | L112: ='BNB-System'!L108 -> 0
C113: ='BNB-System'!G109 -> Anzahl der Lademöglichkeiten und Carsharing-Stellplätze | D113: ='BNB-System'!H109 -> 20 | F113: ='Bewertung durch Anwender'!G113 -> 0 | G113: ='Bewertung durch Anwender'!N113 -> 0 | L113: ='BNB-System'!L109 -> 0
C114: ='BNB-System'!G110 -> Qualitative Anforderungen an Fahrradstellplätze | D114: ='BNB-System'!H110 -> 60 | F114: ='Bewertung durch Anwender'!G114 -> 0 | G114: ='Bewertung durch Anwender'!N114 -> 0 | L114: ='BNB-System'!L110 -> 0
C115: ='BNB-System'!G111 -> Sicherung der Gestaltungsqualität | L115: ='BNB-System'!L111 -> 0
B116: ='BNB-System'!F112 -> 3.3.1 | C116: ='BNB-System'!G112 -> Gestalterische und städtebauliche Qualität | D116: ='BNB-System'!H112 -> 100 | E116: ='BNB-System'!K112 -> 0.025 | F116: ='Bewertung durch Anwender'!G116 -> 0 | G116: ='Bewertung durch Anwender'!N116 -> 0 | H116: =IF(AND(H117>0,H121<=H122),SUM(H117:H120),IF(AND(H117>0,H122<=H121),SUM(H117:H120),IF(H121>0,H121,IF(H122>0,H122,)))) -> 0 | L116: ='BNB-System'!L112 -> 300 | M116: =IF(ISNUMBER(G116*E116/100),G116*E116/100,0) -> 0 | N116: =IF(ISNUMBER(H116*E116/100),H116*E116/100,0) -> 0
C117: ='BNB-System'!G113 -> Fortentwicklung der gestalterischen und städtebaulichen Qualität des Bestandsgebäudes | D117: ='BNB-System'!H113 -> 40 | F117: ='Bewertung durch Anwender'!G117 -> 0 | G117: ='Bewertung durch Anwender'!N117 -> 0 | L117: ='BNB-System'!L113 -> 0
C118: ='BNB-System'!G114 -> Wettbewerbsverfahren | D118: ='BNB-System'!H114 -> 35 | F118: ='Bewertung durch Anwender'!G118 -> 0 | G118: ='Bewertung durch Anwender'!N118 -> 0 | L118: ='BNB-System'!L114 -> 0
C119: ='BNB-System'!G115 -> Ausführung des Entwurfs eines der Preisträger | D119: ='BNB-System'!H115 -> 20 | F119: ='Bewertung durch Anwender'!G119 -> 0 | G119: ='Bewertung durch Anwender'!N119 -> 0 | L119: ='BNB-System'!L115 -> 0
C120: ='BNB-System'!G116 -> Beauftragung des Planungsteams | D120: ='BNB-System'!H116 -> 5 | F120: ='Bewertung durch Anwender'!G120 -> 0 | G120: ='Bewertung durch Anwender'!N120 -> 0 | L120: ='BNB-System'!L116 -> 0
C121: ='BNB-System'!G117 -> Auszeichnung mit einem Architekturpreis | D121: ='BNB-System'!H117 -> 40 | F121: ='Bewertung durch Anwender'!G121 -> 0 | G121: ='Bewertung durch Anwender'!N121 -> 0 | L121: ='BNB-System'!L117 -> 0
C122: ='BNB-System'!G118 -> Unabhängiges Expertengremium | D122: ='BNB-System'!H118 -> 30 | F122: ='Bewertung durch Anwender'!G122 -> 0 | G122: ='Bewertung durch Anwender'!N122 -> 0 | L122: ='BNB-System'!L118 -> 0
B123: ='BNB-System'!F119 -> 3.3.2 | C123: ='BNB-System'!G119 -> Kunst am Bau | D123: ='BNB-System'!H119 -> 100 | E123: ='BNB-System'!K119 -> 0.008333333333 | F123: ='Bewertung durch Anwender'!G123 -> 0 | G123: ='Bewertung durch Anwender'!N123 -> 0 | H123: =SUM(H124:H127) -> 0 | L123: ='BNB-System'!L119 -> 100 | M123: =IF(ISNUMBER(G123*E123/100),G123*E123/100,0) -> 0 | N123: =IF(ISNUMBER(H123*E123/100),H123*E123/100,0) -> 0
C124: ='BNB-System'!G120 -> Mindestanforderung | D124: ='BNB-System'!H120 -> 10 | F124: ='Bewertung durch Anwender'!G124 -> 0 | G124: ='Bewertung durch Anwender'!N124 -> 0 | L124: ='BNB-System'!L120 -> 0
C125: ='BNB-System'!G121 -> Bereitstellung von Mitteln im Rahmen der Bauaufgabe | D125: ='BNB-System'!H121 -> 30 | F125: ='Bewertung durch Anwender'!G125 -> 0 | G125: ='Bewertung durch Anwender'!N125 -> 0 | L125: ='BNB-System'!L121 -> 0
C126: ='BNB-System'!G122 -> Umsetzung des Leitfadens Kunst am Bau | D126: ='BNB-System'!H122 -> 40 | F126: ='Bewertung durch Anwender'!G126 -> 0 | G126: ='Bewertung durch Anwender'!N126 -> 0 | L126: ='BNB-System'!L122 -> 0
C127: ='BNB-System'!G123 -> Öffentlichkeitsarbeit, Rezeption der Kunst am Bau | D127: ='BNB-System'!H123 -> 20 | F127: ='Bewertung durch Anwender'!G127 -> 0 | G127: ='Bewertung durch Anwender'!N127 -> 0 | L127: ='BNB-System'!L123 -> 0
L128: ='BNB-System'!L124 -> 0
B129: ='BNB-System'!F125 -> Technische Qualität | E129: ='BNB-System'!K125 -> 0.225 | F129: ='Bewertung durch Anwender'!G129 -> 0 | G129: ='Bewertung durch Anwender'!N129 -> 0 | H129: =H132*($E$132/100)+H137*($E$137/100)+H144*($E$144/100)+H155*($E$155/100)+H156*($E$156/100)+H157*($E$157/100) -> 0 | L129: ='BNB-System'!L125 -> 1000
L130: ='BNB-System'!L126 -> 0
C131: ='BNB-System'!G127 -> technische Ausführung | L131: ='BNB-System'!L127 -> 0
B132: ='BNB-System'!F128 -> 4.1.1 | C132: ='BNB-System'!G128 -> Schallschutz | D132: ='BNB-System'!H128 -> 100 | E132: ='BNB-System'!K128 -> 0.045 | F132: ='Bewertung durch Anwender'!G132 -> 0 | G132: ='Bewertung durch Anwender'!N132 -> 0 | H132: =SUM(H133:H136) -> 0 | L132: ='BNB-System'!L128 -> 200 | M132: =IF(ISNUMBER(G132*E132/100),G132*E132/100,0) -> 0 | N132: =IF(ISNUMBER(H132*E132/100),H132*E132/100,0) -> 0
C133: ='BNB-System'!G129 -> Luftschallschutz gegen Außenlärm | D133: ='BNB-System'!H129 -> 20 | F133: ='Bewertung durch Anwender'!G133 -> 0 | G133: ='Bewertung durch Anwender'!N133 -> 0 | L133: ='BNB-System'!L129 -> 0
C134: ='BNB-System'!G130 -> Luftschallschutz | D134: ='BNB-System'!H130 -> 30 | F134: ='Bewertung durch Anwender'!G134 -> 0 | G134: ='Bewertung durch Anwender'!N134 -> 0 | L134: ='BNB-System'!L130 -> 0
C135: ='BNB-System'!G131 -> Trittschallschutz | D135: ='BNB-System'!H131 -> 30 | F135: ='Bewertung durch Anwender'!G135 -> 0 | G135: ='Bewertung durch Anwender'!N135 -> 0 | L135: ='BNB-System'!L131 -> 0
C136: ='BNB-System'!G132 -> Schallschutz gegenüber haustechnischen Anlagen | D136: ='BNB-System'!H132 -> 20 | F136: ='Bewertung durch Anwender'!G136 -> 0 | G136: ='Bewertung durch Anwender'!N136 -> 0 | L136: ='BNB-System'!L132 -> 0
B137: ='BNB-System'!F133 -> 4.1.2 | C137: ='BNB-System'!G133 -> Wärme- und Tauwasserschutz | D137: ='BNB-System'!H133 -> 100 | E137: ='BNB-System'!K133 -> 0.045 | F137: ='Bewertung durch Anwender'!G137 -> 0 | G137: ='Bewertung durch Anwender'!N137 -> 0 | H137: =SUM(H138:H143) -> 0 | L137: ='BNB-System'!L133 -> 200 | M137: =IF(ISNUMBER(G137*E137/100),G137*E137/100,0) -> 0 | N137: =IF(ISNUMBER(H137*E137/100),H137*E137/100,0) -> 0
C138: ='BNB-System'!G134 -> Mittlere Wärmeduchgangskoeffizienten | D138: ='BNB-System'!H134 -> 30 | F138: ='Bewertung durch Anwender'!G138 -> 0 | G138: ='Bewertung durch Anwender'!N138 -> 0 | L138: ='BNB-System'!L134 -> 0
C139: ='BNB-System'!G135 -> Wärmebrückenzuschlag | D139: ='BNB-System'!H135 -> 15 | F139: ='Bewertung durch Anwender'!G139 -> 0 | G139: ='Bewertung durch Anwender'!N139 -> 0 | L139: ='BNB-System'!L135 -> 0
C140: ='BNB-System'!G136 -> Klassen der Luftdurchlässigkeit (Fugendurchlässigkeit) | D140: ='BNB-System'!H136 -> 15 | F140: ='Bewertung durch Anwender'!G140 -> 0 | G140: ='Bewertung durch Anwender'!N140 -> 0 | L140: ='BNB-System'!L136 -> 0
C141: ='BNB-System'!G137 -> Tauwasserbildung | D141: ='BNB-System'!H137 -> 10 | F141: ='Bewertung durch Anwender'!G141 -> 0 | G141: ='Bewertung durch Anwender'!N141 -> 0 | L141: ='BNB-System'!L137 -> 0
C142: ='BNB-System'!G138 -> Luftwechsel | D142: ='BNB-System'!H138 -> 15 | F142: ='Bewertung durch Anwender'!G142 -> 0 | G142: ='Bewertung durch Anwender'!N142 -> 0 | L142: ='BNB-System'!L138 -> 0
C143: ='BNB-System'!G139 -> Sonneneintragswert | D143: ='BNB-System'!H139 -> 15 | F143: ='Bewertung durch Anwender'!G143 -> 0 | G143: ='Bewertung durch Anwender'!N143 -> 0 | L143: ='BNB-System'!L139 -> 0
B144: ='BNB-System'!F140 -> 4.1.3 | C144: ='BNB-System'!G140 -> Reinigungs- und Instandhaltungsfreundlichkeit | D144: ='BNB-System'!H140 -> 100 | E144: ='BNB-System'!K140 -> 0.045 | F144: ='Bewertung durch Anwender'!G144 -> 0 | G144: ='Bewertung durch Anwender'!N144 -> 0 | H144: =SUM(H145:H154) -> 0 | L144: ='BNB-System'!L140 -> 200 | M144: =IF(ISNUMBER(G144*E144/100),G144*E144/100,0) -> 0 | N144: =IF(ISNUMBER(#REF!*E144/100),#REF!*E144/100,0) -> 0
C145: ='BNB-System'!G141 -> Tragkonstruktion | D145: ='BNB-System'!H141 -> 15 | F145: ='Bewertung durch Anwender'!G145 -> 0 | G145: ='Bewertung durch Anwender'!N145 -> 0 | L145: ='BNB-System'!L141 -> 0
C146: ='BNB-System'!G142 -> Zugänglichkeit der Außenglasflächen | D146: ='BNB-System'!H142 -> 12 | F146: ='Bewertung durch Anwender'!G146 -> 0 | G146: ='Bewertung durch Anwender'!N146 -> 0 | L146: ='BNB-System'!L142 -> 0
C147: ='BNB-System'!G143 -> Außenbauteile | D147: ='BNB-System'!H143 -> 9 | F147: ='Bewertung durch Anwender'!G147 -> 0 | G147: ='Bewertung durch Anwender'!N147 -> 0 | L147: ='BNB-System'!L143 -> 0
C148: ='BNB-System'!G144 -> Bodenbelag | D148: ='BNB-System'!H144 -> 9 | F148: ='Bewertung durch Anwender'!G148 -> 0 | G148: ='Bewertung durch Anwender'!N148 -> 0 | L148: ='BNB-System'!L144 -> 0
C149: ='BNB-System'!G145 -> Schmutzfangzone | D149: ='BNB-System'!H145 -> 9 | F149: ='Bewertung durch Anwender'!G149 -> 0 | G149: ='Bewertung durch Anwender'!N149 -> 0 | L149: ='BNB-System'!L145 -> 0
C150: ='BNB-System'!G146 -> Fußbodenleisten | D150: ='BNB-System'!H146 -> 9 | F150: ='Bewertung durch Anwender'!G150 -> 0 | G150: ='Bewertung durch Anwender'!N150 -> 0 | L150: ='BNB-System'!L146 -> 0
C151: ='BNB-System'!G147 -> Hindernisfreie Grundrissgestaltung | D151: ='BNB-System'!H147 -> 9 | F151: ='Bewertung durch Anwender'!G151 -> 0 | G151: ='Bewertung durch Anwender'!N151 -> 0 | L151: ='BNB-System'!L147 -> 0
C152: ='BNB-System'!G148 -> Einbauten | D152: ='BNB-System'!H148 -> 10 | F152: ='Bewertung durch Anwender'!G152 -> 0 | G152: ='Bewertung durch Anwender'!N152 -> 0 | L152: ='BNB-System'!L148 -> 0
C153: ='BNB-System'!G149 -> Zugänglichkeit der Innenglasflächen | D153: ='BNB-System'!H149 -> 9 | F153: ='Bewertung durch Anwender'!G154 -> 0 | G153: ='Bewertung durch Anwender'!N154 -> 0
C154: ='BNB-System'!G150 -> Wände | D154: ='BNB-System'!H150 -> 9 | F154: ='Bewertung durch Anwender'!G154 -> 0 | G154: ='Bewertung durch Anwender'!N154 -> 0 | L154: ='BNB-System'!L150 -> 0
B155: ='BNB-System'!F151 -> 4.1.4 | C155: ='BNB-System'!G151 -> Rückbau, Trennung und Verwertung | D155: ='BNB-System'!H151 -> 100 | E155: ='BNB-System'!K151 -> 0.045 | F155: ='Bewertung durch Anwender'!G155 -> 0 | G155: ='Bewertung durch Anwender'!N155 -> 0 | L155: ='BNB-System'!L151 -> 200 | M155: =IF(ISNUMBER(G155*E155/100),G155*E155/100,0) -> 0 | N155: =IF(ISNUMBER(H155*E155/100),H155*E155/100,0) -> 0
B156: ='BNB-System'!F152 -> 4.1.5 | C156: ='BNB-System'!G152 -> Widerstandsfähigkeit gegen Naturgefahren | D156: ='BNB-System'!H152 -> 100 | E156: ='BNB-System'!K152 -> 0.0225 | F156: ='Bewertung durch Anwender'!G156 -> 0 | G156: ='Bewertung durch Anwender'!N156 -> 0 | L156: ='BNB-System'!L152 -> 100 | M156: =IF(ISNUMBER(G156*E156/100),G156*E156/100,0) -> 0 | N156: =IF(ISNUMBER(H156*E156/100),H156*E156/100,0) -> 0
B157: ='BNB-System'!F153 -> 4.1.6 | C157: ='BNB-System'!G153 -> Bedienungs- und Instandhaltungsfreundlichkeit der TGA | D157: ='BNB-System'!H153 -> 100 | E157: ='BNB-System'!K153 -> 0.0225 | F157: ='Bewertung durch Anwender'!G157 -> 0 | G157: ='Bewertung durch Anwender'!N157 -> 0 | L157: ='BNB-System'!L153 -> 100 | M157: =IF(ISNUMBER(G157*E157/100),G157*E157/100,0) -> 0 | N157: =IF(ISNUMBER(H157*E157/100),H157*E157/100,0) -> 0
L158: ='BNB-System'!L154 -> 0
B159: ='BNB-System'!F155 -> Prozessqualität | E159: ='BNB-System'!K155 -> 0.1 | F159: ='Bewertung durch Anwender'!G159 -> 0 | G159: ='Bewertung durch Anwender'!N159 -> 0 | H159: =H162*($E$162/100)+H166*($E$166/100)+H172*($E$172/100)+H188*($E$188/100)+H189*($E$189/100)+H209*($E$209/100)+H214*($E$214/100)+H217*($E$217/100) -> 0 | L159: ='BNB-System'!L155 -> 2500
L160: ='BNB-System'!L156 -> 0
C161: ='BNB-System'!G157 -> Planung | L161: ='BNB-System'!L157 -> 0
B162: ='BNB-System'!F158 -> 5.1.1 | C162: ='BNB-System'!G158 -> Projektvorbereitung | D162: ='BNB-System'!H158 -> 100 | E162: ='BNB-System'!K158 -> 0.012 | F162: ='Bewertung durch Anwender'!G162 -> 0 | G162: ='Bewertung durch Anwender'!N162 -> 0 | H162: =SUM(H163:H165) -> 0 | L162: ='BNB-System'!L158 -> 300 | M162: =IF(ISNUMBER(G162*E162/100),G162*E162/100,0) -> 0 | N162: =IF(ISNUMBER(H162*E162/100),H162*E162/100,0) -> 0
C163: ='BNB-System'!G159 -> Bedarfsplanung oder vergleichbare Planung | D163: ='BNB-System'!H159 -> 35 | F163: ='Bewertung durch Anwender'!G163 -> 0 | G163: ='Bewertung durch Anwender'!N163 -> 0 | L163: ='BNB-System'!L159 -> 0
C164: ='BNB-System'!G160 -> Zielvereinbarung | D164: ='BNB-System'!H160 -> 35 | F164: ='Bewertung durch Anwender'!G164 -> 0 | G164: ='Bewertung durch Anwender'!N164 -> 0 | L164: ='BNB-System'!L160 -> 0
C165: ='BNB-System'!G161 -> Architektenwettbewerb | D165: ='BNB-System'!H161 -> 30 | F165: ='Bewertung durch Anwender'!G165 -> 0 | G165: ='Bewertung durch Anwender'!N165 -> 0 | L165: ='BNB-System'!L161 -> 0
B166: ='BNB-System'!F162 -> 5.1.2 | C166: ='BNB-System'!G162 -> Integrale Planung | D166: ='BNB-System'!H162 -> 100 | E166: ='BNB-System'!K162 -> 0.012 | F166: ='Bewertung durch Anwender'!G166 -> 0 | G166: ='Bewertung durch Anwender'!N166 -> 0 | H166: =SUM(H167:H171) -> 0 | L166: ='BNB-System'!L162 -> 300 | M166: =IF(ISNUMBER(G166*E166/100),G166*E166/100,0) -> 0 | N166: =IF(ISNUMBER(H166*E166/100),H166*E166/100,0) -> 0
C167: ='BNB-System'!G163 -> Integrales Planungsteam | D167: ='BNB-System'!H163 -> 20 | F167: ='Bewertung durch Anwender'!G167 -> 0 | G167: ='Bewertung durch Anwender'!N167 -> 0 | L167: ='BNB-System'!L163 -> 0
C168: ='BNB-System'!G164 -> Qualifikation des Planungsteams | D168: ='BNB-System'!H164 -> 20 | F168: ='Bewertung durch Anwender'!G168 -> 0 | G168: ='Bewertung durch Anwender'!N168 -> 0 | L168: ='BNB-System'!L164 -> 0
C169: ='BNB-System'!G165 -> Integraler Planungsprozess | D169: ='BNB-System'!H165 -> 20 | F169: ='Bewertung durch Anwender'!G169 -> 0 | G169: ='Bewertung durch Anwender'!N169 -> 0 | L169: ='BNB-System'!L165 -> 0
C170: ='BNB-System'!G166 -> Nutzerbeteiligung | D170: ='BNB-System'!H166 -> 30 | F170: ='Bewertung durch Anwender'!G170 -> 0 | G170: ='Bewertung durch Anwender'!N170 -> 0 | L170: ='BNB-System'!L166 -> 0
C171: ='BNB-System'!G167 -> Öffentlichkeitsbeteiligung | D171: ='BNB-System'!H167 -> 10 | F171: ='Bewertung durch Anwender'!G171 -> 0 | G171: ='Bewertung durch Anwender'!N171 -> 0 | L171: ='BNB-System'!L167 -> 0
B172: ='BNB-System'!F168 -> 5.1.3 | C172: ='BNB-System'!G168 -> Komplexität und Optimierung der Planung | D172: ='BNB-System'!H168 -> 100 | E172: ='BNB-System'!K168 -> 0.012 | F172: ='Bewertung durch Anwender'!G172 -> 0 | G172: ='Bewertung durch Anwender'!N172 -> 0 | H172: =IF(SUM(H173:H187)>100,100,SUM(H173:H187)) -> 0 | L172: ='BNB-System'!L168 -> 300 | M172: =IF(ISNUMBER(G172*E172/100),G172*E172/100,0) -> 0 | N172: =IF(ISNUMBER(H172*E172/100),H172*E172/100,0) -> 0
C173: ='BNB-System'!G169 -> SiGe-Plan | D173: ='BNB-System'!H169 -> 10 | F173: ='Bewertung durch Anwender'!G173 -> 0 | G173: ='Bewertung durch Anwender'!N173 -> 0 | L173: ='BNB-System'!L169 -> 0
C174: ='BNB-System'!G170 -> Ver- und Entsiegelungskonzept | D174: ='BNB-System'!H170 -> 10 | F174: ='Bewertung durch Anwender'!G174 -> 0 | G174: ='Bewertung durch Anwender'!N174 -> 0 | L174: ='BNB-System'!L170 -> 0
C175: ='BNB-System'!G171 -> Energiekonzept | D175: ='BNB-System'!H171 -> 15 | F175: ='Bewertung durch Anwender'!G175 -> 0 | G175: ='Bewertung durch Anwender'!N175 -> 0 | L175: ='BNB-System'!L171 -> 0
C176: ='BNB-System'!G172 -> Mess- und Monitoringkonzept | D176: ='BNB-System'!H172 -> 15 | F176: ='Bewertung durch Anwender'!G176 -> 0 | G176: ='Bewertung durch Anwender'!N176 -> 0 | L176: ='BNB-System'!L172 -> 0
C177: ='BNB-System'!G173 -> Wasserkonzept | D177: ='BNB-System'!H173 -> 10 | F177: ='Bewertung durch Anwender'!G177 -> 0 | G177: ='Bewertung durch Anwender'!N177 -> 0 | L177: ='BNB-System'!L173 -> 0
C178: ='BNB-System'!G174 -> Konzept zur Vermeidung von Umwelt- und Gesundheitsrisiken aus Bauprodukten | D178: ='BNB-System'!H174 -> 10 | F178: ='Bewertung durch Anwender'!G178 -> 0 | G178: ='Bewertung durch Anwender'!N178 -> 0 | L178: ='BNB-System'!L174 -> 0
C179: ='BNB-System'!G175 -> Lüftungskonzept | D179: ='BNB-System'!H175 -> 10 | F179: ='Bewertung durch Anwender'!G179 -> 0 | G179: ='Bewertung durch Anwender'!N179 -> 0 | L179: ='BNB-System'!L175 -> 0
C180: ='BNB-System'!G176 -> Abfallkonzept / Wertstoffkonzept | D180: ='BNB-System'!H176 -> 5 | F180: ='Bewertung durch Anwender'!G180 -> 0 | G180: ='Bewertung durch Anwender'!N180 -> 0 | L180: ='BNB-System'!L176 -> 0
C181: ='BNB-System'!G177 -> Tages- / Kunstlichtoptimierung | D181: ='BNB-System'!H177 -> 10 | F181: ='Bewertung durch Anwender'!G181 -> 0 | G181: ='Bewertung durch Anwender'!N181 -> 0 | L181: ='BNB-System'!L177 -> 0
C182: ='BNB-System'!G178 -> Konzept zur Sicherung der Reinigungs- und Instandhaltungsfreundlichkeit | D182: ='BNB-System'!H178 -> 10 | F182: ='Bewertung durch Anwender'!G182 -> 0 | G182: ='Bewertung durch Anwender'!N182 -> 0 | L182: ='BNB-System'!L178 -> 0
C183: ='BNB-System'!G179 -> Anpassbarkeits-, Rückbau- und Recyclingkonzept | D183: ='BNB-System'!H179 -> 10 | F183: ='Bewertung durch Anwender'!G183 -> 0 | G183: ='Bewertung durch Anwender'!N183 -> 0 | L183: ='BNB-System'!L179 -> 0
C184: ='BNB-System'!G180 -> Konzept zur Vermeidung und Beherrschung von Risiken | D184: ='BNB-System'!H180 -> 10 | F184: ='Bewertung durch Anwender'!G184 -> 0 | G184: ='Bewertung durch Anwender'!N184 -> 0 | L184: ='BNB-System'!L180 -> 0
C185: ='BNB-System'!G181 -> Sonstige Konzepte zum Nachhaltigen Bauen | D185: ='BNB-System'!H181 -> 10 | F185: ='Bewertung durch Anwender'!G185 -> 0 | G185: ='Bewertung durch Anwender'!N185 -> 0 | L185: ='BNB-System'!L181 -> 0
C186: ='BNB-System'!G182 -> Prüfung der Planungsunterlagen durch unabhängige Dritte | D186: ='BNB-System'!H182 -> 5 | F186: ='Bewertung durch Anwender'!G186 -> 0 | G186: ='Bewertung durch Anwender'!N186 -> 0 | L186: ='BNB-System'!L182 -> 0
C187: ='BNB-System'!G183 -> Durchführung von Variantenvergleichen | D187: ='BNB-System'!H183 -> 10 | F187: ='Bewertung durch Anwender'!G187 -> 0 | G187: ='Bewertung durch Anwender'!N187 -> 0 | L187: ='BNB-System'!L183 -> 0
B188: ='BNB-System'!F184 -> 5.1.4 | C188: ='BNB-System'!G184 -> Ausschreibung und Vergabe | D188: ='BNB-System'!H184 -> 100 | E188: ='BNB-System'!K184 -> 0.008 | F188: ='Bewertung durch Anwender'!G188 -> 0 | G188: ='Bewertung durch Anwender'!N188 -> 0 | L188: ='BNB-System'!L184 -> 200 | M188: =IF(ISNUMBER(G188*E188/100),G188*E188/100,0) -> 0 | N188: =IF(ISNUMBER(H188*E188/100),H188*E188/100,0) -> 0
B189: ='BNB-System'!F185 -> 5.1.5 | C189: ='BNB-System'!G185 -> Voraussetzungen für eine optimale Bewirtschaftung | D189: ='BNB-System'!H185 -> 100 | E189: ='BNB-System'!K185 -> 0.008 | F189: ='Bewertung durch Anwender'!G189 -> 0 | G189: ='Bewertung durch Anwender'!N189 -> 0 | H189: =SUM(H190:H193) -> 0 | L189: ='BNB-System'!L185 -> 200 | M189: =IF(ISNUMBER(G189*E189/100),G189*E189/100,0) -> 0 | N189: =IF(ISNUMBER(H189*E189/100),H189*E189/100,0) -> 0
C190: ='BNB-System'!G186 -> Erstellung einer Gebäudeakte / Objektdokumentation | D190: ='BNB-System'!H186 -> 25 | F190: ='Bewertung durch Anwender'!G190 -> 0 | G190: ='Bewertung durch Anwender'!N190 -> 0 | L190: ='BNB-System'!L186 -> 0
C191: ='BNB-System'!G187 -> Erstellung von Wartungs-, Inspektions-, Betriebs-, und Pflegeanleitungen | D191: ='BNB-System'!H187 -> 25 | F191: ='Bewertung durch Anwender'!G191 -> 0 | G191: ='Bewertung durch Anwender'!N191 -> 0 | L191: ='BNB-System'!L187 -> 0
C192: ='BNB-System'!G188 -> Anpassung der Pläne und Berechnungen an das realisierte Gebäude | D192: ='BNB-System'!H188 -> 25 | F192: ='Bewertung durch Anwender'!G192 -> 0 | G192: ='Bewertung durch Anwender'!N192 -> 0 | L192: ='BNB-System'!L188 -> 0
C193: ='BNB-System'!G189 -> Erstellung eines Nutzerhandbuches | D193: ='BNB-System'!H189 -> 25 | F193: ='Bewertung durch Anwender'!G193 -> 0 | G193: ='Bewertung durch Anwender'!N193 -> 0 | L193: ='BNB-System'!L189 -> 0
B194: ='BNB-System'!F190 -> 5.1.6 | C194: ='BNB-System'!G190 -> Bestandsanalyse | D194: ='BNB-System'!H190 -> 100 | F194: ='Bewertung durch Anwender'!G194 -> 0 | G194: ='Bewertung durch Anwender'!N194 -> 0 | H194: =SUM(H195:H203) -> 0
C195: ='BNB-System'!G191 -> Bestandsaufnahme Geometrie | D195: ='BNB-System'!H191 -> 10 | F195: ='Bewertung durch Anwender'!G195 -> 0 | G195: ='Bewertung durch Anwender'!N195 -> 0
C196: ='BNB-System'!G192 -> Bestandsaufnahme Baukonstruktion und Baustoffe | D196: ='BNB-System'!H192 -> 20 | F196: ='Bewertung durch Anwender'!G196 -> 0 | G196: ='Bewertung durch Anwender'!N196 -> 0
C197: ='BNB-System'!G193 -> Bestandsaufnahme Haustechnik | D197: ='BNB-System'!H193 -> 10 | F197: ='Bewertung durch Anwender'!G197 -> 0 | G197: ='Bewertung durch Anwender'!N197 -> 0
C198: ='BNB-System'!G194 -> Bestandsaufnahme Bau- und Nutzungsgeschichte | D198: ='BNB-System'!H194 -> 5 | F198: ='Bewertung durch Anwender'!G198 -> 0 | G198: ='Bewertung durch Anwender'!N198 -> 0
C199: ='BNB-System'!G195 -> Bestandsaufnahme Exposition | D199: ='BNB-System'!H195 -> 5 | F199: ='Bewertung durch Anwender'!G199 -> 0 | G199: ='Bewertung durch Anwender'!N199 -> 0
C200: ='BNB-System'!G196 -> Baudiagnose Tragwerk | D200: ='BNB-System'!H196 -> 15 | F200: ='Bewertung durch Anwender'!G200 -> 0 | G200: ='Bewertung durch Anwender'!N200 -> 0
C201: ='BNB-System'!G197 -> Baudiagnose Energetische Qualität | D201: ='BNB-System'!H197 -> 15 | F201: ='Bewertung durch Anwender'!G201 -> 0 | G201: ='Bewertung durch Anwender'!N201 -> 0
C202: ='BNB-System'!G198 -> Baudiagnose Schadstoffe | D202: ='BNB-System'!H198 -> 10 | F202: ='Bewertung durch Anwender'!G202 -> 0 | G202: ='Bewertung durch Anwender'!N202 -> 0
... 58 more rows

Sheet Gültigkeitsliste (hidden)
A1: Erfüllt / nicht erfüllt
A2: o
A3: x

Sheet BNB-System (hidden)
C1: Projekt:
C2: Bewertungssystem Nachhaltiges Bauen (BNB)
C3: Systemvariante Unterrichtsgebäude, Modul Komplettmodernisierung (BNB_UK) - Version 2017
B4: Hinweis zu Denkmal-schutz | C4: identische Inhalte * | G4: Nachhaltigkeitskriterien | H4: Zielwert max. Punktzahl | I4: Punktzahl | J4: Bedeutungs-faktor | K4: Gewichtung Gesamt-bewertung | L4: Zielwert
F6: Ökologische Qualität | K6: 0.225 | L6: =SUM(L9:L27) -> 1800
G8: Wirkungen auf die globale und lokale Umwelt
B9: D | F9: 1.1.1 | G9: Treibhauspotenzial (GWP) | H9: 100 | J9: 3 | K9: =L9/$L6*K6 -> 0.0375 | L9: =H9*J9 -> 300
B10: D | F10: 1.1.2 | G10: Ozonschichtabbaupotenzial (ODP) | H10: 100 | J10: 1 | K10: =L10/L6*K6 -> 0.0125 | L10: 100
B11: D | F11: 1.1.3 | G11: Ozonbildungspotenzial (POCP) | H11: 100 | J11: 1 | K11: =L11/L6*K6 -> 0.0125 | L11: 100
B12: D | F12: 1.1.4 | G12: Versauerungspotenzial (AP) | H12: 100 | J12: 1 | K12: =L12/L6*K6 -> 0.0125 | L12: 100
B13: D | F13: 1.1.5 | G13: Überdüngungspotenzial (EP) | H13: 100 | J13: 1 | K13: =L13/L6*K6 -> 0.0125 | L13: 100
B14: D | D14: BK | F14: 1.1.6 | G14: Risiken für die lokale Umwelt | H14: 100 | J14: 3 | K14: =L14/L6*K6 -> 0.0375 | L14: 300
G15: Altsubstanz Q4 ; Neusubstanz Q5 | H15: 100
G16: Altsubstanz Q3 ; Neusubstanz Q4 | H16: 75
G17: Altsubstanz Q2 ; Neusubstanz Q3 | H17: 50
G18: Altsubstanz Q1 ; Neusubstanz Q2 | H18: 25
G19: Altsubstanz Q1 ; Neusubstanz Q1 | H19: 10
D20: BK | F20: 1.1.7 | G20: Nachhaltige Materialgewinnung / Biodiversität | H20: 100 | J20: 1 | K20: =L20/L6*K6 -> 0.0125 | L20: 100
G21: Ressourceninanspruchnahme
F22: 1.2.1 | G22: Primärenergiebedarf | H22: 100 | I22: =IF(SUM(I23:I25)>100,100,SUM(I23:I25)) -> 0 | J22: 3 | K22: =L22/$L6*K6 -> 0.0375 | L22: =H22*J22 -> 300
G23: Primärenergiebedarf nicht erneuerbar (PEne) | H23: 60
G24: Gesamtprimärenergiebedarf (PEges) | H24: 40
G25: Anteil der erneuerbaren Primärenergie (Pee) | H25: 20
E26: UN | F26: 1.2.3 | G26: Trinkwasserbedarf und Abwasseraufkommen | H26: 100 | J26: 2 | K26: =L26/$L$6*$K$6 -> 0.025 | L26: =H26*J26 -> 200
D27: BK | F27: 1.2.4 | G27: Flächeninanspruchnahme | H27: 100 | I27: =IF(SUM(I28:I29)>100,100,SUM(I28:I29)) -> 0 | J27: 2 | K27: =L27/$L$6*$K$6 -> 0.025 | L27: =H27*J27 -> 200
G28: Veränderung der Flächeninanspruchnahme | H28: 100
G29: Ausgleichsmaßnahmen und Flächenrecycling | H29: 40
F31: Ökonomische Qualität | K31: 0.225 | L31: =SUM(L34:L36) -> 500
G33: Lebenszykluskosten
B34: D | F34: 2.1.1 | G34: Gebäudebezogene Kosten im Lebenszyklus | H34: 100 | J34: 3 | K34: =L34/$L31*K31 -> 0.135 | L34: =H34*J34 -> 300
G35: Wirtschaftlichkeit und Wertstabilität
B36: D | F36: 2.2.2 | G36: Anpassungsfähigkeit | H36: 100 | I36: =IF(SUM(I37:I42)>100,100,SUM(I37:I42)) -> 0 | J36: 2 | K36: =L36/$L$31*$K$31 -> 0.09 | L36: =H36*J36 -> 200
G37: Lichte Raumhöhe | H37: 15
G38: Gebäudetiefe | H38: 15
G39: Vertikale Erschließung | H39: 15
G40: Grundrisse | H40: 25
G41: Konstruktion | H41: 20
G42: Technische Ausstattung | H42: 10
F44: Soziokulturelle und funktionale Qualität | K44: 0.225 | L44: =SUM(L47:L123) -> 2700
G46: Gesundheit, Behaglichkeit und Nutzerzufriedenheit
C47: BN | D47: BK | E47: UN | F47: 3.1.1 | G47: Thermischer Komfort | H47: 100 | I47: =IF(SUM(I49:I57)>100,100,SUM(I49:I57)) -> 0 | J47: 3 | K47: =L47/$L$44*$K$44 -> 0.025 | L47: =H47*J47 -> 300
C48: BN | E48: UN | G48: Winter
C49: BN | E49: UN | G49: Operative Temperatur | H49: 10
C50: BN | E50: UN | G50: Zugluft | H50: 10
C51: BN | E51: UN | G51: Stahlungstemperaturasymmetrie und Fußbodentemperatur | H51: 10
C52: BN | E52: UN | G52: Luftfeuchte | H52: 10
C53: BN | E53: UN | G53: Sommer
C54: BN | E54: UN | G54: Operative Temperatur | H54: 30
C55: BN | E55: UN | G55: Zugluft | H55: 10
C56: BN | E56: UN | G56: Stahlungstemperaturasymmetrie und Fußbodentemperatur | H56: 10
C57: BN | E57: UN | G57: Luftfeuchte | H57: 10
C58: BN | D58: BK | E58: UN | F58: 3.1.3 | G58: Innenraumlufthygiene | H58: 100 | I58: =IF(SUM(I59:I60)>100,100,SUM(I59:I60)) -> 0 | J58: 3 | K58: =L58/$L$44*$K$44 -> 0.025 | L58: =H58*J58 -> 300
C59: BN | D59: BK | E59: UN | G59: Flüchtige organische Stoffe (VOC) und Formaldehyd | H59: 50
C60: BN | D60: BK | E60: UN | G60: Personenbezogene Lüftungsrate | H60: 50
C61: BN | D61: BK | E61: UN | F61: 3.1.4 | G61: Akustischer Komfort | H61: 100 | I61: =IF(SUM(I63:I70)>100,100,SUM(I63:I70)) -> 0 | J61: 2 | K61: =L61/$L$44*$K$44 -> 0.01666666667 | L61: =H61*J61 -> 200
E62: UN | G62: Räume Gruppe A
E63: UN | G63: Musik | H63: 100
E64: UN | G64: Sprache/ Vortrag | H64: 100
E65: UN | G65: Unterricht Kommunikation | H65: 100
E66: UN | G66: Sport | H66: 100
E67: UN | G67: Räume Gruppe B
E68: UN | G68: Einzel- und Mehrpersonenbüros bis 100 m3 | H68: 100
E69: UN | G69: Mehrpersonenbüros über 100 m3 | H69: 100
E70: UN | G70: Weitere Räume | H70: 100
E71: UN | F71: 3.1.5 | G71: Visueller Komfort | H71: 100 | I71: =IF(SUM(I72:I78)>100,100,SUM(I72:I78)) -> 0 | J71: 2 | K71: =L71/$L$44*$K$44 -> 0.01666666667 | L71: =H71*J71 -> 200
E72: UN | G72: Tageslichtverfügbarkeit Gesamtgebäude | H72: 15
E73: UN | G73: Tageslichtverfügbarkeit ständige Arbeitsplätze | H73: 15
E74: UN | G74: Nachweis de Sichtverbindung außen | H74: 35
E75: UN | G75: Blendfreiheit Tageslicht | H75: 10
E76: UN | G76: Blendfreiheit Kunstlicht | H76: 5
E77: UN | G77: Lichtverteilung | H77: 20
E78: UN | G78: Farbwiedergabe | H78: 10
E79: UN | F79: 3.1.6 | G79: Einflussnahmemöglichkeiten durch Nutzer | H79: 100 | I79: =IF(SUM(I80:I88)>100,100,SUM(I80:I88)) -> 0 | J79: 2 | K79: =L79/$L$44*$K$44 -> 0.01666666667 | L79: =H79*J79 -> 200
E80: UN | G80: Lüftung | H80: 10
E81: UN | G81: Sonnenschutz | H81: 10
E82: UN | G82: Blendschutz | H82: 10
E83: UN | G83: Temperaturen während der Heizperiode | H83: 10
E84: UN | G84: Temperaturen außerhalb der Heizperiode | H84: 15
E85: UN | G85: Steuerung von Tageslicht | H85: 10
E86: UN | G86: Steuerung von Kunstlicht | H86: 10
E87: UN | G87: Bedienfreundlichkeit | H87: 10
E88: UN | G88: Funktionskonzept der Haustechnik | H88: 15
E89: UN | F89: 3.1.7 | G89: Aufenthaltsmerkmale im Außenraum | H89: 100 | I89: =IF(SUM(I90:I93)>100,100,SUM(I90:I93)) -> 0 | J89: 2 | K89: =L89/$L$44*$K$44 -> 0.01666666667 | L89: =H89*J89 -> 200
E90: UN | G90: Anzahl und Vielfalt Sitzgelegenheiten | H90: 30
E91: UN | G91: Anzahlund Vielfalt der Spiel- und Sportmöglichkeiten | H91: 15
E92: UN | G92: Zuordnung von Freibereichen zu Innenräumen | H92: 20
E93: UN | G93: Ausstattungsmerkmale | H93: 39
C94: BN | D94: BK | E94: UN | F94: 3.1.8 | G94: Sicherheit | H94: 100 | J94: 1 | K94: =L94/$L$44*$K$44 -> 0.008333333333 | L94: =H94*J94 -> 100
E95: UN | F95: 3.1.9 | G95: Innenraumqualität | H95: 100 | I95: =IF(SUM(I96:I99)>100,100,SUM(I96:I99)) -> 0 | J95: 3 | K95: =L95/$L$44*$K$44 -> 0.025 | L95: =H95*J95 -> 300
G96: Aufenthaltsqualitäten der Erschließungsflächen | H96: 45
G97: Innere Sitzbeziehung | H97: 15
G98: Flexibilität der Raumnutzung | H98: 30
G99: Aufbewahrungsmöglichkeiten | H99: 40
G100: Funktionalität
E101: UN | F101: 3.2.1 | G101: Barrierefreiheit | H101: 100 | J101: 2 | K101: =L101/$L$44*$K$44 -> 0.01666666667 | L101: =H101*J101 -> 200
E102: UN | F102: 3.2.4 | G102: Zugänglichkeit | H102: =IF(SUM(H103:H106)>100,100,SUM(H103:H106)) -> 100 | I102: =IF(SUM(I103:I106)>100,100,SUM(I103:I106)) -> 0 | J102: 2 | K102: =L102/$L$44*$K$44 -> 0.01666666667 | L102: =H102*J102 -> 200
G103: Grundsätzliche öffentliche Zugänglichkeit des Gebäudes | H103: 20
G104: Qualitative Merkmale der öffentlichen Zugänglichkeit des Gebäudes | H104: 50
G105: Nutzungsmerkmale der Zugänglichkeit | H105: 50
G106: Qualitative Aspekte der öffentlichen Zugänglichkeit der Freiflächen | H106: 20
C107: BN | D107: BK | E107: UN | F107: 3.2.5 | G107: Mobilitätsinfrastruktur | H107: =IF(SUM(H108:H110)>100,100,SUM(H108:H110)) -> 100 | I107: =IF(SUM(I108:I110)>100,100,SUM(I108:I110)) -> 0 | J107: 1 | K107: =L107/$L$44*$K$44 -> 0.008333333333 | L107: =H107*J107 -> 100
G108: Anzahl der Fahrradstellplätze | H108: 40
G109: Anzahl der Lademöglichkeiten und Carsharing-Stellplätze | H109: 20
G110: Qualitative Anforderungen an Fahrradstellplätze | H110: 60
G111: Sicherung der Gestaltungsqualität
B112: D | D112: BK | F112: 3.3.1 | G112: Gestalterische und städtebauliche Qualität | H112: =IF(SUM(H113:H118)>100,100,SUM(H113:H118)) -> 100 | I112: =IF(AND(I113>0,I117<=I118),SUM(I113:I116),IF(AND(I113>0,I118<=I117),SUM(I113:I116),IF(I117>0,I117,IF(I118>0,I118,)))) -> 0 | J112: 3 | K112: =L112/$L$44*$K$44 -> 0.025 | L112: =H112*J112 -> 300
D113: BK | G113: Fortentwicklung der gestalterischen und städtebaulichen Qualität des Bestandsgebäudes | H113: 40
D114: BK | G114: Wettbewerbsverfahren | H114: 35
D115: BK | G115: Ausführung des Entwurfs eines der Preisträger | H115: 20
D116: BK | G116: Beauftragung des Planungsteams | H116: 5
D117: BK | G117: Auszeichnung mit einem Architekturpreis | H117: 40
D118: BK | G118: Unabhängiges Expertengremium | H118: 30
D119: BK | F119: 3.3.2 | G119: Kunst am Bau | H119: =IF(SUM(H120:H123)>100,100,SUM(H120:H123)) -> 100 | I119: =IF(SUM(I120:I123)>100,100,SUM(I120:I123)) -> 0 | J119: 1 | K119: =L119/$L$44*$K$44 -> 0.008333333333 | L119: =H119*J119 -> 100
G120: Mindestanforderung | H120: 10
G121: Bereitstellung von Mitteln im Rahmen der Bauaufgabe | H121: 30
G122: Umsetzung des Leitfadens Kunst am Bau | H122: 40
G123: Öffentlichkeitsarbeit, Rezeption der Kunst am Bau | H123: 20
F125: Technische Qualität | K125: 0.225 | L125: =SUM(L128:L153) -> 1000
G127: technische Ausführung
E128: UN | F128: 4.1.1 | G128: Schallschutz | H128: =IF(SUM(H129:H132)>100,100,SUM(H129:H132)) -> 100 | I128: =IF(SUM(I129:I132)>100,100,SUM(I129:I132)) -> 0 | J128: 2 | K128: =L128/$L$125*$K$125 -> 0.045 | L128: =H128*J128 -> 200
G129: Luftschallschutz gegen Außenlärm | H129: 20
G130: Luftschallschutz | H130: 30
G131: Trittschallschutz | H131: 30
G132: Schallschutz gegenüber haustechnischen Anlagen | H132: 20
B133: D | D133: BK | F133: 4.1.2 | G133: Wärme- und Tauwasserschutz | H133: =IF(SUM(H134:H139)>100,100,SUM(H134:H139)) -> 100 | I133: =IF(SUM(I134:I139)>100,100,SUM(I134:I139)) -> 0 | J133: 2 | K133: =L133/$L$125*$K$125 -> 0.045 | L133: =H133*J133 -> 200
G134: Mittlere Wärmeduchgangskoeffizienten | H134: 30
G135: Wärmebrückenzuschlag | H135: 15
G136: Klassen der Luftdurchlässigkeit (Fugendurchlässigkeit) | H136: 15
G137: Tauwasserbildung | H137: 10
G138: Luftwechsel | H138: 15
G139: Sonneneintragswert | H139: 15
E140: UN | F140: 4.1.3 | G140: Reinigungs- und Instandhaltungsfreundlichkeit | H140: 100 | I140: =IF(SUM(I141:I150)>100,100,SUM(I141:I150)) -> 0 | J140: 2 | K140: =L140/$L$125*$K$125 -> 0.045 | L140: =H140*J140 -> 200
C141: BN | D141: BK | E141: UN | G141: Tragkonstruktion | H141: 15
C142: BN | D142: BK | E142: UN | G142: Zugänglichkeit der Außenglasflächen | H142: 12
C143: BN | D143: BK | E143: UN | G143: Außenbauteile | H143: 9
C144: BN | D144: BK | E144: UN | G144: Bodenbelag | H144: 9
C145: BN | D145: BK | E145: UN | G145: Schmutzfangzone | H145: 9
C146: BN | D146: BK | E146: UN | G146: Fußbodenleisten | H146: 9
C147: BN | D147: BK | E147: UN | G147: Hindernisfreie Grundrissgestaltung | H147: 9
C148: BN | D148: BK | E148: UN | G148: Einbauten | H148: 10
C149: BN | D149: BK | E149: UN | G149: Zugänglichkeit der Innenglasflächen | H149: 9
C150: BN | D150: BK | E150: UN | G150: Wände | H150: 9
C151: BN | D151: BK | E151: UN | F151: 4.1.4 | G151: Rückbau, Trennung und Verwertung | H151: 100 | J151: 2 | K151: =L151/$L$125*$K$125 -> 0.045 | L151: =H151*J151 -> 200
C152: BN | D152: BK | E152: UN | F152: 4.1.5 | G152: Widerstandsfähigkeit gegen Naturgefahren | H152: 100 | J152: 1 | K152: =L152/$L$125*$K$125 -> 0.0225 | L152: =H152*J152 -> 100
C153: BN | D153: BK | E153: UN | F153: 4.1.6 | G153: Bedienungs- und Instandhaltungsfreundlichkeit der TGA | H153: 100 | J153: 1 | K153: =L153/$L$125*$K$125 -> 0.0225 | L153: =H153*J153 -> 100
F155: Prozessqualität | K155: 0.1 | L155: =SUM(L158:L213) -> 2500
G157: Planung
E158: UN | F158: 5.1.1 | G158: Projektvorbereitung | H158: =IF(SUM(H159:H161)>100,100,SUM(H159:H161)) -> 100 | I158: =IF(SUM(I159:I161)>100,100,SUM(I159:I161)) -> 0 | J158: 3 | K158: =L158/$L$155*$K$155 -> 0.012 | L158: =H158*J158 -> 300
E159: UN | G159: Bedarfsplanung oder vergleichbare Planung | H159: 35
E160: UN | G160: Zielvereinbarung | H160: 35
E161: UN | G161: Architektenwettbewerb | H161: 30
E162: UN | F162: 5.1.2 | G162: Integrale Planung | H162: =IF(SUM(H163:H167)>100,100,SUM(H163:H167)) -> 100 | I162: =IF(SUM(I163:I167)>100,100,SUM(I163:I167)) -> 0 | J162: 3 | K162: =L162/$L$155*$K$155 -> 0.012 | L162: =H162*J162 -> 300
G163: Integrales Planungsteam | H163: 20
G164: Qualifikation des Planungsteams | H164: 20
G165: Integraler Planungsprozess | H165: 20
G166: Nutzerbeteiligung | H166: 30
G167: Öffentlichkeitsbeteiligung | H167: 10
C168: BN | D168: BK | E168: UN | F168: 5.1.3 | G168: Komplexität und Optimierung der Planung | H168: =IF(SUM(H169:H183)>100,100,SUM(H169:H183)) -> 100 | I168: =IF(SUM(I169:I183)>100,100,SUM(I169:I183)) -> 0 | J168: 3 | K168: =L168/$L$155*$K$155 -> 0.012 | L168: =H168*J168 -> 300
C169: BN | D169: BK | E169: UN | G169: SiGe-Plan | H169: 10
C170: BN | D170: BK | E170: UN | G170: Ver- und Entsiegelungskonzept | H170: 10
C171: BN | D171: BK | E171: UN | G171: Energiekonzept | H171: 15
C172: BN | D172: BK | E172: UN | G172: Mess- und Monitoringkonzept | H172: 15
C173: BN | D173: BK | E173: UN | G173: Wasserkonzept | H173: 10
C174: BN | D174: BK | E174: UN | G174: Konzept zur Vermeidung von Umwelt- und Gesundheitsrisiken aus Bauprodukten | H174: 10
C175: BN | D175: BK | E175: UN | G175: Lüftungskonzept | H175: 10
C176: BN | D176: BK | E176: UN | G176: Abfallkonzept / Wertstoffkonzept | H176: 5
C177: BN | D177: BK | E177: UN | G177: Tages- / Kunstlichtoptimierung | H177: 10
C178: BN | D178: BK | E178: UN | G178: Konzept zur Sicherung der Reinigungs- und Instandhaltungsfreundlichkeit | H178: 10
C179: BN | D179: BK | E179: UN | G179: Anpassbarkeits-, Rückbau- und Recyclingkonzept | H179: 10
C180: BN | D180: BK | E180: UN | G180: Konzept zur Vermeidung und Beherrschung von Risiken | H180: 10
C181: BN | D181: BK | E181: UN | G181: Sonstige Konzepte zum Nachhaltigen Bauen | H181: 10
C182: BN | D182: BK | E182: UN | G182: Prüfung der Planungsunterlagen durch unabhängige Dritte | H182: 5
C183: BN | D183: BK | E183: UN | G183: Durchführung von Variantenvergleichen | H183: 10
C184: BN | D184: BK | E184: UN | F184: 5.1.4 | G184: Ausschreibung und Vergabe | H184: 100 | J184: 2 | K184: =L184/$L$155*$K$155 -> 0.008 | L184: =H184*J184 -> 200
C185: BN | D185: BK | E185: UN | F185: 5.1.5 | G185: Voraussetzungen für eine optimale Bewirtschaftung | H185: =IF(SUM(H186:H189)>100,100,SUM(H186:H189)) -> 100 | I185: =IF(SUM(I186:I189)>100,100,SUM(I186:I189)) -> 0 | J185: 2 | K185: =L185/$L$155*$K$155 -> 0.008 | L185: =H185*J185 -> 200
G186: Erstellung einer Gebäudeakte / Objektdokumentation | H186: 25
G187: Erstellung von Wartungs-, Inspektions-, Betriebs-, und Pflegeanleitungen | H187: 25
G188: Anpassung der Pläne und Berechnungen an das realisierte Gebäude | H188: 25
G189: Erstellung eines Nutzerhandbuches | H189: 25
D190: BK | F190: 5.1.6 | G190: Bestandsanalyse | H190: 100 | I190: =IF(SUM(I191:I199)>100,100,SUM(I191:I199)) -> 0 | J190: 3 | K190: =L190/$L$155*$K$155 -> 0.012 | L190: =H190*J190 -> 300
D191: BK | G191: Bestandsaufnahme Geometrie | H191: 10
D192: BK | G192: Bestandsaufnahme Baukonstruktion und Baustoffe | H192: 20
D193: BK | G193: Bestandsaufnahme Haustechnik | H193: 10
D194: BK | G194: Bestandsaufnahme Bau- und Nutzungsgeschichte | H194: 5
D195: BK | G195: Bestandsaufnahme Exposition | H195: 5
D196: BK | G196: Baudiagnose Tragwerk | H196: 15
D197: BK | G197: Baudiagnose Energetische Qualität | H197: 15
D198: BK | G198: Baudiagnose Schadstoffe | H198: 10
D199: BK | G199: Baudiagnose Feuchte- und Salzbelastung | H199: 10
D200: BK | F200: 5.1.7 | G200: Rückbaumaßnahmen | H200: 100 | I200: =IF(SUM(I201:I203)>100,100,SUM(I201:I203)) -> 0 | J200: 1 | K200: =L200/$L$155*$K$155 -> 0.004 | L200: =H200*J200 -> 100
G201: Planung des Rückbaus | H201: 50
G202: Selektiver Rückbau | H202: 25
G203: Prüfen auf Abfalltrennung und Entsorgung | H203: 25
G204: Bauausführung
C205: BN | D205: BK | E205: UN | F205: 5.2.1 | G205: Baustelle / Bauprozess | H205: =IF(SUM(H206:H209)>100,100,SUM(H206:H209)) -> 100 | I205: =IF(SUM(I206:I209)>100,100,SUM(I206:I209)) -> 0 | J205: 2 | K205: =L205/$L$155*$K$155 -> 0.008 | L205: =H205*J205 -> 200
C206: BN | D206: BK | E206: UN | G206: Wertstoffoptimierte Baustelle | H206: 25
C207: BN | D207: BK | E207: UN | G207: Lärmarme Baustelle | H207: 25
C208: BN | D208: BK | E208: UN | G208: Staubarme Baustelle | H208: 25
C209: BN | D209: BK | E209: UN | G209: Bodenschutz auf der Baustelle | H209: 25
C210: BN | D210: BK | E210: UN | F210: 5.2.2 | G210: Qualitätssicherung der Bauausführung | H210: =IF(SUM(H211:H213)>100,100,SUM(H211:H213)) -> 100 | I210: =IF(SUM(I211:I212)>100,100,SUM(I211:I212)) -> 0 | J210: 3 | K210: =L210/$L$155*$K$155 -> 0.012 | L210: =H210*J210 -> 300
... 44 more rows

Sheet Hilfstabelle (hidden)
A4: Eingereichte Endbewertung | C4: Bemerkung Konformitätsprüfung Prüfung vom: | D4: Bearbeiter
A5: Anwender | B5: Konformitätsprüfung | C5: =TODAY() -> 2018-03-12
A7: =Konformitätsprüfung!$G7 -> 0 | B7: =B10+B35+B48+B129+B158 -> 0
A10: =Konformitätsprüfung!$G10 -> 0 | B10: =B13*($E$13/100)+B14*($E$14/100)+B15*($E$15/100)+B16*($E$16/100)+B17*($E$17/100)+B18*($E$18/100)+B24*($E$24/100)+B26*($E$26/100)+B30*($E$30/100)+B31*($E$31/100) -> 0
A13: =Konformitätsprüfung!$G13 -> 0 | B13: =Konformitätsprüfung!$H13 -> 0
A14: =Konformitätsprüfung!$G14 -> 0 | B14: =Konformitätsprüfung!$H14 -> 0
A15: =Konformitätsprüfung!$G15 -> 0 | B15: =Konformitätsprüfung!$H15 -> 0
A16: =Konformitätsprüfung!$G16 -> 0 | B16: =Konformitätsprüfung!$H16 -> 0
A17: =Konformitätsprüfung!$G17 -> 0 | B17: =Konformitätsprüfung!$H17 -> 0
A18: =Konformitätsprüfung!$G18 -> 0 | B18: =IF(SUM(B19:B23)>100,100,SUM(B19:B23)) -> 0
A19: =Konformitätsprüfung!$G19 -> 0 | B19: =Konformitätsprüfung!$H19 -> 0
A20: =Konformitätsprüfung!$G20 -> 0 | B20: =Konformitätsprüfung!$H20 -> 0
A21: =Konformitätsprüfung!$G21 -> 0 | B21: =Konformitätsprüfung!$H21 -> 0
A22: =Konformitätsprüfung!$G22 -> 0 | B22: =Konformitätsprüfung!$H22 -> 0
A23: =Konformitätsprüfung!$G23 -> 0 | B23: =Konformitätsprüfung!$H23 -> 0
A24: =Konformitätsprüfung!$G24 -> 0 | B24: =Konformitätsprüfung!$H24 -> 0
A26: =Konformitätsprüfung!$G26 -> 0 | B26: =IF(SUM(B27:B29)>100,100,SUM(B27:B29)) -> 0
A27: =Konformitätsprüfung!$G27 -> 0 | B27: =Konformitätsprüfung!$H27 -> 0
A28: =Konformitätsprüfung!$G29 -> 0 | B28: =Konformitätsprüfung!$H29 -> 0
A29: =Konformitätsprüfung!$G30 -> 0 | B29: =Konformitätsprüfung!$H30 -> 0
A30: =Konformitätsprüfung!$G30 -> 0 | B30: =Konformitätsprüfung!$H30 -> 0
A31: =Konformitätsprüfung!$G31 -> 0 | B31: =IF(SUM(B32:B33)>100,100,SUM(B32:B33)) -> 0
A32: =Konformitätsprüfung!$G32 -> 0 | B32: =Konformitätsprüfung!$H32 -> 0
A33: =Konformitätsprüfung!$G33 -> 0 | B33: =Konformitätsprüfung!$H33 -> 0
A35: =Konformitätsprüfung!$G35 -> 0 | B35: =B38*($E$38/100)+B40*($E$40/100) -> 0
A38: =Konformitätsprüfung!$G38 -> 0 | B38: =Konformitätsprüfung!$H38 -> 0
A40: =Konformitätsprüfung!$G40 -> 0 | B40: =SUM(B41:B46) -> 0
A41: =Konformitätsprüfung!$G41 -> 0 | B41: =Konformitätsprüfung!$H41 -> 0
A42: =Konformitätsprüfung!$G42 -> 0 | B42: =Konformitätsprüfung!$H42 -> 0
A43: =Konformitätsprüfung!$G43 -> 0 | B43: =Konformitätsprüfung!$H43 -> 0
A44: =Konformitätsprüfung!$G44 -> 0 | B44: =Konformitätsprüfung!$H44 -> 0
A45: =Konformitätsprüfung!$G45 -> 0 | B45: =Konformitätsprüfung!$H45 -> 0
A46: =Konformitätsprüfung!$G46 -> 0 | B46: =Konformitätsprüfung!$H46 -> 0
A48: =Konformitätsprüfung!$G48 -> 0 | B48: =B51*($E$51/100)+B62*($E$62/100)+B65*($E$65/100)+B75*($E$75/100)+B83*($E$83/100)+B93*($E$93/100)+B98*($E$98/100)+B105*($E$105/100)+B106*($E$106/100)+B111*($E$111/100)+B116*($E$116/100)+B123*($E$123/100) -> 0
A51: =Konformitätsprüfung!$G51 -> 0 | B51: =SUM(B52:B61) -> 0
A53: =Konformitätsprüfung!$G53 -> 0 | B53: =Konformitätsprüfung!$H53 -> 0
A54: =Konformitätsprüfung!$G54 -> 0 | B54: =Konformitätsprüfung!$H54 -> 0
A55: =Konformitätsprüfung!$G55 -> 0 | B55: =Konformitätsprüfung!$H55 -> 0
A56: =Konformitätsprüfung!$G56 -> 0 | B56: =Konformitätsprüfung!$H56 -> 0
A58: =Konformitätsprüfung!$G58 -> 0 | B58: =Konformitätsprüfung!$H58 -> 0
A59: =Konformitätsprüfung!$G59 -> 0 | B59: =Konformitätsprüfung!$H59 -> 0
A60: =Konformitätsprüfung!$G60 -> 0 | B60: =Konformitätsprüfung!$H60 -> 0
A61: =Konformitätsprüfung!$G61 -> 0 | B61: =Konformitätsprüfung!$H61 -> 0
A62: =Konformitätsprüfung!$G62 -> 0 | B62: =IF(SUM(B63:B64)>100,100,SUM(B63:B64)) -> 0
A63: =Konformitätsprüfung!$G63 -> 0 | B63: =Konformitätsprüfung!$H63 -> 0
A64: =Konformitätsprüfung!$G64 -> 0 | B64: =Konformitätsprüfung!$H64 -> 0
A65: =Konformitätsprüfung!$G65 -> 0 | B65: =SUM(B66:B74) -> 0
A67: =Konformitätsprüfung!$G67 -> 0 | B67: =Konformitätsprüfung!$H67 -> 0
A68: =Konformitätsprüfung!$G68 -> 0 | B68: =Konformitätsprüfung!$H68 -> 0
A69: =Konformitätsprüfung!$G69 -> 0 | B69: =Konformitätsprüfung!$H69 -> 0
A70: =Konformitätsprüfung!$G70 -> 0 | B70: =Konformitätsprüfung!$H70 -> 0
A72: =Konformitätsprüfung!$G72 -> 0 | B72: =Konformitätsprüfung!$H72 -> 0
A73: =Konformitätsprüfung!$G73 -> 0 | B73: =Konformitätsprüfung!$H73 -> 0
A74: =Konformitätsprüfung!$G74 -> 0 | B74: =Konformitätsprüfung!$H74 -> 0
A75: =Konformitätsprüfung!$G75 -> 0 | B75: =SUM(B76:B82) -> 0
A76: =Konformitätsprüfung!$G76 -> 0 | B76: =Konformitätsprüfung!$H76 -> 0
A77: =Konformitätsprüfung!$G77 -> 0 | B77: =Konformitätsprüfung!$H77 -> 0
A78: =Konformitätsprüfung!$G78 -> 0 | B78: =Konformitätsprüfung!$H78 -> 0
A79: =Konformitätsprüfung!$G79 -> 0 | B79: =Konformitätsprüfung!$H79 -> 0
A80: =Konformitätsprüfung!$G80 -> 0 | B80: =Konformitätsprüfung!$H80 -> 0
A81: =Konformitätsprüfung!$G81 -> 0 | B81: =Konformitätsprüfung!$H81 -> 0
A82: =Konformitätsprüfung!$G82 -> 0 | B82: =Konformitätsprüfung!$H82 -> 0
A83: =Konformitätsprüfung!$G83 -> 0 | B83: =SUM(B84:B92) -> 0
A84: =Konformitätsprüfung!$G84 -> 0 | B84: =Konformitätsprüfung!$H84 -> 0
A85: =Konformitätsprüfung!$G85 -> 0 | B85: =Konformitätsprüfung!$H85 -> 0
A86: =Konformitätsprüfung!$G86 -> 0 | B86: =Konformitätsprüfung!$H86 -> 0
A87: =Konformitätsprüfung!$G87 -> 0 | B87: =Konformitätsprüfung!$H87 -> 0
A88: =Konformitätsprüfung!$G88 -> 0 | B88: =Konformitätsprüfung!$H88 -> 0
A89: =Konformitätsprüfung!$G89 -> 0 | B89: =Konformitätsprüfung!$H89 -> 0
A90: =Konformitätsprüfung!$G90 -> 0 | B90: =Konformitätsprüfung!$H90 -> 0
A91: =Konformitätsprüfung!$G91 -> 0 | B91: =Konformitätsprüfung!$H91 -> 0
A92: =Konformitätsprüfung!$G92 -> 0 | B92: =Konformitätsprüfung!$H92 -> 0
A93: =Konformitätsprüfung!$G93 -> 0 | B93: =SUM(B94:B97) -> 0
A94: =Konformitätsprüfung!$G94 -> 0 | B94: =Konformitätsprüfung!$H94 -> 0
A95: =Konformitätsprüfung!$G95 -> 0 | B95: =Konformitätsprüfung!$H95 -> 0
A96: =Konformitätsprüfung!$G96 -> 0 | B96: =Konformitätsprüfung!$H96 -> 0
A97: =Konformitätsprüfung!$G97 -> 0 | B97: =Konformitätsprüfung!$H97 -> 0
A98: =Konformitätsprüfung!$G98 -> 0
A99: =Konformitätsprüfung!$G99 -> 0 | B99: =SUM(B100:B103) -> 0
A100: =Konformitätsprüfung!$G100 -> 0 | B100: =Konformitätsprüfung!$H100 -> 0
A101: =Konformitätsprüfung!$G101 -> 0 | B101: =Konformitätsprüfung!$H101 -> 0
A102: =Konformitätsprüfung!$G102 -> 0 | B102: =Konformitätsprüfung!$H102 -> 0
A103: =Konformitätsprüfung!$G103 -> 0 | B103: =Konformitätsprüfung!$H103 -> 0
A105: =Konformitätsprüfung!$G105 -> 0 | B105: =Konformitätsprüfung!$H105 -> 0
A106: =Konformitätsprüfung!$G106 -> 0 | B106: =SUM(B107:B110) -> 0
A107: =Konformitätsprüfung!$G107 -> 0 | B107: =Konformitätsprüfung!$H107 -> 0
A108: =Konformitätsprüfung!$G108 -> 0 | B108: =Konformitätsprüfung!$H108 -> 0
A109: =Konformitätsprüfung!$G109 -> 0 | B109: =Konformitätsprüfung!$H109 -> 0
A110: =Konformitätsprüfung!$G110 -> 0 | B110: =Konformitätsprüfung!$H110 -> 0
A111: =Konformitätsprüfung!$G111 -> 0 | B111: =SUM(B112:B114) -> 0
A112: =Konformitätsprüfung!$G112 -> 0 | B112: =Konformitätsprüfung!$H112 -> 0
A113: =Konformitätsprüfung!$G113 -> 0 | B113: =Konformitätsprüfung!$H113 -> 0
A114: =Konformitätsprüfung!$G114 -> 0 | B114: =Konformitätsprüfung!$H114 -> 0
A116: =Konformitätsprüfung!$G116 -> 0 | B116: =IF(AND(B117>0,B121<=B122),SUM(B117:B120),IF(AND(B117>0,B122<=B121),SUM(B117:B120),IF(B121>0,B121,IF(B122>0,B122,)))) -> 0
A117: =Konformitätsprüfung!$G117 -> 0 | B117: =Konformitätsprüfung!$H117 -> 0
A118: =Konformitätsprüfung!$G118 -> 0 | B118: =Konformitätsprüfung!$H118 -> 0
A119: =Konformitätsprüfung!$G119 -> 0 | B119: =Konformitätsprüfung!$H119 -> 0
A120: =Konformitätsprüfung!$G120 -> 0 | B120: =Konformitätsprüfung!$H120 -> 0
A121: =Konformitätsprüfung!$G121 -> 0 | B121: =Konformitätsprüfung!$H121 -> 0
A122: =Konformitätsprüfung!$G122 -> 0 | B122: =Konformitätsprüfung!$H122 -> 0
A123: =Konformitätsprüfung!$G123 -> 0 | B123: =SUM(B124:B127) -> 0
A124: =Konformitätsprüfung!$G124 -> 0 | B124: =Konformitätsprüfung!$H124 -> 0
A125: =Konformitätsprüfung!$G125 -> 0 | B125: =Konformitätsprüfung!$H125 -> 0
A126: =Konformitätsprüfung!$G126 -> 0 | B126: =Konformitätsprüfung!$H126 -> 0
A127: =Konformitätsprüfung!$G127 -> 0 | B127: =Konformitätsprüfung!$H127 -> 0
A129: =Konformitätsprüfung!$G129 -> 0 | B129: =B132*($E$132/100)+B144*($E$144/100)+B154*($E$154/100)+B155*($E$155/100)+B156*($E$156/100) -> 0
A132: =Konformitätsprüfung!$G132 -> 0 | B132: =SUM(B133:B136) -> 0
A133: =Konformitätsprüfung!$G133 -> 0 | B133: =Konformitätsprüfung!$H133 -> 0
A134: =Konformitätsprüfung!$G134 -> 0 | B134: =Konformitätsprüfung!$H134 -> 0
A135: =Konformitätsprüfung!$G135 -> 0 | B135: =Konformitätsprüfung!$H135 -> 0
A136: =Konformitätsprüfung!$G136 -> 0 | B136: =Konformitätsprüfung!$H136 -> 0
A137: =Konformitätsprüfung!$G137 -> 0 | B137: =SUM(B138:B143) -> 0
A138: =Konformitätsprüfung!$G138 -> 0 | B138: =Konformitätsprüfung!$H138 -> 0
A139: =Konformitätsprüfung!$G139 -> 0 | B139: =Konformitätsprüfung!$H139 -> 0
A140: =Konformitätsprüfung!$G140 -> 0 | B140: =Konformitätsprüfung!$H140 -> 0
A141: =Konformitätsprüfung!$G141 -> 0 | B141: =Konformitätsprüfung!$H141 -> 0
A142: =Konformitätsprüfung!$G142 -> 0 | B142: =Konformitätsprüfung!$H142 -> 0
A143: =Konformitätsprüfung!$G143 -> 0 | B143: =Konformitätsprüfung!$H143 -> 0
A144: =Konformitätsprüfung!$G144 -> 0 | B144: =SUM(B145:B153) -> 0
A145: =Konformitätsprüfung!$G145 -> 0 | B145: =Konformitätsprüfung!$H145 -> 0
A146: =Konformitätsprüfung!$G146 -> 0 | B146: =Konformitätsprüfung!$H146 -> 0
A147: =Konformitätsprüfung!$G147 -> 0 | B147: =Konformitätsprüfung!$H147 -> 0
A148: =Konformitätsprüfung!$G148 -> 0 | B148: =Konformitätsprüfung!$H148 -> 0
A149: =Konformitätsprüfung!$G149 -> 0 | B149: =Konformitätsprüfung!$H149 -> 0
A150: =Konformitätsprüfung!$G150 -> 0 | B150: =Konformitätsprüfung!$H150 -> 0
A151: =Konformitätsprüfung!$G151 -> 0 | B151: =Konformitätsprüfung!$H151 -> 0
A152: =Konformitätsprüfung!$G152 -> 0 | B152: =Konformitätsprüfung!$H152 -> 0
A153: =Konformitätsprüfung!$G154 -> 0 | B153: =Konformitätsprüfung!$H154 -> 0
A154: =Konformitätsprüfung!$G155 -> 0 | B154: =Konformitätsprüfung!$H155 -> 0
A155: =Konformitätsprüfung!$G156 -> 0 | B155: =Konformitätsprüfung!$H156 -> 0
A156: =Konformitätsprüfung!$G157 -> 0 | B156: =Konformitätsprüfung!$H157 -> 0
A158: =Konformitätsprüfung!$G159 -> 0 | B158: =B161*($E$161/100)+B165*($E$165/100)+B171*($E$171/100)+B187*($E$187/100)+B188*($E$188/100)+B193*($E$193/100)+B203*($E$203/100)+B208*($E$208/100)+B213*($E$213/100)+B216*($E$216/100) -> 0
A161: =Konformitätsprüfung!$G162 -> 0 | B161: =SUM(B162:B164) -> 0
A162: =Konformitätsprüfung!$G163 -> 0 | B162: =Konformitätsprüfung!$H163 -> 0
A163: =Konformitätsprüfung!$G164 -> 0 | B163: =Konformitätsprüfung!$H164 -> 0
A164: =Konformitätsprüfung!$G165 -> 0 | B164: =Konformitätsprüfung!$H165 -> 0
A165: =Konformitätsprüfung!$G166 -> 0 | B165: =SUM(B166:B170) -> 0
A166: =Konformitätsprüfung!$G167 -> 0 | B166: =Konformitätsprüfung!$H167 -> 0
A167: =Konformitätsprüfung!$G168 -> 0 | B167: =Konformitätsprüfung!$H168 -> 0
A168: =Konformitätsprüfung!$G169 -> 0 | B168: =Konformitätsprüfung!$H169 -> 0
A169: =Konformitätsprüfung!$G170 -> 0 | B169: =Konformitätsprüfung!$H170 -> 0
A170: =Konformitätsprüfung!$G171 -> 0 | B170: =Konformitätsprüfung!$H171 -> 0
A171: =Konformitätsprüfung!$G172 -> 0 | B171: =SUM(B172:B186) -> 0
A172: =Konformitätsprüfung!$G173 -> 0 | B172: =Konformitätsprüfung!$H173 -> 0
A173: =Konformitätsprüfung!$G174 -> 0 | B173: =Konformitätsprüfung!$H174 -> 0
A174: =Konformitätsprüfung!$G175 -> 0 | B174: =Konformitätsprüfung!$H175 -> 0
A175: =Konformitätsprüfung!$G176 -> 0 | B175: =Konformitätsprüfung!$H176 -> 0
A176: =Konformitätsprüfung!$G177 -> 0 | B176: =Konformitätsprüfung!$H177 -> 0
A177: =Konformitätsprüfung!$G178 -> 0 | B177: =Konformitätsprüfung!$H178 -> 0
A178: =Konformitätsprüfung!$G179 -> 0 | B178: =Konformitätsprüfung!$H179 -> 0
A179: =Konformitätsprüfung!$G180 -> 0 | B179: =Konformitätsprüfung!$H180 -> 0
A180: =Konformitätsprüfung!$G181 -> 0 | B180: =Konformitätsprüfung!$H181 -> 0
A181: =Konformitätsprüfung!$G182 -> 0 | B181: =Konformitätsprüfung!$H182 -> 0
A182: =Konformitätsprüfung!$G183 -> 0 | B182: =Konformitätsprüfung!$H183 -> 0
A183: =Konformitätsprüfung!$G184 -> 0 | B183: =Konformitätsprüfung!$H184 -> 0
A184: =Konformitätsprüfung!$G185 -> 0 | B184: =Konformitätsprüfung!$H185 -> 0
A185: =Konformitätsprüfung!$G186 -> 0 | B185: =Konformitätsprüfung!$H186 -> 0
A186: =Konformitätsprüfung!$G187 -> 0 | B186: =Konformitätsprüfung!$H187 -> 0
A187: =Konformitätsprüfung!$G188 -> 0 | B187: =Konformitätsprüfung!$H188 -> 0
A188: =Konformitätsprüfung!$G189 -> 0 | B188: =SUM(B189:B192) -> 0
A189: =Konformitätsprüfung!$G190 -> 0 | B189: =Konformitätsprüfung!$H190 -> 0
A190: =Konformitätsprüfung!$G191 -> 0 | B190: =Konformitätsprüfung!$H191 -> 0
A191: =Konformitätsprüfung!$G192 -> 0 | B191: =Konformitätsprüfung!$H192 -> 0
A192: =Konformitätsprüfung!$G193 -> 0 | B192: =Konformitätsprüfung!$H193 -> 0
A193: =Konformitätsprüfung!$G194 -> 0 | B193: =SUM(B194:B202) -> 0
A194: =Konformitätsprüfung!$G195 -> 0 | B194: =Konformitätsprüfung!$H195 -> 0
A195: =Konformitätsprüfung!$G196 -> 0 | B195: =Konformitätsprüfung!$H196 -> 0
A196: =Konformitätsprüfung!$G197 -> 0 | B196: =Konformitätsprüfung!$H197 -> 0
A197: =Konformitätsprüfung!$G198 -> 0 | B197: =Konformitätsprüfung!$H198 -> 0
A198: =Konformitätsprüfung!$G199 -> 0 | B198: =Konformitätsprüfung!$H199 -> 0
A199: =Konformitätsprüfung!$G200 -> 0 | B199: =Konformitätsprüfung!$H200 -> 0
A200: =Konformitätsprüfung!$G201 -> 0 | B200: =Konformitätsprüfung!$H201 -> 0
A201: =Konformitätsprüfung!$G202 -> 0 | B201: =Konformitätsprüfung!$H202 -> 0
A202: =Konformitätsprüfung!$G203 -> 0 | B202: =Konformitätsprüfung!$H203 -> 0
A203: =Konformitätsprüfung!$G204 -> 0 | B203: =SUM(B204:B206) -> 0
A204: =Konformitätsprüfung!$G205 -> 0 | B204: =Konformitätsprüfung!$H205 -> 0
A205: =Konformitätsprüfung!$G206 -> 0 | B205: =Konformitätsprüfung!$H206 -> 0
A206: =Konformitätsprüfung!$G207 -> 0 | B206: =Konformitätsprüfung!$H207 -> 0
A208: =Konformitätsprüfung!$G209 -> 0 | B208: =SUM(B209:B212) -> 0
A209: =Konformitätsprüfung!$G210 -> 0 | B209: =Konformitätsprüfung!$H210 -> 0
A210: =Konformitätsprüfung!$G211 -> 0 | B210: =Konformitätsprüfung!$H211 -> 0
A211: =Konformitätsprüfung!$G212 -> 0 | B211: =Konformitätsprüfung!$H212 -> 0
A212: =Konformitätsprüfung!$G213 -> 0 | B212: =Konformitätsprüfung!$H213 -> 0
A213: =Konformitätsprüfung!$G214 -> 0 | B213: =SUM(B214:B215) -> 0
A214: =Konformitätsprüfung!$G215 -> 0 | B214: =Konformitätsprüfung!$H215 -> 0
A215: =Konformitätsprüfung!$G216 -> 0 | B215: =Konformitätsprüfung!$H216 -> 0
A216: =Konformitätsprüfung!$G217 -> 0 | B216: =Konformitätsprüfung!$H217 -> 0
A219: =Konformitätsprüfung!$G220 -> 0 | B219: =B222*($E$222/100)+B228*($E$228/100)+B235*($E$235/100)+B240*($E$240/100)+B244*($E$244/100)+B255*($E$255/100) -> 0
A222: =Konformitätsprüfung!$G223 -> 0 | B222: =SUM(B223:B227) -> 0
A223: =Konformitätsprüfung!$G224 -> 0 | B223: =Konformitätsprüfung!$H224 -> 0
A224: =Konformitätsprüfung!$G225 -> 0 | B224: =Konformitätsprüfung!$H225 -> 0
A225: =Konformitätsprüfung!$G226 -> 0 | B225: =Konformitätsprüfung!$H226 -> 0
A226: =Konformitätsprüfung!$G227 -> 0 | B226: =Konformitätsprüfung!$H227 -> 0
A227: =Konformitätsprüfung!$G228 -> 0 | B227: =Konformitätsprüfung!$H228 -> 0
A228: =Konformitätsprüfung!$G229 -> 0 | B228: =SUM(B229:B234) -> 0
A229: =Konformitätsprüfung!$G230 -> 0 | B229: =Konformitätsprüfung!$H230 -> 0
A230: =Konformitätsprüfung!$G231 -> 0 | B230: =Konformitätsprüfung!$H231 -> 0
A231: =Konformitätsprüfung!$G232 -> 0 | B231: =Konformitätsprüfung!$H232 -> 0
A232: =Konformitätsprüfung!$G233 -> 0 | B232: =Konformitätsprüfung!$H233 -> 0
A233: =Konformitätsprüfung!$G234 -> 0 | B233: =Konformitätsprüfung!$H234 -> 0
... 26 more rows
